Body Name,Body,Service Label,Service Code,CIPFA Detailed Expenditure Type,CIPFA Detailed Expenditure Code,Date,Transaction Number,Net Amount,Supplier Name
Nottinghamshire County Council,1111/1001,Surplus or Deficit from Trading Undertak,TRADING,Supplies & Services,DDA,02/02/2016,11-10001,740.75,Hamelin Paperbrands Ltd
Nottinghamshire County Council,1111/1001,Surplus or Deficit from Trading Undertak,TRADING,Supplies & Services,DDA,10/02/2016,11-10001,"2,055.41",Hamelin Paperbrands Ltd
Nottinghamshire County Council,1111/1001,Surplus or Deficit from Trading Undertak,TRADING,Supplies & Services,DDA,23/02/2016,11-10001,937.47,Hamelin Paperbrands Ltd
Nottinghamshire County Council,1111/1001,Surplus or Deficit from Trading Undertak,TRADING,Supplies & Services,DDA,25/02/2016,11-10001,"1,765.48",Hamelin Paperbrands Ltd
Nottinghamshire County Council,1111/1001,Surplus or Deficit from Trading Undertak,TRADING,Supplies & Services,DDA,04/02/2016,11-10001,527.26,Plastoreg Smidt Gmbh
Nottinghamshire County Council,1111/1001,Surplus or Deficit from Trading Undertak,TRADING,Supplies & Services,DDA,04/02/2016,11-10001,813.00,Plastoreg Smidt Gmbh
Nottinghamshire County Council,1111/1001,Surplus or Deficit from Trading Undertak,TRADING,Supplies & Services,DDA,15/02/2016,11-10001,640.32,Plastoreg Smidt Gmbh
Nottinghamshire County Council,1111/1001,Surplus or Deficit from Trading Undertak,TRADING,Supplies & Services,DDA,02/02/2016,11-10001,"2,410.00",Henkel Loctite Adhesives Ltd
Nottinghamshire County Council,1111/1001,Surplus or Deficit from Trading Undertak,TRADING,Supplies & Services,DDA,04/02/2016,11-10001,"5,921.00",Henkel Loctite Adhesives Ltd
Nottinghamshire County Council,1111/1001,Surplus or Deficit from Trading Undertak,TRADING,Supplies & Services,DDA,18/02/2016,11-10001,"1,740.00",Henkel Loctite Adhesives Ltd
Nottinghamshire County Council,1111/1001,Surplus or Deficit from Trading Undertak,TRADING,Supplies & Services,DDA,19/02/2016,11-10001,"3,790.56",Henkel Loctite Adhesives Ltd
Nottinghamshire County Council,1111/1001,Surplus or Deficit from Trading Undertak,TRADING,Supplies & Services,DDA,25/02/2016,11-10001,"1,992.60",Henkel Loctite Adhesives Ltd
Nottinghamshire County Council,1111/1001,Surplus or Deficit from Trading Undertak,TRADING,Supplies & Services,DAA,15/02/2016,11-10001,552.00,Kb Packaging
Nottinghamshire County Council,1111/1001,Surplus or Deficit from Trading Undertak,TRADING,Supplies & Services,DAA,02/02/2016,11-10001,523.05,Synergy Health (Uk) Ltd
Nottinghamshire County Council,1111/1001,Surplus or Deficit from Trading Undertak,TRADING,Supplies & Services,DAA,15/02/2016,11-10001,512.06,Vivid Laminating Technologies Ltd
Nottinghamshire County Council,1111/1001,Surplus or Deficit from Trading Undertak,TRADING,Supplies & Services,DAA,23/02/2016,11-10001,"1,320.00",Premier Paper Group Ltd
Nottinghamshire County Council,1111/1001,Surplus or Deficit from Trading Undertak,TRADING,Supplies & Services,DAA,23/02/2016,11-10001,"1,320.00",Premier Paper Group Ltd
Nottinghamshire County Council,1111/1001,Surplus or Deficit from Trading Undertak,TRADING,Supplies & Services,DAA,02/02/2016,11-10001,"1,352.40",Antalis Key Accounts
Nottinghamshire County Council,1111/1001,Surplus or Deficit from Trading Undertak,TRADING,Supplies & Services,DAA,09/02/2016,11-10001,"1,237.00",Antalis Key Accounts
Nottinghamshire County Council,1111/1001,Surplus or Deficit from Trading Undertak,TRADING,Supplies & Services,DAA,23/02/2016,11-10001,"1,071.75",Antalis Key Accounts
Nottinghamshire County Council,1111/1001,Surplus or Deficit from Trading Undertak,TRADING,Supplies & Services,DAA,26/02/2016,11-10001,"2,640.85",Antalis Key Accounts
Nottinghamshire County Council,1111/1001,Surplus or Deficit from Trading Undertak,TRADING,Supplies & Services,DAA,02/02/2016,11-10001,735.00,Amp Electrical
Nottinghamshire County Council,1111/1001,Surplus or Deficit from Trading Undertak,TRADING,Supplies & Services,DAA,25/02/2016,11-10001,862.50,Amp Electrical
Nottinghamshire County Council,1111/1001,Surplus or Deficit from Trading Undertak,TRADING,Premises Related,BAA,10/02/2016,11-10001,"1,342.00",Securesafe Ltd
Nottinghamshire County Council,1111/1001,Surplus or Deficit from Trading Undertak,TRADING,Premises Related,BAA,18/02/2016,11-10001,513.24,Flexiform Business Furniture
Nottinghamshire County Council,1111/1001,Surplus or Deficit from Trading Undertak,TRADING,Premises Related,BJA,02/02/2016,11-10001,505.50,Freudenberg Household Products Lp
Nottinghamshire County Council,1111/1001,Surplus or Deficit from Trading Undertak,TRADING,Premises Related,BJA,18/02/2016,11-10001,954.65,Freudenberg Household Products Lp
Nottinghamshire County Council,1111/1001,Surplus or Deficit from Trading Undertak,TRADING,Premises Related,BJA,25/02/2016,11-10001,897.00,Polystar Plastics Ltd
Nottinghamshire County Council,1111/1001,Surplus or Deficit from Trading Undertak,TRADING,Premises Related,BJA,29/02/2016,11-10001,897.00,Polystar Plastics Ltd
Nottinghamshire County Council,1111/1001,Surplus or Deficit from Trading Undertak,TRADING,Premises Related,BJA,08/02/2016,11-10001,"2,150.50",Kimberley Clark European Services Ltd
Nottinghamshire County Council,1111/1001,Surplus or Deficit from Trading Undertak,TRADING,Premises Related,BJA,15/02/2016,11-10001,737.80,Kimberley Clark European Services Ltd
Nottinghamshire County Council,1111/1001,Surplus or Deficit from Trading Undertak,TRADING,Premises Related,BJA,25/02/2016,11-10001,726.00,Kimberley Clark European Services Ltd
Nottinghamshire County Council,1111/1001,Surplus or Deficit from Trading Undertak,TRADING,Premises Related,BJA,02/02/2016,11-10001,880.00,Macfarlane Group (Uk) Ltd
Nottinghamshire County Council,1111/1001,Surplus or Deficit from Trading Undertak,TRADING,Premises Related,BJA,23/02/2016,11-10001,521.80,Cromwell Polythene Ltd
Nottinghamshire County Council,1111/1001,Surplus or Deficit from Trading Undertak,TRADING,Premises Related,BJA,26/02/2016,11-10001,657.92,Midland Wiper Manufacturing Co Ltd
Nottinghamshire County Council,1111/1001,Surplus or Deficit from Trading Undertak,TRADING,Premises Related,BJA,04/02/2016,11-10001,609.56,Evans Vanodine International Ltd
Nottinghamshire County Council,1111/1001,Surplus or Deficit from Trading Undertak,TRADING,Premises Related,BJA,10/02/2016,11-10001,606.84,Evans Vanodine International Ltd
Nottinghamshire County Council,1111/1001,Surplus or Deficit from Trading Undertak,TRADING,Premises Related,BJA,02/02/2016,11-10001,515.82,Johnson Diversey
Nottinghamshire County Council,1111/1001,Surplus or Deficit from Trading Undertak,TRADING,Premises Related,BJA,19/02/2016,11-10001,892.16,Johnson Diversey
Nottinghamshire County Council,1111/1001,Surplus or Deficit from Trading Undertak,TRADING,Premises Related,BJA,26/02/2016,11-10001,708.69,Johnson Diversey
Nottinghamshire County Council,1111/1001,Surplus or Deficit from Trading Undertak,TRADING,Premises Related,BJA,15/02/2016,11-10001,"1,144.00",Premiere Products (James Briggs Ltd)
Nottinghamshire County Council,1111/1001,Surplus or Deficit from Trading Undertak,TRADING,Premises Related,BJA,17/02/2016,11-10001,"1,354.33",Premiere Products (James Briggs Ltd)
Nottinghamshire County Council,1111/1001,Surplus or Deficit from Trading Undertak,TRADING,Premises Related,BJA,25/02/2016,11-10001,"1,877.92",Premiere Products (James Briggs Ltd)
Nottinghamshire County Council,1111/1001,Surplus or Deficit from Trading Undertak,TRADING,Premises Related,BJA,25/02/2016,11-10001,"1,313.91",Premiere Products (James Briggs Ltd)
Nottinghamshire County Council,1111/1001,Surplus or Deficit from Trading Undertak,TRADING,Premises Related,BJA,25/02/2016,11-10001,656.59,Premiere Products (James Briggs Ltd)
Nottinghamshire County Council,1111/1001,Surplus or Deficit from Trading Undertak,TRADING,Premises Related,BJA,25/02/2016,11-10001,"2,794.94",Premiere Products (James Briggs Ltd)
Nottinghamshire County Council,1111/1001,Surplus or Deficit from Trading Undertak,TRADING,Premises Related,BJA,25/02/2016,11-10001,"1,187.72",Premiere Products (James Briggs Ltd)
Nottinghamshire County Council,1111/1001,Surplus or Deficit from Trading Undertak,TRADING,Premises Related,BJA,02/02/2016,11-10001,"1,998.00",Dowding & Plummer Ltd
Nottinghamshire County Council,1111/1001,Surplus or Deficit from Trading Undertak,TRADING,Premises Related,BJA,10/02/2016,11-10001,"1,098.00",Candor Services
Nottinghamshire County Council,1111/1001,Surplus or Deficit from Trading Undertak,TRADING,Supplies & Services,DAA,23/02/2016,11-10001,595.84,Coptrin Limited
Nottinghamshire County Council,1111/1001,Surplus or Deficit from Trading Undertak,TRADING,Supplies & Services,DAA,04/02/2016,11-10001,"1,397.52",W V Howe (Hardware) Ltd
Nottinghamshire County Council,1111/1001,Surplus or Deficit from Trading Undertak,TRADING,Supplies & Services,DAA,25/02/2016,11-10001,520.04,W V Howe (Hardware) Ltd
Nottinghamshire County Council,1111/1001,Surplus or Deficit from Trading Undertak,TRADING,Supplies & Services,DAA,08/02/2016,11-10001,"2,429.81",Sca Hygiene
Nottinghamshire County Council,1111/1001,Surplus or Deficit from Trading Undertak,TRADING,Supplies & Services,DAA,08/02/2016,11-10001,511.98,Sca Hygiene
Nottinghamshire County Council,1111/1001,Surplus or Deficit from Trading Undertak,TRADING,Supplies & Services,DAA,15/02/2016,11-10001,"3,568.20",Sca Hygiene
Nottinghamshire County Council,1111/1001,Surplus or Deficit from Trading Undertak,TRADING,Supplies & Services,DAA,23/02/2016,11-10001,"4,191.30",Sca Hygiene
Nottinghamshire County Council,1111/1001,Surplus or Deficit from Trading Undertak,TRADING,Supplies & Services,DAA,25/02/2016,11-10001,577.22,Ransome Sporting Goods Group Ltd
Nottinghamshire County Council,1111/1001,Surplus or Deficit from Trading Undertak,TRADING,Supplies & Services,DAA,04/02/2016,11-10001,839.00,Kay-Metzeler Ltd
Nottinghamshire County Council,1111/1001,Surplus or Deficit from Trading Undertak,TRADING,Supplies & Services,DCA,04/02/2016,11-10001,566.55,Shermond
Nottinghamshire County Council,1111/1001,Surplus or Deficit from Trading Undertak,TRADING,Supplies & Services,DCA,09/02/2016,11-10001,"1,585.79",Shermond
Nottinghamshire County Council,1111/1001,Surplus or Deficit from Trading Undertak,TRADING,Supplies & Services,DCA,23/02/2016,11-10001,567.90,Shermond
Nottinghamshire County Council,1111/1001,Surplus or Deficit from Trading Undertak,TRADING,Supplies & Services,DKA,04/02/2016,11-10001,570.61,Bunzl Cleaning & Hygiene Supplies
Nottinghamshire County Council,1111/1001,Surplus or Deficit from Trading Undertak,TRADING,Supplies & Services,DKA,04/02/2016,11-10001,806.40,Bunzl Cleaning & Hygiene Supplies
Nottinghamshire County Council,1111/1001,Surplus or Deficit from Trading Undertak,TRADING,Supplies & Services,DKA,10/02/2016,11-10001,531.50,Bunzl Cleaning & Hygiene Supplies
Nottinghamshire County Council,1111/1001,Surplus or Deficit from Trading Undertak,TRADING,Supplies & Services,DKA,25/02/2016,11-10001,537.19,Bunzl Cleaning & Hygiene Supplies
Nottinghamshire County Council,1111/1001,Surplus or Deficit from Trading Undertak,TRADING,Supplies & Services,DAA,05/02/2016,11-10001,972.20,R Scott & Sons Ltd
Nottinghamshire County Council,1111/1001,Surplus or Deficit from Trading Undertak,TRADING,Supplies & Services,DAA,15/02/2016,11-10001,"2,577.40",R Scott & Sons Ltd
Nottinghamshire County Council,1111/1001,Surplus or Deficit from Trading Undertak,TRADING,Supplies & Services,DAA,22/02/2016,11-10001,"4,317.05",R Scott & Sons Ltd
Nottinghamshire County Council,1111/1001,Surplus or Deficit from Trading Undertak,TRADING,Supplies & Services,DAA,29/02/2016,11-10001,"1,332.90",R Scott & Sons Ltd
Nottinghamshire County Council,1111/1001,Surplus or Deficit from Trading Undertak,TRADING,Supplies & Services,DAA,02/02/2016,11-10001,"4,794.27",Office Innovations
Nottinghamshire County Council,1111/1001,Surplus or Deficit from Trading Undertak,TRADING,Supplies & Services,DAA,04/02/2016,11-10001,"1,491.50",Office Innovations
Nottinghamshire County Council,1111/1001,Surplus or Deficit from Trading Undertak,TRADING,Supplies & Services,DAA,15/02/2016,11-10001,"1,035.50",Office Innovations
Nottinghamshire County Council,1111/1001,Surplus or Deficit from Trading Undertak,TRADING,Supplies & Services,DAA,23/02/2016,11-10001,"2,925.05",Office Innovations
Nottinghamshire County Council,1111/1001,Surplus or Deficit from Trading Undertak,TRADING,Supplies & Services,DAA,25/02/2016,11-10001,560.00,Office Innovations
Nottinghamshire County Council,1111/1001,Surplus or Deficit from Trading Undertak,TRADING,Supplies & Services,DAA,26/02/2016,11-10001,"4,567.03",Office Innovations
Nottinghamshire County Council,1111/1001,Surplus or Deficit from Trading Undertak,TRADING,Supplies & Services,DAA,15/02/2016,11-10001,"1,904.00",Principal Furniture
Nottinghamshire County Council,1111/1001,Surplus or Deficit from Trading Undertak,TRADING,Supplies & Services,DAA,09/02/2016,11-10001,511.20,Advanced Moulds Ltd
Nottinghamshire County Council,1111/1001,Surplus or Deficit from Trading Undertak,TRADING,Supplies & Services,DAA,23/02/2016,11-10001,511.20,Advanced Moulds Ltd
Nottinghamshire County Council,1111/1001,Surplus or Deficit from Trading Undertak,TRADING,Supplies & Services,DAA,10/02/2016,11-10001,674.84,Niels Larsen Ltd
Nottinghamshire County Council,1111/1001,Surplus or Deficit from Trading Undertak,TRADING,Supplies & Services,DAA,25/02/2016,11-10001,"2,433.00",Office Update
Nottinghamshire County Council,1111/1001,Surplus or Deficit from Trading Undertak,TRADING,Supplies & Services,DAA,02/02/2016,11-10001,521.08,Hille Education Products Ltd
Nottinghamshire County Council,1111/1001,Surplus or Deficit from Trading Undertak,TRADING,Supplies & Services,DAA,02/02/2016,11-10001,569.40,Hille Education Products Ltd
Nottinghamshire County Council,1111/1001,Surplus or Deficit from Trading Undertak,TRADING,Supplies & Services,DAA,02/02/2016,11-10001,853.20,Hille Education Products Ltd
Nottinghamshire County Council,1111/1001,Surplus or Deficit from Trading Undertak,TRADING,Supplies & Services,DAA,23/02/2016,11-10001,"2,232.50",Hille Education Products Ltd
Nottinghamshire County Council,1111/1001,Surplus or Deficit from Trading Undertak,TRADING,Supplies & Services,DAA,25/02/2016,11-10001,521.00,R2 Solutions Ltd
Nottinghamshire County Council,1111/1001,Surplus or Deficit from Trading Undertak,TRADING,Supplies & Services,DAA,19/02/2016,11-10001,"1,244.24",Denis Rawlins Ltd
Nottinghamshire County Council,1111/1001,Surplus or Deficit from Trading Undertak,TRADING,Supplies & Services,DAA,10/02/2016,11-10001,"1,046.83",Gopak Ltd
Nottinghamshire County Council,1111/1001,Surplus or Deficit from Trading Undertak,TRADING,Supplies & Services,DAA,10/02/2016,11-10001,787.45,Office Depot Uk
Nottinghamshire County Council,1111/1001,Surplus or Deficit from Trading Undertak,TRADING,Supplies & Services,DAA,18/02/2016,11-10001,536.70,Victoria Grant Ltd
Nottinghamshire County Council,1111/1001,Surplus or Deficit from Trading Undertak,TRADING,Supplies & Services,DAA,04/02/2016,11-10001,"1,034.75",Kent County Supplies
Nottinghamshire County Council,1111/1001,Surplus or Deficit from Trading Undertak,TRADING,Supplies & Services,DAA,09/02/2016,11-10001,"1,146.00",Kent County Supplies
Nottinghamshire County Council,1111/1001,Surplus or Deficit from Trading Undertak,TRADING,Supplies & Services,DAA,10/02/2016,11-10001,633.60,Kent County Supplies
Nottinghamshire County Council,1111/1001,Surplus or Deficit from Trading Undertak,TRADING,Supplies & Services,DAA,26/02/2016,11-10001,"2,092.44",Kent County Supplies
Nottinghamshire County Council,1111/1001,Surplus or Deficit from Trading Undertak,TRADING,Supplies & Services,DAA,10/02/2016,11-10001,"15,080.00",Grosvenor House Papers Ltd
Nottinghamshire County Council,1111/1001,Surplus or Deficit from Trading Undertak,TRADING,Supplies & Services,DAA,26/02/2016,11-10001,904.00,Grosvenor House Papers Ltd
Nottinghamshire County Council,1111/1001,Surplus or Deficit from Trading Undertak,TRADING,Supplies & Services,DAA,04/02/2016,11-10001,"1,177.30",Newell Rubbermaid
Nottinghamshire County Council,1111/1001,Surplus or Deficit from Trading Undertak,TRADING,Supplies & Services,DAA,10/02/2016,11-10001,971.02,Newell Rubbermaid
Nottinghamshire County Council,1111/1001,Surplus or Deficit from Trading Undertak,TRADING,Supplies & Services,DAA,15/02/2016,11-10001,589.14,Newell Rubbermaid
Nottinghamshire County Council,1111/1001,Surplus or Deficit from Trading Undertak,TRADING,Supplies & Services,DAA,23/02/2016,11-10001,"1,530.47",Newell Rubbermaid
Nottinghamshire County Council,1111/1001,Surplus or Deficit from Trading Undertak,TRADING,Supplies & Services,DAA,26/02/2016,11-10001,"1,402.84",Newell Rubbermaid
Nottinghamshire County Council,1111/1001,Surplus or Deficit from Trading Undertak,TRADING,Supplies & Services,DAA,15/02/2016,11-10001,636.20,Newclay Products Ltd
Nottinghamshire County Council,1111/1001,Surplus or Deficit from Trading Undertak,TRADING,Supplies & Services,DAA,09/02/2016,11-10001,"2,056.09",Staedtler (Uk) Ltd
Nottinghamshire County Council,1111/1001,Surplus or Deficit from Trading Undertak,TRADING,Supplies & Services,DAA,10/02/2016,11-10001,726.42,Staedtler (Uk) Ltd
Nottinghamshire County Council,1111/1001,Surplus or Deficit from Trading Undertak,TRADING,Supplies & Services,DAA,23/02/2016,11-10001,902.90,Staedtler (Uk) Ltd
Nottinghamshire County Council,1111/1001,Surplus or Deficit from Trading Undertak,TRADING,Supplies & Services,DAA,15/02/2016,11-10001,664.12,Bic U.K. Ltd
Nottinghamshire County Council,1111/1001,Surplus or Deficit from Trading Undertak,TRADING,Supplies & Services,DAA,26/02/2016,11-10001,557.74,Bic U.K. Ltd
Nottinghamshire County Council,1111/1001,Surplus or Deficit from Trading Undertak,TRADING,Supplies & Services,DAA,25/02/2016,11-10001,542.85,Edding Uk Ltd
Nottinghamshire County Council,1111/1001,Surplus or Deficit from Trading Undertak,TRADING,Supplies & Services,DAA,23/02/2016,11-10001,594.76,Rapesco Office Products Plc
Nottinghamshire County Council,1111/1001,Surplus or Deficit from Trading Undertak,TRADING,Supplies & Services,DAA,02/02/2016,11-10001,557.81,Allen Glenold Ltd
Nottinghamshire County Council,1111/1001,Surplus or Deficit from Trading Undertak,TRADING,Supplies & Services,DAA,15/02/2016,11-10001,620.90,Allen Glenold Ltd
Nottinghamshire County Council,1111/1001,Surplus or Deficit from Trading Undertak,TRADING,Supplies & Services,DAA,23/02/2016,11-10001,"1,605.97",Allen Glenold Ltd
Nottinghamshire County Council,1111/1001,Surplus or Deficit from Trading Undertak,TRADING,Supplies & Services,DAA,15/02/2016,11-10001,"2,283.08",Higher Kings Mill Ltd
Nottinghamshire County Council,1111/1001,Surplus or Deficit from Trading Undertak,TRADING,Supplies & Services,DAA,04/02/2016,11-10001,"1,053.89",Slater Harrison & Co Ltd
Nottinghamshire County Council,1111/1001,Surplus or Deficit from Trading Undertak,TRADING,Supplies & Services,DAA,04/02/2016,11-10001,612.27,Slater Harrison & Co Ltd
Nottinghamshire County Council,1111/1001,Surplus or Deficit from Trading Undertak,TRADING,Supplies & Services,DAA,15/02/2016,11-10001,"1,059.22",Slater Harrison & Co Ltd
Nottinghamshire County Council,1111/1001,Surplus or Deficit from Trading Undertak,TRADING,Supplies & Services,DAA,25/02/2016,11-10001,963.80,Slater Harrison & Co Ltd
Nottinghamshire County Council,1111/1001,Surplus or Deficit from Trading Undertak,TRADING,Supplies & Services,DAA,10/02/2016,11-10001,730.09,Creativity International Ltd
Nottinghamshire County Council,1111/1001,Surplus or Deficit from Trading Undertak,TRADING,Supplies & Services,DAA,02/02/2016,11-10001,503.95,Eastpoint
Nottinghamshire County Council,1111/1001,Surplus or Deficit from Trading Undertak,TRADING,Supplies & Services,DAA,04/02/2016,11-10001,"2,748.16",Eastpoint
Nottinghamshire County Council,1111/1001,Surplus or Deficit from Trading Undertak,TRADING,Supplies & Services,DAA,04/02/2016,11-10001,"2,101.76",Eastpoint
Nottinghamshire County Council,1111/1001,Surplus or Deficit from Trading Undertak,TRADING,Supplies & Services,DAA,09/02/2016,11-10001,881.21,Eastpoint
Nottinghamshire County Council,1111/1001,Surplus or Deficit from Trading Undertak,TRADING,Supplies & Services,DAA,23/02/2016,11-10001,854.80,Eastpoint
Nottinghamshire County Council,1111/1001,Surplus or Deficit from Trading Undertak,TRADING,Supplies & Services,DAA,23/02/2016,11-10001,"1,053.34",Eastpoint
Nottinghamshire County Council,1111/1001,Surplus or Deficit from Trading Undertak,TRADING,Supplies & Services,DAA,25/02/2016,11-10001,"2,230.90",Eastpoint
Nottinghamshire County Council,1111/1001,Surplus or Deficit from Trading Undertak,TRADING,Supplies & Services,DAA,10/02/2016,11-10001,"1,035.24",Youngstart Ltd
Nottinghamshire County Council,1111/1001,Surplus or Deficit from Trading Undertak,TRADING,Supplies & Services,DAA,04/02/2016,11-10001,"2,100.00",Deco-Pak Ltd
Nottinghamshire County Council,1111/1001,Surplus or Deficit from Trading Undertak,TRADING,Supplies & Services,DAA,05/02/2016,11-10001,560.24,Brian Clegg (Educational Products) Ltd
Nottinghamshire County Council,1111/1001,Surplus or Deficit from Trading Undertak,TRADING,Supplies & Services,DAA,09/02/2016,11-10001,"1,125.41",Brian Clegg (Educational Products) Ltd
Nottinghamshire County Council,1111/1001,Surplus or Deficit from Trading Undertak,TRADING,Supplies & Services,DAA,22/02/2016,11-10001,741.22,Brian Clegg (Educational Products) Ltd
Nottinghamshire County Council,1111/1001,Surplus or Deficit from Trading Undertak,TRADING,Supplies & Services,DAA,29/02/2016,11-10001,658.02,Brian Clegg (Educational Products) Ltd
Nottinghamshire County Council,1111/1001,Surplus or Deficit from Trading Undertak,TRADING,Supplies & Services,DAA,29/02/2016,11-10001,571.18,Brian Clegg (Educational Products) Ltd
Nottinghamshire County Council,1111/1001,Surplus or Deficit from Trading Undertak,TRADING,Supplies & Services,DAA,04/02/2016,11-10001,"1,055.97",Profile Education Ltd
Nottinghamshire County Council,1111/1001,Surplus or Deficit from Trading Undertak,TRADING,Supplies & Services,DAA,02/02/2016,11-10001,666.38,Monarch Computer Furniture
Nottinghamshire County Council,1111/1001,Surplus or Deficit from Trading Undertak,TRADING,Employee Related,AAA,11/02/2016,11-10001,697.10,A&T Active Recruitment
Nottinghamshire County Council,1111/1001,Surplus or Deficit from Trading Undertak,TRADING,Employee Related,AAA,22/02/2016,11-10001,656.97,A&T Active Recruitment
Nottinghamshire County Council,1111/1001,Surplus or Deficit from Trading Undertak,TRADING,Employee Related,AAA,29/02/2016,11-10001,667.00,A&T Active Recruitment
Nottinghamshire County Council,1111/1001,Children and Young People,CYP,Employee Related,ABA,17/02/2016,11-12555,760.00,Chilwell Comprehensive School
Nottinghamshire County Council,1111/1001,Children and Young People,CYP,Premises Related,BCA,05/02/2016,11-17142,578.00,Certas Energy UK Ltd T/A Emo Oil Lt
Nottinghamshire County Council,1111/1001,Children and Young People,CYP,Premises Related,BDA,02/02/2016,11-10001,"5,862.49",Making It! Enterprises Ltd
Nottinghamshire County Council,1111/1001,Children and Young People,CYP,Premises Related,BDA,02/02/2016,11-10002,"1,099.99",Nottingham City Council
Nottinghamshire County Council,1111/1001,Children and Young People,CYP,Premises Related,BDA,02/02/2016,11-10003,"4,768.26",Making It! Enterprises Ltd
Nottinghamshire County Council,1111/1001,Children and Young People,CYP,Premises Related,BDA,02/02/2016,11-10006,606.67,J Sedoo t/a Sedoo Investments
Nottinghamshire County Council,1111/1001,Children and Young People,CYP,Premises Related,BDA,02/02/2016,11-10007,606.67,J Sedoo t/a Sedoo Investments
Nottinghamshire County Council,1111/1001,Children and Young People,CYP,Premises Related,BDA,02/02/2016,11-10008,606.67,J Sedoo t/a Sedoo Investments
Nottinghamshire County Council,1111/1001,Children and Young People,CYP,Premises Related,BDA,02/02/2016,11-10013,"1,339.56",Refuge
Nottinghamshire County Council,1111/1001,Children and Young People,CYP,Premises Related,BDA,03/02/2016,11-10012,675.00,W J & S S Waterworth
Nottinghamshire County Council,1111/1001,Children and Young People,CYP,Premises Related,BDA,04/02/2016,11-17184,"1,433.33",The Nottingham Belfry
Nottinghamshire County Council,1111/1001,Children and Young People,CYP,Premises Related,BDA,24/02/2016,11-10016,524.84,Nottingham Community Housing
Nottinghamshire County Council,1111/1001,Children and Young People,CYP,Premises Related,BFA,09/02/2016,11-11720,535.10,Severn Trent Water Ltd
Nottinghamshire County Council,1111/1001,Children and Young People,CYP,Premises Related,BJA,03/02/2016,11-10997,"1,353.50",Wastecycle Ltd
Nottinghamshire County Council,1111/1001,Children and Young People,CYP,Premises Related,BJA,03/02/2016,11-10998,"1,456.59",Wastecycle Ltd
Nottinghamshire County Council,1111/1001,Children and Young People,CYP,Premises Related,BJA,26/02/2016,11-17168,910.35,Solutions 4 Cleaning Ltd
Nottinghamshire County Council,1111/1001,Children and Young People,CYP,Premises Related,BJA,26/02/2016,11-17169,827.32,Solutions 4 Cleaning Ltd
Nottinghamshire County Council,1111/1001,Children and Young People,CYP,Premises Related,BJA,26/02/2016,11-17173,530.83,Solutions 4 Cleaning Ltd
Nottinghamshire County Council,1111/1001,Children and Young People,CYP,Transport Related,CCA,02/02/2016,11-10495,"2,736.00",Taxicover Uk Ltd
Nottinghamshire County Council,1111/1001,Children and Young People,CYP,Transport Related,CCA,02/02/2016,11-10496,"3,002.00",Taxicover Uk Ltd
Nottinghamshire County Council,1111/1001,Children and Young People,CYP,Transport Related,CCA,02/02/2016,11-10497,"3,572.00",Taxicover Uk Ltd
Nottinghamshire County Council,1111/1001,Children and Young People,CYP,Transport Related,CCA,02/02/2016,11-10498,"3,743.00",Taxicover Uk Ltd
Nottinghamshire County Council,1111/1001,Children and Young People,CYP,Transport Related,CCA,02/02/2016,11-10499,"3,227.34",Taxicover Uk Ltd
Nottinghamshire County Council,1111/1001,Children and Young People,CYP,Transport Related,CCA,02/02/2016,11-10500,"3,405.18",Taxicover Uk Ltd
Nottinghamshire County Council,1111/1001,Children and Young People,CYP,Transport Related,CCA,02/02/2016,11-10501,"3,488.18",Taxicover Uk Ltd
Nottinghamshire County Council,1111/1001,Children and Young People,CYP,Transport Related,CCA,02/02/2016,11-10502,"3,055.39",Taxicover Uk Ltd
Nottinghamshire County Council,1111/1001,Children and Young People,CYP,Transport Related,CCA,02/02/2016,11-10504,"2,755.00",Taxicover Uk Ltd
Nottinghamshire County Council,1111/1001,Children and Young People,CYP,Transport Related,CCA,02/02/2016,11-10505,"2,945.00",Taxicover Uk Ltd
Nottinghamshire County Council,1111/1001,Children and Young People,CYP,Transport Related,CCA,02/02/2016,11-10506,"2,641.00",Taxicover Uk Ltd
Nottinghamshire County Council,1111/1001,Children and Young People,CYP,Transport Related,CCA,02/02/2016,11-10507,"2,812.00",Taxicover Uk Ltd
Nottinghamshire County Council,1111/1001,Children and Young People,CYP,Transport Related,CCA,02/02/2016,11-10508,"3,192.00",Taxicover Uk Ltd
Nottinghamshire County Council,1111/1001,Children and Young People,CYP,Transport Related,CCA,02/02/2016,11-10509,"2,964.00",Taxicover Uk Ltd
Nottinghamshire County Council,1111/1001,Children and Young People,CYP,Transport Related,CCA,02/02/2016,11-10510,"1,337.00",Southside Cars
Nottinghamshire County Council,1111/1001,Children and Young People,CYP,Transport Related,CCA,02/02/2016,11-10511,"1,918.00",Southside Cars
Nottinghamshire County Council,1111/1001,Children and Young People,CYP,Transport Related,CCA,02/02/2016,11-10512,"1,476.00",Southside Cars
Nottinghamshire County Council,1111/1001,Children and Young People,CYP,Transport Related,CCA,02/02/2016,11-10513,"2,097.60",Southside Cars
Nottinghamshire County Council,1111/1001,Children and Young People,CYP,Transport Related,CCA,02/02/2016,11-10514,"1,564.00",Southside Cars
Nottinghamshire County Council,1111/1001,Children and Young People,CYP,Transport Related,CCA,02/02/2016,11-10515,890.00,Southside Cars
Nottinghamshire County Council,1111/1001,Children and Young People,CYP,Transport Related,CCA,02/02/2016,11-10516,997.43,Southside Cars
Nottinghamshire County Council,1111/1001,Children and Young People,CYP,Transport Related,CCA,02/02/2016,11-10518,541.06,6 Five 2s
Nottinghamshire County Council,1111/1001,Children and Young People,CYP,Transport Related,CCA,02/02/2016,11-10519,720.00,6 Five 2s
Nottinghamshire County Council,1111/1001,Children and Young People,CYP,Transport Related,CCA,02/02/2016,11-10520,"1,056.00",6 Five 2s
Nottinghamshire County Council,1111/1001,Children and Young People,CYP,Transport Related,CCA,02/02/2016,11-10521,"1,508.60",6 Five 2s
Nottinghamshire County Council,1111/1001,Children and Young People,CYP,Transport Related,CCA,02/02/2016,11-10522,"1,233.60",6 Five 2s
Nottinghamshire County Council,1111/1001,Children and Young People,CYP,Transport Related,CCA,02/02/2016,11-10523,"1,056.00",6 Five 2s
Nottinghamshire County Council,1111/1001,Children and Young People,CYP,Transport Related,CCA,02/02/2016,11-10524,"1,328.60",6 Five 2s
Nottinghamshire County Council,1111/1001,Children and Young People,CYP,Transport Related,CCA,02/02/2016,11-10525,"1,316.00",6 Five 2s
Nottinghamshire County Council,1111/1001,Children and Young People,CYP,Transport Related,CCA,02/02/2016,11-10526,784.00,6 Five 2s
Nottinghamshire County Council,1111/1001,Children and Young People,CYP,Transport Related,CCA,02/02/2016,11-10527,"1,111.60",6 Five 2s
Nottinghamshire County Council,1111/1001,Children and Young People,CYP,Transport Related,CCA,02/02/2016,11-10530,"2,076.24",All Wayz Travel
Nottinghamshire County Council,1111/1001,Children and Young People,CYP,Transport Related,CCA,02/02/2016,11-10532,"2,063.04",Johnson Bros Tours Ltd
Nottinghamshire County Council,1111/1001,Children and Young People,CYP,Transport Related,CCA,02/02/2016,11-10539,"2,248.08",Arrow Specialised Transport Ltd
Nottinghamshire County Council,1111/1001,Children and Young People,CYP,Transport Related,CCA,02/02/2016,11-10540,"1,995.00",Arrow Specialised Transport Ltd
Nottinghamshire County Council,1111/1001,Children and Young People,CYP,Transport Related,CCA,02/02/2016,11-10541,"1,862.00",Arrow Specialised Transport Ltd
Nottinghamshire County Council,1111/1001,Children and Young People,CYP,Transport Related,CCA,02/02/2016,11-10543,"2,470.00",Arrow Specialised Transport Ltd
Nottinghamshire County Council,1111/1001,Children and Young People,CYP,Transport Related,CCA,02/02/2016,11-10544,"1,938.00",Arrow Specialised Transport Ltd
Nottinghamshire County Council,1111/1001,Children and Young People,CYP,Transport Related,CCA,02/02/2016,11-10545,"2,755.00",Arrow Specialised Transport Ltd
Nottinghamshire County Council,1111/1001,Children and Young People,CYP,Transport Related,CCA,02/02/2016,11-10546,"2,755.00",Arrow Specialised Transport Ltd
Nottinghamshire County Council,1111/1001,Children and Young People,CYP,Transport Related,CCA,02/02/2016,11-10547,"2,033.00",Arrow Specialised Transport Ltd
Nottinghamshire County Council,1111/1001,Children and Young People,CYP,Transport Related,CCA,02/02/2016,11-10548,"2,248.08",Arrow Specialised Transport Ltd
Nottinghamshire County Council,1111/1001,Children and Young People,CYP,Transport Related,CCA,02/02/2016,11-10549,"1,805.00",Arrow Specialised Transport Ltd
Nottinghamshire County Council,1111/1001,Children and Young People,CYP,Transport Related,CCA,02/02/2016,11-10550,"2,071.00",Arrow Specialised Transport Ltd
Nottinghamshire County Council,1111/1001,Children and Young People,CYP,Transport Related,CCA,02/02/2016,11-10551,"2,565.00",Arrow Specialised Transport Ltd
Nottinghamshire County Council,1111/1001,Children and Young People,CYP,Transport Related,CCA,02/02/2016,11-10552,"1,805.00",Arrow Specialised Transport Ltd
Nottinghamshire County Council,1111/1001,Children and Young People,CYP,Transport Related,CCA,02/02/2016,11-10553,"1,501.00",Arrow Specialised Transport Ltd
Nottinghamshire County Council,1111/1001,Children and Young People,CYP,Transport Related,CCA,02/02/2016,11-10554,"3,364.60",Arrow Specialised Transport Ltd
Nottinghamshire County Council,1111/1001,Children and Young People,CYP,Transport Related,CCA,02/02/2016,11-10555,"2,917.20",Arrow Specialised Transport Ltd
Nottinghamshire County Council,1111/1001,Children and Young People,CYP,Transport Related,CCA,02/02/2016,11-10556,972.23,Arrow Specialised Transport Ltd
Nottinghamshire County Council,1111/1001,Children and Young People,CYP,Transport Related,CCA,02/02/2016,11-10557,"1,688.72",Arrow Specialised Transport Ltd
Nottinghamshire County Council,1111/1001,Children and Young People,CYP,Transport Related,CCA,02/02/2016,11-10558,"2,254.54",Arrow Specialised Transport Ltd
Nottinghamshire County Council,1111/1001,Children and Young People,CYP,Transport Related,CCA,02/02/2016,11-10559,"1,964.41",Arrow Specialised Transport Ltd
Nottinghamshire County Council,1111/1001,Children and Young People,CYP,Transport Related,CCA,02/02/2016,11-10560,"1,812.60",Arrow Specialised Transport Ltd
Nottinghamshire County Council,1111/1001,Children and Young People,CYP,Transport Related,CCA,02/02/2016,11-10561,"2,198.30",Arrow Specialised Transport Ltd
Nottinghamshire County Council,1111/1001,Children and Young People,CYP,Transport Related,CCA,02/02/2016,11-10562,"2,699.71",Arrow Specialised Transport Ltd
Nottinghamshire County Council,1111/1001,Children and Young People,CYP,Transport Related,CCA,02/02/2016,11-10563,"3,143.55",Arrow Specialised Transport Ltd
Nottinghamshire County Council,1111/1001,Children and Young People,CYP,Transport Related,CCA,02/02/2016,11-10564,"1,941.80",Arrow Specialised Transport Ltd
Nottinghamshire County Council,1111/1001,Children and Young People,CYP,Transport Related,CCA,02/02/2016,11-10565,"2,184.80",Arrow Specialised Transport Ltd
Nottinghamshire County Council,1111/1001,Children and Young People,CYP,Transport Related,CCA,02/02/2016,11-10566,"1,836.92",Arrow Specialised Transport Ltd
Nottinghamshire County Council,1111/1001,Children and Young People,CYP,Transport Related,CCA,02/02/2016,11-10567,"1,674.00",Arrow Specialised Transport Ltd
Nottinghamshire County Council,1111/1001,Children and Young People,CYP,Transport Related,CCA,02/02/2016,11-10568,"1,881.00",Arrow Specialised Transport Ltd
Nottinghamshire County Council,1111/1001,Children and Young People,CYP,Transport Related,CCA,02/02/2016,11-10569,"1,854.00",Arrow Specialised Transport Ltd
Nottinghamshire County Council,1111/1001,Children and Young People,CYP,Transport Related,CCA,02/02/2016,11-10570,"1,890.00",Arrow Specialised Transport Ltd
Nottinghamshire County Council,1111/1001,Children and Young People,CYP,Transport Related,CCA,02/02/2016,11-10571,"1,872.00",Arrow Specialised Transport Ltd
Nottinghamshire County Council,1111/1001,Children and Young People,CYP,Transport Related,CCA,02/02/2016,11-10572,"2,265.30",Arrow Specialised Transport Ltd
Nottinghamshire County Council,1111/1001,Children and Young People,CYP,Transport Related,CCA,02/02/2016,11-10573,"2,088.00",Arrow Specialised Transport Ltd
Nottinghamshire County Council,1111/1001,Children and Young People,CYP,Transport Related,CCA,02/02/2016,11-10574,"1,728.00",Arrow Specialised Transport Ltd
Nottinghamshire County Council,1111/1001,Children and Young People,CYP,Transport Related,CCA,02/02/2016,11-10575,"2,160.00",Arrow Specialised Transport Ltd
Nottinghamshire County Council,1111/1001,Children and Young People,CYP,Transport Related,CCA,02/02/2016,11-10576,"2,280.00",Arrow Specialised Transport Ltd
Nottinghamshire County Council,1111/1001,Children and Young People,CYP,Transport Related,CCA,02/02/2016,11-10578,"1,039.55",Arrow Specialised Transport Ltd
Nottinghamshire County Council,1111/1001,Children and Young People,CYP,Transport Related,CCA,02/02/2016,11-10580,"1,854.00",Arrow Specialised Transport Ltd
Nottinghamshire County Council,1111/1001,Children and Young People,CYP,Transport Related,CCA,02/02/2016,11-10581,"1,872.00",Arrow Specialised Transport Ltd
Nottinghamshire County Council,1111/1001,Children and Young People,CYP,Transport Related,CCA,02/02/2016,11-10582,"2,652.40",Arrow Specialised Transport Ltd
Nottinghamshire County Council,1111/1001,Children and Young People,CYP,Transport Related,CCA,02/02/2016,11-10583,"1,440.00",Arrow Specialised Transport Ltd
Nottinghamshire County Council,1111/1001,Children and Young People,CYP,Transport Related,CCA,02/02/2016,11-10584,"1,638.00",Arrow Specialised Transport Ltd
Nottinghamshire County Council,1111/1001,Children and Young People,CYP,Transport Related,CCA,02/02/2016,11-10585,"1,872.00",Arrow Specialised Transport Ltd
Nottinghamshire County Council,1111/1001,Children and Young People,CYP,Transport Related,CCA,02/02/2016,11-10586,"3,360.00",Arrow Specialised Transport Ltd
Nottinghamshire County Council,1111/1001,Children and Young People,CYP,Transport Related,CCA,02/02/2016,11-10587,"9,789.20",Arrow Specialised Transport Ltd
Nottinghamshire County Council,1111/1001,Children and Young People,CYP,Transport Related,CCA,02/02/2016,11-10588,"2,322.00",Arrow Specialised Transport Ltd
Nottinghamshire County Council,1111/1001,Children and Young People,CYP,Transport Related,CCA,02/02/2016,11-10589,"2,700.00",Arrow Specialised Transport Ltd
Nottinghamshire County Council,1111/1001,Children and Young People,CYP,Transport Related,CCA,02/02/2016,11-10590,"1,080.00",Arrow Specialised Transport Ltd
Nottinghamshire County Council,1111/1001,Children and Young People,CYP,Transport Related,CCA,02/02/2016,11-10591,"2,043.88",Arrow Specialised Transport Ltd
Nottinghamshire County Council,1111/1001,Children and Young People,CYP,Transport Related,CCA,02/02/2016,11-10593,"2,150.04",Arrow Specialised Transport Ltd
Nottinghamshire County Council,1111/1001,Children and Young People,CYP,Transport Related,CCA,02/02/2016,11-10595,927.00,Arrow Specialised Transport Ltd
Nottinghamshire County Council,1111/1001,Children and Young People,CYP,Transport Related,CCA,02/02/2016,11-10597,"2,500.40",Arrow Specialised Transport Ltd
Nottinghamshire County Council,1111/1001,Children and Young People,CYP,Transport Related,CCA,02/02/2016,11-10598,"1,881.00",Arrow Specialised Transport Ltd
Nottinghamshire County Council,1111/1001,Children and Young People,CYP,Transport Related,CCA,02/02/2016,11-10599,"2,261.00",Arrow Specialised Transport Ltd
Nottinghamshire County Council,1111/1001,Children and Young People,CYP,Transport Related,CCA,02/02/2016,11-10600,"1,236.60",Arrow Specialised Transport Ltd
Nottinghamshire County Council,1111/1001,Children and Young People,CYP,Transport Related,CCA,02/02/2016,11-10602,"1,513.00",Arrow Specialised Transport Ltd
Nottinghamshire County Council,1111/1001,Children and Young People,CYP,Transport Related,CCA,02/02/2016,11-10603,"2,635.68",Arrow Specialised Transport Ltd
Nottinghamshire County Council,1111/1001,Children and Young People,CYP,Transport Related,CCA,02/02/2016,11-10611,"1,432.00",Bridges Transport Services
Nottinghamshire County Council,1111/1001,Children and Young People,CYP,Transport Related,CCA,02/02/2016,11-10613,"1,900.00",Bridges Transport Services
Nottinghamshire County Council,1111/1001,Children and Young People,CYP,Transport Related,CCA,02/02/2016,11-10614,"1,615.00",Bridges Transport Services
Nottinghamshire County Council,1111/1001,Children and Young People,CYP,Transport Related,CCA,02/02/2016,11-10615,"1,277.75",Bridges Transport Services
Nottinghamshire County Council,1111/1001,Children and Young People,CYP,Transport Related,CCA,02/02/2016,11-10616,"1,567.50",Bridges Transport Services
Nottinghamshire County Council,1111/1001,Children and Young People,CYP,Transport Related,CCA,02/02/2016,11-10617,"1,286.20",Bridges Transport Services
Nottinghamshire County Council,1111/1001,Children and Young People,CYP,Transport Related,CCA,02/02/2016,11-10618,821.70,Bridges Transport Services
Nottinghamshire County Council,1111/1001,Children and Young People,CYP,Transport Related,CCA,02/02/2016,11-10619,"1,224.00",Bridges Transport Services
Nottinghamshire County Council,1111/1001,Children and Young People,CYP,Transport Related,CCA,02/02/2016,11-10620,"3,051.80",Bridges Transport Services
Nottinghamshire County Council,1111/1001,Children and Young People,CYP,Transport Related,CCA,02/02/2016,11-10621,"1,176.80",Bridges Transport Services
Nottinghamshire County Council,1111/1001,Children and Young People,CYP,Transport Related,CCA,02/02/2016,11-10622,"3,329.12",Bridges Transport Services
Nottinghamshire County Council,1111/1001,Children and Young People,CYP,Transport Related,CCA,02/02/2016,11-10623,"1,859.04",Bridges Transport Services
Nottinghamshire County Council,1111/1001,Children and Young People,CYP,Transport Related,CCA,02/02/2016,11-10624,"2,514.96",Bridges Transport Services
Nottinghamshire County Council,1111/1001,Children and Young People,CYP,Transport Related,CCA,02/02/2016,11-10625,"2,864.20",Bridges Transport Services
Nottinghamshire County Council,1111/1001,Children and Young People,CYP,Transport Related,CCA,02/02/2016,11-10626,"1,394.60",Bridges Transport Services
Nottinghamshire County Council,1111/1001,Children and Young People,CYP,Transport Related,CCA,02/02/2016,11-10627,973.61,Bridges Transport Services
Nottinghamshire County Council,1111/1001,Children and Young People,CYP,Transport Related,CCA,02/02/2016,11-10629,"1,881.00",Bridges Transport Services
Nottinghamshire County Council,1111/1001,Children and Young People,CYP,Transport Related,CCA,02/02/2016,11-10630,"2,162.01",Bridges Transport Services
Nottinghamshire County Council,1111/1001,Children and Young People,CYP,Transport Related,CCA,02/02/2016,11-10631,"2,270.50",Bridges Transport Services
Nottinghamshire County Council,1111/1001,Children and Young People,CYP,Transport Related,CCA,02/02/2016,11-10632,"2,742.80",Bridges Transport Services
Nottinghamshire County Council,1111/1001,Children and Young People,CYP,Transport Related,CCA,02/02/2016,11-10633,"2,508.00",Bridges Transport Services
Nottinghamshire County Council,1111/1001,Children and Young People,CYP,Transport Related,CCA,02/02/2016,11-10637,"1,890.00",Fozcabs Newark Taxis
Nottinghamshire County Council,1111/1001,Children and Young People,CYP,Transport Related,CCA,02/02/2016,11-10638,"1,080.00",Fozcabs Newark Taxis
Nottinghamshire County Council,1111/1001,Children and Young People,CYP,Transport Related,CCA,02/02/2016,11-10639,874.00,Fozcabs Newark Taxis
Nottinghamshire County Council,1111/1001,Children and Young People,CYP,Transport Related,CCA,02/02/2016,11-10641,"1,537.50",Fozcabs Newark Taxis
Nottinghamshire County Council,1111/1001,Children and Young People,CYP,Transport Related,CCA,02/02/2016,11-10644,"2,460.50",K & S Coaches
Nottinghamshire County Council,1111/1001,Children and Young People,CYP,Transport Related,CCA,02/02/2016,11-10645,"2,337.30",Midfield Travel
Nottinghamshire County Council,1111/1001,Children and Young People,CYP,Transport Related,CCA,02/02/2016,11-10648,840.00,P & P Taxis
Nottinghamshire County Council,1111/1001,Children and Young People,CYP,Transport Related,CCA,02/02/2016,11-10649,640.00,P & P Taxis
Nottinghamshire County Council,1111/1001,Children and Young People,CYP,Transport Related,CCA,02/02/2016,11-10650,800.00,P & P Taxis
Nottinghamshire County Council,1111/1001,Children and Young People,CYP,Transport Related,CCA,02/02/2016,11-10652,"3,095.00",Freeway Coaches Ltd
Nottinghamshire County Council,1111/1001,Children and Young People,CYP,Transport Related,CCA,02/02/2016,11-10653,"3,524.50",Freeway Coaches Ltd
Nottinghamshire County Council,1111/1001,Children and Young People,CYP,Transport Related,CCA,03/02/2016,11-10763,"3,264.00",Johnson Bros Tours Ltd
Nottinghamshire County Council,1111/1001,Children and Young People,CYP,Transport Related,CCA,03/02/2016,11-10769,950.00,Acorn Contracts
Nottinghamshire County Council,1111/1001,Children and Young People,CYP,Transport Related,CCA,03/02/2016,11-10772,"1,089.50",Acorn Contracts
Nottinghamshire County Council,1111/1001,Children and Young People,CYP,Transport Related,CCA,03/02/2016,11-10774,912.00,Alpha Cars
Nottinghamshire County Council,1111/1001,Children and Young People,CYP,Transport Related,CCA,03/02/2016,11-10775,300.00,Alpha Cars
Nottinghamshire County Council,1111/1001,Children and Young People,CYP,Transport Related,CCA,03/02/2016,11-10778,880.00,Alpha Cars
Nottinghamshire County Council,1111/1001,Children and Young People,CYP,Transport Related,CCA,03/02/2016,11-10780,"1,120.00",Arrow Specialised Transport Ltd
Nottinghamshire County Council,1111/1001,Children and Young People,CYP,Transport Related,CCA,03/02/2016,11-10781,"2,090.00",Arrow Specialised Transport Ltd
Nottinghamshire County Council,1111/1001,Children and Young People,CYP,Transport Related,CCA,03/02/2016,11-10782,"2,036.23",Arrow Specialised Transport Ltd
Nottinghamshire County Council,1111/1001,Children and Young People,CYP,Transport Related,CCA,03/02/2016,11-10783,"2,620.00",Arrow Specialised Transport Ltd
Nottinghamshire County Council,1111/1001,Children and Young People,CYP,Transport Related,CCA,03/02/2016,11-10784,"1,193.44",Arrow Specialised Transport Ltd
Nottinghamshire County Council,1111/1001,Children and Young People,CYP,Transport Related,CCA,03/02/2016,11-10785,"2,040.00",Arrow Specialised Transport Ltd
Nottinghamshire County Council,1111/1001,Children and Young People,CYP,Transport Related,CCA,03/02/2016,11-10786,"1,452.48",Arrow Specialised Transport Ltd
Nottinghamshire County Council,1111/1001,Children and Young People,CYP,Transport Related,CCA,03/02/2016,11-10787,"2,048.00",Arrow Specialised Transport Ltd
Nottinghamshire County Council,1111/1001,Children and Young People,CYP,Transport Related,CCA,03/02/2016,11-10788,"1,361.92",Arrow Specialised Transport Ltd
Nottinghamshire County Council,1111/1001,Children and Young People,CYP,Transport Related,CCA,03/02/2016,11-10789,609.44,Arrow Specialised Transport Ltd
Nottinghamshire County Council,1111/1001,Children and Young People,CYP,Transport Related,CCA,03/02/2016,11-10791,"1,429.12",Arrow Specialised Transport Ltd
Nottinghamshire County Council,1111/1001,Children and Young People,CYP,Transport Related,CCA,03/02/2016,11-10792,"1,577.92",Arrow Specialised Transport Ltd
Nottinghamshire County Council,1111/1001,Children and Young People,CYP,Transport Related,CCA,03/02/2016,11-10793,"1,591.04",Arrow Specialised Transport Ltd
Nottinghamshire County Council,1111/1001,Children and Young People,CYP,Transport Related,CCA,03/02/2016,11-10794,"1,155.36",Arrow Specialised Transport Ltd
Nottinghamshire County Council,1111/1001,Children and Young People,CYP,Transport Related,CCA,03/02/2016,11-10797,"2,156.31",Arrow Specialised Transport Ltd
Nottinghamshire County Council,1111/1001,Children and Young People,CYP,Transport Related,CCA,03/02/2016,11-10798,"2,243.71",Arrow Specialised Transport Ltd
Nottinghamshire County Council,1111/1001,Children and Young People,CYP,Transport Related,CCA,03/02/2016,11-10799,"2,812.00",Arrow Specialised Transport Ltd
Nottinghamshire County Council,1111/1001,Children and Young People,CYP,Transport Related,CCA,03/02/2016,11-10800,"1,976.00",Arrow Specialised Transport Ltd
Nottinghamshire County Council,1111/1001,Children and Young People,CYP,Transport Related,CCA,03/02/2016,11-10801,"1,881.00",Arrow Specialised Transport Ltd
Nottinghamshire County Council,1111/1001,Children and Young People,CYP,Transport Related,CCA,03/02/2016,11-10802,"2,090.00",Arrow Specialised Transport Ltd
Nottinghamshire County Council,1111/1001,Children and Young People,CYP,Transport Related,CCA,03/02/2016,11-10803,"2,128.00",Arrow Specialised Transport Ltd
Nottinghamshire County Council,1111/1001,Children and Young People,CYP,Transport Related,CCA,03/02/2016,11-10804,"1,831.00",Fozcabs Newark Taxis
Nottinghamshire County Council,1111/1001,Children and Young People,CYP,Transport Related,CCA,03/02/2016,11-10806,"3,583.40",Galaxy Cabs
Nottinghamshire County Council,1111/1001,Children and Young People,CYP,Transport Related,CCA,03/02/2016,11-10807,"1,162.80",Galaxy Cabs
Nottinghamshire County Council,1111/1001,Children and Young People,CYP,Transport Related,CCA,03/02/2016,11-10809,"1,140.00",Galaxy Cabs
Nottinghamshire County Council,1111/1001,Children and Young People,CYP,Transport Related,CCA,03/02/2016,11-10811,"2,090.00",Horizon Travel
Nottinghamshire County Council,1111/1001,Children and Young People,CYP,Transport Related,CCA,03/02/2016,11-10812,"2,401.22",Horizon Travel
Nottinghamshire County Council,1111/1001,Children and Young People,CYP,Transport Related,CCA,03/02/2016,11-10814,"3,087.50",Ja Travel Ltd
Nottinghamshire County Council,1111/1001,Children and Young People,CYP,Transport Related,CCA,03/02/2016,11-10815,"2,880.00",Ja Travel Ltd
Nottinghamshire County Council,1111/1001,Children and Young People,CYP,Transport Related,CCA,03/02/2016,11-10816,"1,680.74",Ja Travel Ltd
Nottinghamshire County Council,1111/1001,Children and Young People,CYP,Transport Related,CCA,03/02/2016,11-10818,"2,652.00",Shelleys Taxis Ltd
Nottinghamshire County Council,1111/1001,Children and Young People,CYP,Transport Related,CCA,03/02/2016,11-10819,"1,064.00",Shelleys Taxis Ltd
Nottinghamshire County Council,1111/1001,Children and Young People,CYP,Transport Related,CCA,03/02/2016,11-10820,"1,620.00",Shelleys Taxis Ltd
Nottinghamshire County Council,1111/1001,Children and Young People,CYP,Transport Related,CCA,03/02/2016,11-10821,620.00,Shelleys Taxis Ltd
Nottinghamshire County Council,1111/1001,Children and Young People,CYP,Transport Related,CCA,03/02/2016,11-10822,750.00,Shelleys Taxis Ltd
Nottinghamshire County Council,1111/1001,Children and Young People,CYP,Transport Related,CCA,03/02/2016,11-10823,"1,020.00",Shelleys Taxis Ltd
Nottinghamshire County Council,1111/1001,Children and Young People,CYP,Transport Related,CCA,03/02/2016,11-10824,"1,710.00",Shelleys Taxis Ltd
Nottinghamshire County Council,1111/1001,Children and Young People,CYP,Transport Related,CCA,03/02/2016,11-10825,"1,501.00",Shelleys Taxis Ltd
Nottinghamshire County Council,1111/1001,Children and Young People,CYP,Transport Related,CCA,03/02/2016,11-10826,"1,330.00",Shelleys Taxis Ltd
Nottinghamshire County Council,1111/1001,Children and Young People,CYP,Transport Related,CCA,03/02/2016,11-10827,"1,900.00",Shelleys Taxis Ltd
Nottinghamshire County Council,1111/1001,Children and Young People,CYP,Transport Related,CCA,03/02/2016,11-10828,950.00,Shelleys Taxis Ltd
Nottinghamshire County Council,1111/1001,Children and Young People,CYP,Transport Related,CCA,03/02/2016,11-10829,"1,102.00",Shelleys Taxis Ltd
Nottinghamshire County Council,1111/1001,Children and Young People,CYP,Transport Related,CCA,03/02/2016,11-10831,"1,030.40",Shelleys Taxis Ltd
Nottinghamshire County Council,1111/1001,Children and Young People,CYP,Transport Related,CCA,03/02/2016,11-10833,765.00,Shelleys Taxis Ltd
Nottinghamshire County Council,1111/1001,Children and Young People,CYP,Transport Related,CCA,03/02/2016,11-10835,"2,242.00",Sprays Transport Ltd
Nottinghamshire County Council,1111/1001,Children and Young People,CYP,Transport Related,CCA,03/02/2016,11-10836,"1,937.24",Sprays Transport Ltd
Nottinghamshire County Council,1111/1001,Children and Young People,CYP,Transport Related,CCA,03/02/2016,11-10837,"1,568.00",Sprays Transport Ltd
Nottinghamshire County Council,1111/1001,Children and Young People,CYP,Transport Related,CCA,03/02/2016,11-10838,"1,647.00",Sprays Transport Ltd
Nottinghamshire County Council,1111/1001,Children and Young People,CYP,Transport Related,CCA,03/02/2016,11-10840,"1,840.00",Sprays Transport Ltd
Nottinghamshire County Council,1111/1001,Children and Young People,CYP,Transport Related,CCA,03/02/2016,11-10841,"1,782.96",Sprays Transport Ltd
Nottinghamshire County Council,1111/1001,Children and Young People,CYP,Transport Related,CCA,03/02/2016,11-10842,"1,513.12",Sprays Transport Ltd
Nottinghamshire County Council,1111/1001,Children and Young People,CYP,Transport Related,CCA,03/02/2016,11-10843,"1,841.10",Sprays Transport Ltd
Nottinghamshire County Council,1111/1001,Children and Young People,CYP,Transport Related,CCA,03/02/2016,11-10844,"2,090.00",Sprays Transport Ltd
Nottinghamshire County Council,1111/1001,Children and Young People,CYP,Transport Related,CCA,03/02/2016,11-10845,"1,890.00",Sprays Transport Ltd
Nottinghamshire County Council,1111/1001,Children and Young People,CYP,Transport Related,CCA,03/02/2016,11-10846,"1,944.00",Sprays Transport Ltd
Nottinghamshire County Council,1111/1001,Children and Young People,CYP,Transport Related,CCA,03/02/2016,11-10848,"1,581.40",Sprays Transport Ltd
Nottinghamshire County Council,1111/1001,Children and Young People,CYP,Transport Related,CCA,03/02/2016,11-10849,"1,840.00",Sprays Transport Ltd
Nottinghamshire County Council,1111/1001,Children and Young People,CYP,Transport Related,CCA,03/02/2016,11-10850,"2,052.00",Sprays Transport Ltd
Nottinghamshire County Council,1111/1001,Children and Young People,CYP,Transport Related,CCA,03/02/2016,11-10851,"2,070.00",Sprays Transport Ltd
Nottinghamshire County Council,1111/1001,Children and Young People,CYP,Transport Related,CCA,03/02/2016,11-10853,"2,000.00",Sprays Transport Ltd
Nottinghamshire County Council,1111/1001,Children and Young People,CYP,Transport Related,CCA,03/02/2016,11-10854,"1,830.00",Sprays Transport Ltd
Nottinghamshire County Council,1111/1001,Children and Young People,CYP,Transport Related,CCA,03/02/2016,11-10856,"2,020.46",Sprays Transport Ltd
Nottinghamshire County Council,1111/1001,Children and Young People,CYP,Transport Related,CCA,03/02/2016,11-10857,"2,147.00",Sprays Transport Ltd
Nottinghamshire County Council,1111/1001,Children and Young People,CYP,Transport Related,CCA,03/02/2016,11-10859,"1,830.00",Sprays Transport Ltd
Nottinghamshire County Council,1111/1001,Children and Young People,CYP,Transport Related,CCA,03/02/2016,11-10865,"2,616.30",F & J Marriott T/A Unity Coaches
Nottinghamshire County Council,1111/1001,Children and Young People,CYP,Transport Related,CCA,03/02/2016,11-10866,"2,616.30",F & J Marriott T/A Unity Coaches
Nottinghamshire County Council,1111/1001,Children and Young People,CYP,Transport Related,CCA,03/02/2016,11-10867,"2,695.34",F & J Marriott T/A Unity Coaches
Nottinghamshire County Council,1111/1001,Children and Young People,CYP,Transport Related,CCA,03/02/2016,11-10871,"3,230.00",Vallances Coaches
Nottinghamshire County Council,1111/1001,Children and Young People,CYP,Transport Related,CCA,03/02/2016,11-10873,"2,812.00",Vallances Coaches
Nottinghamshire County Council,1111/1001,Children and Young People,CYP,Transport Related,CCA,03/02/2016,11-10874,"2,679.40",Vallances Coaches
Nottinghamshire County Council,1111/1001,Children and Young People,CYP,Transport Related,CCA,03/02/2016,11-10877,528.00,Elkingtons Park Garage
Nottinghamshire County Council,1111/1001,Children and Young People,CYP,Transport Related,CCA,03/02/2016,11-10878,"1,014.00",Gem Mini Travel Ltd
Nottinghamshire County Council,1111/1001,Children and Young People,CYP,Transport Related,CCA,03/02/2016,11-10879,"6,257.15",Gem Mini Travel Ltd
Nottinghamshire County Council,1111/1001,Children and Young People,CYP,Transport Related,CCA,03/02/2016,11-10892,"1,526.70",Nunns Cars
Nottinghamshire County Council,1111/1001,Children and Young People,CYP,Transport Related,CCA,03/02/2016,11-10893,760.00,Nunns Cars
Nottinghamshire County Council,1111/1001,Children and Young People,CYP,Transport Related,CCA,03/02/2016,11-10902,"2,720.00",K Matthews Travel
Nottinghamshire County Council,1111/1001,Children and Young People,CYP,Transport Related,CCA,03/02/2016,11-10909,"1,389.00",Rio Cabs
Nottinghamshire County Council,1111/1001,Children and Young People,CYP,Transport Related,CCA,03/02/2016,11-10911,679.92,Rio Cabs
Nottinghamshire County Council,1111/1001,Children and Young People,CYP,Transport Related,CCA,03/02/2016,11-10912,"1,740.00",Town Cars (UK) Ltd
Nottinghamshire County Council,1111/1001,Children and Young People,CYP,Transport Related,CCA,03/02/2016,11-10913,672.00,Town Cars (UK) Ltd
Nottinghamshire County Council,1111/1001,Children and Young People,CYP,Transport Related,CCA,03/02/2016,11-10914,550.80,Town Cars (UK) Ltd
Nottinghamshire County Council,1111/1001,Children and Young People,CYP,Transport Related,CCA,03/02/2016,11-10915,684.00,Town Cars (UK) Ltd
Nottinghamshire County Council,1111/1001,Children and Young People,CYP,Transport Related,CCA,03/02/2016,11-10917,"1,160.00",Town Cars (UK) Ltd
Nottinghamshire County Council,1111/1001,Children and Young People,CYP,Transport Related,CCA,03/02/2016,11-10919,"3,246.91",L A Travel
Nottinghamshire County Council,1111/1001,Children and Young People,CYP,Transport Related,CCA,03/02/2016,11-10920,575.00,Diamond Cars
Nottinghamshire County Council,1111/1001,Children and Young People,CYP,Transport Related,CCA,03/02/2016,11-10921,"1,395.00",Nottingham Coaches
Nottinghamshire County Council,1111/1001,Children and Young People,CYP,Transport Related,CCA,03/02/2016,11-10928,"1,760.00",Eurocab 2000 Ltd
Nottinghamshire County Council,1111/1001,Children and Young People,CYP,Transport Related,CCA,03/02/2016,11-10930,"1,200.00",Eurocab 2000 Ltd
Nottinghamshire County Council,1111/1001,Children and Young People,CYP,Transport Related,CCA,03/02/2016,11-10933,548.50,Eurocab 2000 Ltd
Nottinghamshire County Council,1111/1001,Children and Young People,CYP,Transport Related,CCA,03/02/2016,11-10936,"1,900.00",Trevor Bailey t/a Trevor Bailey Tra
Nottinghamshire County Council,1111/1001,Children and Young People,CYP,Transport Related,CCA,03/02/2016,11-10937,942.80,Eastwood Cars (UK) Ltd
Nottinghamshire County Council,1111/1001,Children and Young People,CYP,Transport Related,CCA,03/02/2016,11-10940,"1,862.00",Forest Cars
Nottinghamshire County Council,1111/1001,Children and Young People,CYP,Transport Related,CCA,03/02/2016,11-10941,"1,323.00",Forest Cars
Nottinghamshire County Council,1111/1001,Children and Young People,CYP,Transport Related,CCA,03/02/2016,11-10942,572.80,Forest Cars
Nottinghamshire County Council,1111/1001,Children and Young People,CYP,Transport Related,CCA,03/02/2016,11-10944,"1,480.00",Forest Cars
Nottinghamshire County Council,1111/1001,Children and Young People,CYP,Transport Related,CCA,03/02/2016,11-10945,600.40,Forest Cars
Nottinghamshire County Council,1111/1001,Children and Young People,CYP,Transport Related,CCA,03/02/2016,11-10946,"1,216.00",Forest Cars
Nottinghamshire County Council,1111/1001,Children and Young People,CYP,Transport Related,CCA,03/02/2016,11-10947,"1,400.00",Sean's Taxi Services
Nottinghamshire County Council,1111/1001,Children and Young People,CYP,Transport Related,CCA,04/02/2016,11-11203,"2,677.50",Johnson Bros Tours Ltd
Nottinghamshire County Council,1111/1001,Children and Young People,CYP,Transport Related,CCA,04/02/2016,11-11204,"3,264.00",Johnson Bros Tours Ltd
Nottinghamshire County Council,1111/1001,Children and Young People,CYP,Transport Related,CCA,04/02/2016,11-11208,810.00,Ace Of Mansfield Ltd
Nottinghamshire County Council,1111/1001,Children and Young People,CYP,Transport Related,CCA,04/02/2016,11-11210,"1,110.00",Ace Of Mansfield Ltd
Nottinghamshire County Council,1111/1001,Children and Young People,CYP,Transport Related,CCA,04/02/2016,11-11211,544.00,Ace Of Mansfield Ltd
Nottinghamshire County Council,1111/1001,Children and Young People,CYP,Transport Related,CCA,04/02/2016,11-11213,"1,800.00",Ace Of Mansfield Ltd
Nottinghamshire County Council,1111/1001,Children and Young People,CYP,Transport Related,CCA,04/02/2016,11-11214,"1,334.00",Ace Of Mansfield Ltd
Nottinghamshire County Council,1111/1001,Children and Young People,CYP,Transport Related,CCA,04/02/2016,11-11215,"1,564.00",Ace Of Mansfield Ltd
Nottinghamshire County Council,1111/1001,Children and Young People,CYP,Transport Related,CCA,04/02/2016,11-11216,"1,800.00",Ace Of Mansfield Ltd
Nottinghamshire County Council,1111/1001,Children and Young People,CYP,Transport Related,CCA,04/02/2016,11-11218,"1,640.46",Arrow Specialised Transport Ltd
Nottinghamshire County Council,1111/1001,Children and Young People,CYP,Transport Related,CCA,04/02/2016,11-11219,"2,204.00",Arrow Specialised Transport Ltd
Nottinghamshire County Council,1111/1001,Children and Young People,CYP,Transport Related,CCA,04/02/2016,11-11220,"2,394.00",Bridges Transport Services
Nottinghamshire County Council,1111/1001,Children and Young People,CYP,Transport Related,CCA,04/02/2016,11-11221,"1,200.00",Bridges Transport Services
Nottinghamshire County Council,1111/1001,Children and Young People,CYP,Transport Related,CCA,04/02/2016,11-11222,800.00,D G Private Hire Ltd
Nottinghamshire County Council,1111/1001,Children and Young People,CYP,Transport Related,CCA,04/02/2016,11-11224,"2,118.12",D G Private Hire Ltd
Nottinghamshire County Council,1111/1001,Children and Young People,CYP,Transport Related,CCA,04/02/2016,11-11225,"2,391.91",D G Private Hire Ltd
Nottinghamshire County Council,1111/1001,Children and Young People,CYP,Transport Related,CCA,04/02/2016,11-11226,"1,680.00",Headland Taxi Services
Nottinghamshire County Council,1111/1001,Children and Young People,CYP,Transport Related,CCA,04/02/2016,11-11227,665.00,D G Private Hire Ltd
Nottinghamshire County Council,1111/1001,Children and Young People,CYP,Transport Related,CCA,04/02/2016,11-11228,"1,259.70",D G Private Hire Ltd
Nottinghamshire County Council,1111/1001,Children and Young People,CYP,Transport Related,CCA,04/02/2016,11-11229,"2,527.00",D G Private Hire Ltd
Nottinghamshire County Council,1111/1001,Children and Young People,CYP,Transport Related,CCA,04/02/2016,11-11230,"1,600.00",D G Private Hire Ltd
Nottinghamshire County Council,1111/1001,Children and Young People,CYP,Transport Related,CCA,04/02/2016,11-11231,"1,120.00",D G Private Hire Ltd
Nottinghamshire County Council,1111/1001,Children and Young People,CYP,Transport Related,CCA,04/02/2016,11-11232,"1,140.00",D G Private Hire Ltd
Nottinghamshire County Council,1111/1001,Children and Young People,CYP,Transport Related,CCA,04/02/2016,11-11233,"1,520.00",D G Private Hire Ltd
Nottinghamshire County Council,1111/1001,Children and Young People,CYP,Transport Related,CCA,04/02/2016,11-11234,"1,893.60",D G Private Hire Ltd
Nottinghamshire County Council,1111/1001,Children and Young People,CYP,Transport Related,CCA,04/02/2016,11-11236,"1,235.00",Abacus Cars
Nottinghamshire County Council,1111/1001,Children and Young People,CYP,Transport Related,CCA,04/02/2016,11-11246,"1,330.00",Abacus Cars
Nottinghamshire County Council,1111/1001,Children and Young People,CYP,Transport Related,CCA,04/02/2016,11-11247,"1,748.00",Abacus Cars
Nottinghamshire County Council,1111/1001,Children and Young People,CYP,Transport Related,CCA,04/02/2016,11-11249,"1,615.00",Abacus Cars
Nottinghamshire County Council,1111/1001,Children and Young People,CYP,Transport Related,CCA,04/02/2016,11-11250,"1,805.00",Abacus Cars
Nottinghamshire County Council,1111/1001,Children and Young People,CYP,Transport Related,CCA,04/02/2016,11-11251,"1,900.00",Abacus Cars
Nottinghamshire County Council,1111/1001,Children and Young People,CYP,Transport Related,CCA,04/02/2016,11-11252,"1,080.00",Abacus Cars
Nottinghamshire County Council,1111/1001,Children and Young People,CYP,Transport Related,CCA,04/02/2016,11-11255,571.20,Abacus Cars
Nottinghamshire County Council,1111/1001,Children and Young People,CYP,Transport Related,CCA,04/02/2016,11-11256,"3,200.00",Abacus Cars
Nottinghamshire County Council,1111/1001,Children and Young People,CYP,Transport Related,CCA,04/02/2016,11-11258,"1,615.00",Abacus Cars
Nottinghamshire County Council,1111/1001,Children and Young People,CYP,Transport Related,CCA,04/02/2016,11-11259,"1,476.00",Abacus Cars
Nottinghamshire County Council,1111/1001,Children and Young People,CYP,Transport Related,CCA,04/02/2016,11-11262,"1,330.00",Abacus Cars
Nottinghamshire County Council,1111/1001,Children and Young People,CYP,Transport Related,CCA,04/02/2016,11-11263,"1,600.00",Abacus Cars
Nottinghamshire County Council,1111/1001,Children and Young People,CYP,Transport Related,CCA,04/02/2016,11-11265,"1,265.40",Abacus Cars
Nottinghamshire County Council,1111/1001,Children and Young People,CYP,Transport Related,CCA,04/02/2016,11-11267,"2,648.98",Travel Wright Ltd
Nottinghamshire County Council,1111/1001,Children and Young People,CYP,Transport Related,CCA,04/02/2016,11-11269,"1,514.50",Travel Wright Ltd
Nottinghamshire County Council,1111/1001,Children and Young People,CYP,Transport Related,CCA,05/02/2016,11-11340,914.00,Mars Cars Ltd
Nottinghamshire County Council,1111/1001,Children and Young People,CYP,Transport Related,CCA,05/02/2016,11-11342,720.00,200 Cars Ltd
Nottinghamshire County Council,1111/1001,Children and Young People,CYP,Transport Related,CCA,05/02/2016,11-11343,567.00,CBC Taxis Ltd
Nottinghamshire County Council,1111/1001,Children and Young People,CYP,Transport Related,CCA,05/02/2016,11-11344,"2,949.18",CBC Taxis Ltd
Nottinghamshire County Council,1111/1001,Children and Young People,CYP,Transport Related,CCA,05/02/2016,11-11345,"1,460.00",CBC Taxis Ltd
Nottinghamshire County Council,1111/1001,Children and Young People,CYP,Transport Related,CCA,05/02/2016,11-11348,"1,520.00",CBC Taxis Ltd
Nottinghamshire County Council,1111/1001,Children and Young People,CYP,Transport Related,CCA,05/02/2016,11-11349,999.00,CBC Taxis Ltd
Nottinghamshire County Council,1111/1001,Children and Young People,CYP,Transport Related,CCA,05/02/2016,11-11354,"1,400.00",Ng11 Cars
Nottinghamshire County Council,1111/1001,Children and Young People,CYP,Transport Related,CCA,05/02/2016,11-11355,"1,760.00",Ng11 Cars
Nottinghamshire County Council,1111/1001,Children and Young People,CYP,Transport Related,CCA,05/02/2016,11-11357,"1,360.00",Ng11 Cars
Nottinghamshire County Council,1111/1001,Children and Young People,CYP,Transport Related,CCA,05/02/2016,11-11358,648.00,Ng11 Cars
Nottinghamshire County Council,1111/1001,Children and Young People,CYP,Transport Related,CCA,05/02/2016,11-11359,950.00,Ng11 Cars
Nottinghamshire County Council,1111/1001,Children and Young People,CYP,Transport Related,CCA,05/02/2016,11-11362,"1,295.00",Ng11 Cars
Nottinghamshire County Council,1111/1001,Children and Young People,CYP,Transport Related,CCA,05/02/2016,11-11363,"1,456.00",Ng11 Cars
Nottinghamshire County Council,1111/1001,Children and Young People,CYP,Transport Related,CCA,05/02/2016,11-11384,760.00,P & P Taxis
Nottinghamshire County Council,1111/1001,Children and Young People,CYP,Transport Related,CCA,05/02/2016,11-11388,"1,600.00",P & P Taxis
Nottinghamshire County Council,1111/1001,Children and Young People,CYP,Transport Related,CCA,05/02/2016,11-11395,840.00,I Can Charity
Nottinghamshire County Council,1111/1001,Children and Young People,CYP,Transport Related,CCA,05/02/2016,11-11397,"3,432.60",Target Taxis
Nottinghamshire County Council,1111/1001,Children and Young People,CYP,Transport Related,CCA,05/02/2016,11-11398,680.00,A2B Licensed Taxis
Nottinghamshire County Council,1111/1001,Children and Young People,CYP,Transport Related,CCA,10/02/2016,11-11855,"16,100.00",Sharpes Of Nottingham
Nottinghamshire County Council,1111/1001,Children and Young People,CYP,Transport Related,CCA,10/02/2016,11-11856,"1,652.40",Central Cars Nottm Ltd
Nottinghamshire County Council,1111/1001,Children and Young People,CYP,Transport Related,CCA,10/02/2016,11-11858,"1,836.00",Central Cars Nottm Ltd
Nottinghamshire County Council,1111/1001,Children and Young People,CYP,Transport Related,CCA,10/02/2016,11-11859,"2,018.75",F4Control Ltd (t/a First4care)
Nottinghamshire County Council,1111/1001,Children and Young People,CYP,Transport Related,CCA,10/02/2016,11-11860,"1,860.67",F4Control Ltd (t/a First4care)
Nottinghamshire County Council,1111/1001,Children and Young People,CYP,Transport Related,CCA,10/02/2016,11-11861,"2,274.87",F4Control Ltd (t/a First4care)
Nottinghamshire County Council,1111/1001,Children and Young People,CYP,Transport Related,CCA,10/02/2016,11-11862,"1,823.43",F4Control Ltd (t/a First4care)
Nottinghamshire County Council,1111/1001,Children and Young People,CYP,Transport Related,CCA,10/02/2016,11-11863,"2,902.44",F4Control Ltd (t/a First4care)
Nottinghamshire County Council,1111/1001,Children and Young People,CYP,Transport Related,CCA,10/02/2016,11-11864,"2,305.08",F4Control Ltd (t/a First4care)
Nottinghamshire County Council,1111/1001,Children and Young People,CYP,Transport Related,CCA,10/02/2016,11-11865,"1,724.70",F4Control Ltd (t/a First4care)
Nottinghamshire County Council,1111/1001,Children and Young People,CYP,Transport Related,CCA,10/02/2016,11-11866,"1,782.31",F4Control Ltd (t/a First4care)
Nottinghamshire County Council,1111/1001,Children and Young People,CYP,Transport Related,CCA,10/02/2016,11-11868,"1,874.25",F4Control Ltd (t/a First4care)
Nottinghamshire County Council,1111/1001,Children and Young People,CYP,Transport Related,CCA,10/02/2016,11-11869,"2,000.25",F4Control Ltd (t/a First4care)
Nottinghamshire County Council,1111/1001,Children and Young People,CYP,Transport Related,CCA,10/02/2016,11-11870,"2,549.80",F4Control Ltd (t/a First4care)
Nottinghamshire County Council,1111/1001,Children and Young People,CYP,Transport Related,CCA,10/02/2016,11-11871,"1,496.08",F4Control Ltd (t/a First4care)
Nottinghamshire County Council,1111/1001,Children and Young People,CYP,Transport Related,CCA,10/02/2016,11-11874,"2,124.00",F4Control Ltd (t/a First4care)
Nottinghamshire County Council,1111/1001,Children and Young People,CYP,Transport Related,CCA,10/02/2016,11-11875,"2,142.00",F4Control Ltd (t/a First4care)
Nottinghamshire County Council,1111/1001,Children and Young People,CYP,Transport Related,CCA,10/02/2016,11-11876,"2,128.00",F4Control Ltd (t/a First4care)
Nottinghamshire County Council,1111/1001,Children and Young People,CYP,Transport Related,CCA,10/02/2016,11-11877,"2,431.05",F4Control Ltd (t/a First4care)
Nottinghamshire County Council,1111/1001,Children and Young People,CYP,Transport Related,CCA,10/02/2016,11-11878,"2,464.87",F4Control Ltd (t/a First4care)
Nottinghamshire County Council,1111/1001,Children and Young People,CYP,Transport Related,CCA,10/02/2016,11-11879,"2,141.87",F4Control Ltd (t/a First4care)
Nottinghamshire County Council,1111/1001,Children and Young People,CYP,Transport Related,CCA,10/02/2016,11-11882,"2,335.14",F4Control Ltd (t/a First4care)
Nottinghamshire County Council,1111/1001,Children and Young People,CYP,Transport Related,CCA,10/02/2016,11-11883,"2,840.50",Johnson Bros Tours Ltd
Nottinghamshire County Council,1111/1001,Children and Young People,CYP,Transport Related,CCA,10/02/2016,11-11891,"2,440.00",Martins Travel
Nottinghamshire County Council,1111/1001,Children and Young People,CYP,Transport Related,CCA,10/02/2016,11-11892,"2,510.09",Martins Travel
Nottinghamshire County Council,1111/1001,Children and Young People,CYP,Transport Related,CCA,10/02/2016,11-11893,"1,080.00",SJW (Muskham) Ltd T/A Z Cars
Nottinghamshire County Council,1111/1001,Children and Young People,CYP,Transport Related,CCA,10/02/2016,11-11897,896.40,SJW (Muskham) Ltd T/A Z Cars
Nottinghamshire County Council,1111/1001,Children and Young People,CYP,Transport Related,CCA,10/02/2016,11-11898,"1,330.00",SJW (Muskham) Ltd T/A Z Cars
Nottinghamshire County Council,1111/1001,Children and Young People,CYP,Transport Related,CCA,10/02/2016,11-11900,"1,374.00",Alpha Cars
Nottinghamshire County Council,1111/1001,Children and Young People,CYP,Transport Related,CCA,10/02/2016,11-11901,"1,811.52",Arrow Specialised Transport Ltd
Nottinghamshire County Council,1111/1001,Children and Young People,CYP,Transport Related,CCA,10/02/2016,11-11903,"2,136.93",Erewash Community Transport
Nottinghamshire County Council,1111/1001,Children and Young People,CYP,Transport Related,CCA,10/02/2016,11-11904,"14,085.08",Erewash Community Transport
Nottinghamshire County Council,1111/1001,Children and Young People,CYP,Transport Related,CCA,10/02/2016,11-11924,"3,242.54",Marshalls Of Sutton On Trent Ltd
Nottinghamshire County Council,1111/1001,Children and Young People,CYP,Transport Related,CCA,10/02/2016,11-11978,678.87,Bassetlaw Action Centre
Nottinghamshire County Council,1111/1001,Children and Young People,CYP,Transport Related,CCA,10/02/2016,11-11979,707.94,Bassetlaw Action Centre
Nottinghamshire County Council,1111/1001,Children and Young People,CYP,Transport Related,CCA,10/02/2016,11-11981,575.00,Diamond Cars
Nottinghamshire County Council,1111/1001,Children and Young People,CYP,Transport Related,CCA,10/02/2016,11-11983,"2,127.50",Eurocab 2000 Ltd
Nottinghamshire County Council,1111/1001,Children and Young People,CYP,Transport Related,CCA,10/02/2016,11-12000,560.00,D G Private Hire Ltd
Nottinghamshire County Council,1111/1001,Children and Young People,CYP,Transport Related,CCA,10/02/2016,11-12001,653.00,D G Private Hire Ltd
Nottinghamshire County Council,1111/1001,Children and Young People,CYP,Transport Related,CCA,10/02/2016,11-12006,528.00,D G Private Hire Ltd
Nottinghamshire County Council,1111/1001,Children and Young People,CYP,Transport Related,CCA,10/02/2016,11-12009,760.00,D G Private Hire Ltd
Nottinghamshire County Council,1111/1001,Children and Young People,CYP,Transport Related,CCA,10/02/2016,11-12010,"1,620.00",D G Private Hire Ltd
Nottinghamshire County Council,1111/1001,Children and Young People,CYP,Transport Related,CCA,10/02/2016,11-12011,"1,800.00",D G Private Hire Ltd
Nottinghamshire County Council,1111/1001,Children and Young People,CYP,Transport Related,CCA,10/02/2016,11-12014,613.60,D G Private Hire Ltd
Nottinghamshire County Council,1111/1001,Children and Young People,CYP,Transport Related,CCA,10/02/2016,11-12015,"1,080.00",D G Private Hire Ltd
Nottinghamshire County Council,1111/1001,Children and Young People,CYP,Transport Related,CCA,12/02/2016,11-12102,"2,071.76",Central Cars Nottm Ltd
Nottinghamshire County Council,1111/1001,Children and Young People,CYP,Transport Related,CCA,12/02/2016,11-12104,999.70,F4Control Ltd (t/a First4care)
Nottinghamshire County Council,1111/1001,Children and Young People,CYP,Transport Related,CCA,12/02/2016,11-12107,"3,211.00",Butler Brothers Ltd
Nottinghamshire County Council,1111/1001,Children and Young People,CYP,Transport Related,CCA,12/02/2016,11-12112,"3,696.26",BN Gibson Ltd
Nottinghamshire County Council,1111/1001,Children and Young People,CYP,Transport Related,CCA,12/02/2016,11-12113,"4,313.76",BN Gibson Ltd
Nottinghamshire County Council,1111/1001,Children and Young People,CYP,Transport Related,CCA,12/02/2016,11-12114,"2,218.63",BN Gibson Ltd
Nottinghamshire County Council,1111/1001,Children and Young People,CYP,Transport Related,CCA,12/02/2016,11-12115,"2,262.33",BN Gibson Ltd
Nottinghamshire County Council,1111/1001,Children and Young People,CYP,Transport Related,CCA,12/02/2016,11-12116,"2,003.93",BN Gibson Ltd
Nottinghamshire County Council,1111/1001,Children and Young People,CYP,Transport Related,CCA,12/02/2016,11-12117,"4,278.23",BN Gibson Ltd
Nottinghamshire County Council,1111/1001,Children and Young People,CYP,Transport Related,CCA,12/02/2016,11-12118,"2,807.06",BN Gibson Ltd
Nottinghamshire County Council,1111/1001,Children and Young People,CYP,Transport Related,CCA,12/02/2016,11-12119,"3,606.77",BN Gibson Ltd
Nottinghamshire County Council,1111/1001,Children and Young People,CYP,Transport Related,CCA,12/02/2016,11-12120,"3,313.41",BN Gibson Ltd
Nottinghamshire County Council,1111/1001,Children and Young People,CYP,Transport Related,CCA,12/02/2016,11-12121,"3,092.76",BN Gibson Ltd
Nottinghamshire County Council,1111/1001,Children and Young People,CYP,Transport Related,CCA,12/02/2016,11-12122,"3,912.66",BN Gibson Ltd
Nottinghamshire County Council,1111/1001,Children and Young People,CYP,Transport Related,CCA,12/02/2016,11-12123,"4,210.92",BN Gibson Ltd
Nottinghamshire County Council,1111/1001,Children and Young People,CYP,Transport Related,CCA,12/02/2016,11-12124,"3,730.27",BN Gibson Ltd
Nottinghamshire County Council,1111/1001,Children and Young People,CYP,Transport Related,CCA,12/02/2016,11-12125,"4,592.49",BN Gibson Ltd
Nottinghamshire County Council,1111/1001,Children and Young People,CYP,Transport Related,CCA,12/02/2016,11-12126,"3,484.03",BN Gibson Ltd
Nottinghamshire County Council,1111/1001,Children and Young People,CYP,Transport Related,CCA,12/02/2016,11-12127,"3,009.98",BN Gibson Ltd
Nottinghamshire County Council,1111/1001,Children and Young People,CYP,Transport Related,CCA,12/02/2016,11-12128,"2,375.76",BN Gibson Ltd
Nottinghamshire County Council,1111/1001,Children and Young People,CYP,Transport Related,CCA,12/02/2016,11-12129,"2,103.48",BN Gibson Ltd
Nottinghamshire County Council,1111/1001,Children and Young People,CYP,Transport Related,CCA,12/02/2016,11-12130,"1,671.05",BN Gibson Ltd
Nottinghamshire County Council,1111/1001,Children and Young People,CYP,Transport Related,CCA,12/02/2016,11-12131,4722.80,BN Gibson Ltd
Nottinghamshire County Council,1111/1001,Children and Young People,CYP,Transport Related,CCA,12/02/2016,11-12132,2526.24,BN Gibson Ltd
Nottinghamshire County Council,1111/1001,Children and Young People,CYP,Transport Related,CCA,12/02/2016,11-12133,2167.20,BN Gibson Ltd
Nottinghamshire County Council,1111/1001,Children and Young People,CYP,Transport Related,CCA,12/02/2016,11-12134,2702.34,BN Gibson Ltd
Nottinghamshire County Council,1111/1001,Children and Young People,CYP,Transport Related,CCA,12/02/2016,11-12135,2620.80,BN Gibson Ltd
Nottinghamshire County Council,1111/1001,Children and Young People,CYP,Transport Related,CCA,12/02/2016,11-12136,2130.85,BN Gibson Ltd
Nottinghamshire County Council,1111/1001,Children and Young People,CYP,Transport Related,CCA,12/02/2016,11-12137,2508.38,BN Gibson Ltd
Nottinghamshire County Council,1111/1001,Children and Young People,CYP,Transport Related,CCA,12/02/2016,11-12138,2433.33,BN Gibson Ltd
Nottinghamshire County Council,1111/1001,Children and Young People,CYP,Transport Related,CCA,12/02/2016,11-12139,2667.00,Marshalls Of Sutton On Trent Ltd
Nottinghamshire County Council,1111/1001,Children and Young People,CYP,Transport Related,CCA,12/02/2016,11-12141,1980.00,AAA Cabs
Nottinghamshire County Council,1111/1001,Children and Young People,CYP,Transport Related,CCA,12/02/2016,11-12142,988.99,Ace Cars
Nottinghamshire County Council,1111/1001,Children and Young People,CYP,Transport Related,CCA,12/02/2016,11-12144,1434.00,Ace Cars
Nottinghamshire County Council,1111/1001,Children and Young People,CYP,Transport Related,CCA,12/02/2016,11-12145,2270.50,Ace Cars
Nottinghamshire County Council,1111/1001,Children and Young People,CYP,Transport Related,CCA,12/02/2016,11-12146,1760.00,Ace Cars
Nottinghamshire County Council,1111/1001,Children and Young People,CYP,Transport Related,CCA,12/02/2016,11-12147,1797.40,Ace Cars
Nottinghamshire County Council,1111/1001,Children and Young People,CYP,Transport Related,CCA,12/02/2016,11-12148,2177.40,Ace Cars
Nottinghamshire County Council,1111/1001,Children and Young People,CYP,Transport Related,CCA,12/02/2016,11-12149,2055.80,Ace Cars
Nottinghamshire County Council,1111/1001,Children and Young People,CYP,Transport Related,CCA,12/02/2016,11-12150,1047.20,Ace Cars
Nottinghamshire County Council,1111/1001,Children and Young People,CYP,Transport Related,CCA,12/02/2016,11-12151,1132.88,Ace Cars
Nottinghamshire County Council,1111/1001,Children and Young People,CYP,Transport Related,CCA,12/02/2016,11-12153,1195.00,Ace Cars
Nottinghamshire County Council,1111/1001,Children and Young People,CYP,Transport Related,CCA,15/02/2016,11-12206,1510.50,Tiger European Uk Ltd
Nottinghamshire County Council,1111/1001,Children and Young People,CYP,Transport Related,CCA,15/02/2016,11-12397,749.16,6 Five 2s
Nottinghamshire County Council,1111/1001,Children and Young People,CYP,Transport Related,CCA,15/02/2016,11-12398,1916.40,6 Five 2s
Nottinghamshire County Council,1111/1001,Children and Young People,CYP,Transport Related,CCA,15/02/2016,11-12399,699.84,6 Five 2s
Nottinghamshire County Council,1111/1001,Children and Young People,CYP,Transport Related,CCA,15/02/2016,11-12400,1808.80,6 Five 2s
Nottinghamshire County Council,1111/1001,Children and Young People,CYP,Transport Related,CCA,15/02/2016,11-12401,1140.00,6 Five 2s
Nottinghamshire County Council,1111/1001,Children and Young People,CYP,Transport Related,CCA,15/02/2016,11-12402,1672.00,6 Five 2s
Nottinghamshire County Council,1111/1001,Children and Young People,CYP,Transport Related,CCA,15/02/2016,11-12403,1953.20,6 Five 2s
Nottinghamshire County Council,1111/1001,Children and Young People,CYP,Transport Related,CCA,15/02/2016,11-12404,1596.00,6 Five 2s
Nottinghamshire County Council,1111/1001,Children and Young People,CYP,Transport Related,CCA,15/02/2016,11-12405,1941.80,6 Five 2s
Nottinghamshire County Council,1111/1001,Children and Young People,CYP,Transport Related,CCA,15/02/2016,11-12406,1786.00,6 Five 2s
Nottinghamshire County Council,1111/1001,Children and Young People,CYP,Transport Related,CCA,15/02/2016,11-12407,1064.00,6 Five 2s
Nottinghamshire County Council,1111/1001,Children and Young People,CYP,Transport Related,CCA,15/02/2016,11-12408,1508.60,6 Five 2s
Nottinghamshire County Council,1111/1001,Children and Young People,CYP,Transport Related,CCA,17/02/2016,11-12535,1700.50,Ace Cars
Nottinghamshire County Council,1111/1001,Children and Young People,CYP,Transport Related,CCA,18/02/2016,11-12664,680.00,Alert Cars Ltd
Nottinghamshire County Council,1111/1001,Children and Young People,CYP,Transport Related,CCA,18/02/2016,11-12665,918.84,Alert Cars Ltd
Nottinghamshire County Council,1111/1001,Children and Young People,CYP,Transport Related,CCA,19/02/2016,11-12703,1680.17,Central Cars Nottm Ltd
Nottinghamshire County Council,1111/1001,Children and Young People,CYP,Transport Related,CCA,24/02/2016,11-16272,1506.72,BN Gibson Ltd
Nottinghamshire County Council,1111/1001,Children and Young People,CYP,Transport Related,CCA,24/02/2016,11-16275,909.16,I Can Charity
Nottinghamshire County Council,1111/1001,Children and Young People,CYP,Transport Related,CCA,24/02/2016,11-16276,840.00,I Can Charity
Nottinghamshire County Council,1111/1001,Children and Young People,CYP,Transport Related,CCA,24/02/2016,11-16277,584.46,I Can Charity
Nottinghamshire County Council,1111/1001,Children and Young People,CYP,Transport Related,CCA,24/02/2016,11-16278,520.00,I Can Charity
Nottinghamshire County Council,1111/1001,Children and Young People,CYP,Transport Related,CCA,24/02/2016,11-16279,800.00,Nottingham Cars Ltd
Nottinghamshire County Council,1111/1001,Children and Young People,CYP,Transport Related,CCA,24/02/2016,11-16349,1335.20,Ace Cars
Nottinghamshire County Council,1111/1001,Children and Young People,CYP,Transport Related,CCA,24/02/2016,11-16350,1435.50,Ace Cars
Nottinghamshire County Council,1111/1001,Children and Young People,CYP,Transport Related,CCA,25/02/2016,11-16401,1200.00,Sharpes Of Nottingham
Nottinghamshire County Council,1111/1001,Children and Young People,CYP,Transport Related,CCA,25/02/2016,11-16402,1595.34,F4Control Ltd (t/a First4care)
Nottinghamshire County Council,1111/1001,Children and Young People,CYP,Transport Related,CCA,25/02/2016,11-16403,2231.64,F4Control Ltd (t/a First4care)
Nottinghamshire County Council,1111/1001,Children and Young People,CYP,Transport Related,CCA,25/02/2016,11-16404,1866.56,Johnson Bros Tours Ltd
Nottinghamshire County Council,1111/1001,Children and Young People,CYP,Transport Related,CCA,25/02/2016,11-16405,1402.50,D G Private Hire Ltd
Nottinghamshire County Council,1111/1001,Children and Young People,CYP,Transport Related,CCA,25/02/2016,11-16406,720.00,Ng11 Cars
Nottinghamshire County Council,1111/1001,Children and Young People,CYP,Transport Related,CCA,25/02/2016,11-16407,1808.00,Sprays Transport Ltd
Nottinghamshire County Council,1111/1001,Children and Young People,CYP,Transport Related,CCA,25/02/2016,11-16408,1968.41,Sprays Transport Ltd
Nottinghamshire County Council,1111/1001,Children and Young People,CYP,Transport Related,CCA,25/02/2016,11-16409,1070.00,Skills Motor Coaches Ltd
Nottinghamshire County Council,1111/1001,Children and Young People,CYP,Transport Related,CCA,25/02/2016,11-16410,918.00,Skills Motor Coaches Ltd
Nottinghamshire County Council,1111/1001,Children and Young People,CYP,Transport Related,CCA,25/02/2016,11-16411,1215.00,Skills Motor Coaches Ltd
Nottinghamshire County Council,1111/1001,Children and Young People,CYP,Transport Related,CCA,25/02/2016,11-16412,1421.00,Skills Motor Coaches Ltd
Nottinghamshire County Council,1111/1001,Children and Young People,CYP,Transport Related,CCA,25/02/2016,11-16413,2130.00,Skills Motor Coaches Ltd
Nottinghamshire County Council,1111/1001,Children and Young People,CYP,Transport Related,CCA,25/02/2016,11-16414,523.00,Skills Motor Coaches Ltd
Nottinghamshire County Council,1111/1001,Children and Young People,CYP,Transport Related,CCA,25/02/2016,11-16415,930.00,Skills Motor Coaches Ltd
Nottinghamshire County Council,1111/1001,Children and Young People,CYP,Transport Related,CCA,25/02/2016,11-16416,1057.00,Skills Motor Coaches Ltd
Nottinghamshire County Council,1111/1001,Children and Young People,CYP,Transport Related,CCA,25/02/2016,11-16417,1171.00,Skills Motor Coaches Ltd
Nottinghamshire County Council,1111/1001,Children and Young People,CYP,Transport Related,CCA,25/02/2016,11-16418,1950.00,Skills Motor Coaches Ltd
Nottinghamshire County Council,1111/1001,Children and Young People,CYP,Transport Related,CCA,25/02/2016,11-16419,1596.00,Ace Cars
Nottinghamshire County Council,1111/1001,Children and Young People,CYP,Transport Related,CCA,29/02/2016,11-16768,1890.00,Ace Cars
Nottinghamshire County Council,1111/1001,Children and Young People,CYP,Transport Related,CCA,29/02/2016,11-16769,1345.00,Ace Cars
Nottinghamshire County Council,1111/1001,Children and Young People,CYP,Transport Related,CCA,29/02/2016,11-16772,2272.00,Ace Cars
Nottinghamshire County Council,1111/1001,Children and Young People,CYP,Transport Related,CCA,29/02/2016,11-16773,2142.00,Ace Cars
Nottinghamshire County Council,1111/1001,Children and Young People,CYP,Transport Related,CCA,29/02/2016,11-16774,2940.00,Ace Cars
Nottinghamshire County Council,1111/1001,Children and Young People,CYP,Transport Related,CCA,29/02/2016,11-16775,2390.00,Ace Cars
Nottinghamshire County Council,1111/1001,Children and Young People,CYP,Transport Related,CCA,29/02/2016,11-16776,1605.50,Ace Cars
Nottinghamshire County Council,1111/1001,Children and Young People,CYP,Transport Related,CCA,29/02/2016,11-16777,10666.00,Hope House School Ltd
Nottinghamshire County Council,1111/1001,Children and Young People,CYP,Transport Related,CDA,01/02/2016,11-10172,8000.00,C W Moxon Ltd
Nottinghamshire County Council,1111/1001,Children and Young People,CYP,Transport Related,CDA,01/02/2016,11-10175,22000.00,C W Moxon Ltd
Nottinghamshire County Council,1111/1001,Children and Young People,CYP,Transport Related,CDA,02/02/2016,11-10516,281.32,Southside Cars
Nottinghamshire County Council,1111/1001,Children and Young People,CYP,Transport Related,CDA,02/02/2016,11-10541,266.00,Arrow Specialised Transport Ltd
Nottinghamshire County Council,1111/1001,Children and Young People,CYP,Transport Related,CDA,02/02/2016,11-10601,1439.60,Arrow Specialised Transport Ltd
Nottinghamshire County Council,1111/1001,Children and Young People,CYP,Transport Related,CDA,02/02/2016,11-10627,486.73,Bridges Transport Services
Nottinghamshire County Council,1111/1001,Children and Young People,CYP,Transport Related,CDA,02/02/2016,11-10639,874.00,Fozcabs Newark Taxis
Nottinghamshire County Council,1111/1001,Children and Young People,CYP,Transport Related,CDA,03/02/2016,11-10771,963.50,Acorn Contracts
Nottinghamshire County Council,1111/1001,Children and Young People,CYP,Transport Related,CDA,03/02/2016,11-10794,1155.36,Arrow Specialised Transport Ltd
Nottinghamshire County Council,1111/1001,Children and Young People,CYP,Transport Related,CDA,03/02/2016,11-10807,1162.80,Galaxy Cabs
Nottinghamshire County Council,1111/1001,Children and Young People,CYP,Transport Related,CDA,03/02/2016,11-10812,296.78,Horizon Travel
Nottinghamshire County Council,1111/1001,Children and Young People,CYP,Transport Related,CDA,03/02/2016,11-10846,216.00,Sprays Transport Ltd
Nottinghamshire County Council,1111/1001,Children and Young People,CYP,Transport Related,CDA,03/02/2016,11-10851,230.00,Sprays Transport Ltd
Nottinghamshire County Council,1111/1001,Children and Young People,CYP,Transport Related,CDA,03/02/2016,11-10855,2814.20,Sprays Transport Ltd
Nottinghamshire County Council,1111/1001,Children and Young People,CYP,Transport Related,CDA,03/02/2016,11-10882,2660.00,Nottingham Minibuses & Coaches
Nottinghamshire County Council,1111/1001,Children and Young People,CYP,Transport Related,CDA,03/02/2016,11-10883,2470.00,Nottingham Minibuses & Coaches
Nottinghamshire County Council,1111/1001,Children and Young People,CYP,Transport Related,CDA,03/02/2016,11-10884,1805.00,Nottingham Minibuses & Coaches
Nottinghamshire County Council,1111/1001,Children and Young People,CYP,Transport Related,CDA,03/02/2016,11-10885,2375.00,Nottingham Minibuses & Coaches
Nottinghamshire County Council,1111/1001,Children and Young People,CYP,Transport Related,CDA,03/02/2016,11-10887,2800.00,Nottingham Minibuses & Coaches
Nottinghamshire County Council,1111/1001,Children and Young People,CYP,Transport Related,CDA,03/02/2016,11-10888,2600.00,Nottingham Minibuses & Coaches
Nottinghamshire County Council,1111/1001,Children and Young People,CYP,Transport Related,CDA,03/02/2016,11-10890,495.25,Nunns Cars
Nottinghamshire County Council,1111/1001,Children and Young People,CYP,Transport Related,CDA,03/02/2016,11-10909,1389.00,Rio Cabs
Nottinghamshire County Council,1111/1001,Children and Young People,CYP,Transport Related,CDA,03/02/2016,11-10926,1520.00,Eurocab 2000 Ltd
Nottinghamshire County Council,1111/1001,Children and Young People,CYP,Transport Related,CDA,03/02/2016,11-10927,1140.00,Eurocab 2000 Ltd
Nottinghamshire County Council,1111/1001,Children and Young People,CYP,Transport Related,CDA,03/02/2016,11-10929,2380.00,Eurocab 2000 Ltd
Nottinghamshire County Council,1111/1001,Children and Young People,CYP,Transport Related,CDA,03/02/2016,11-10930,1200.00,Eurocab 2000 Ltd
Nottinghamshire County Council,1111/1001,Children and Young People,CYP,Transport Related,CDA,03/02/2016,11-10933,548.50,Eurocab 2000 Ltd
Nottinghamshire County Council,1111/1001,Children and Young People,CYP,Transport Related,CDA,03/02/2016,11-10935,2280.00,Eurocab 2000 Ltd
Nottinghamshire County Council,1111/1001,Children and Young People,CYP,Transport Related,CDA,03/02/2016,11-10938,891.00,Forest Cars
Nottinghamshire County Council,1111/1001,Children and Young People,CYP,Transport Related,CDA,04/02/2016,11-11205,480.00,Ace Of Mansfield Ltd
Nottinghamshire County Council,1111/1001,Children and Young People,CYP,Transport Related,CDA,04/02/2016,11-11207,696.50,Ace Of Mansfield Ltd
Nottinghamshire County Council,1111/1001,Children and Young People,CYP,Transport Related,CDA,04/02/2016,11-11222,800.00,D G Private Hire Ltd
Nottinghamshire County Council,1111/1001,Children and Young People,CYP,Transport Related,CDA,04/02/2016,11-11260,538.00,Abacus Cars
Nottinghamshire County Council,1111/1001,Children and Young People,CYP,Transport Related,CDA,05/02/2016,11-11360,1645.00,Ng11 Cars
Nottinghamshire County Council,1111/1001,Children and Young People,CYP,Transport Related,CDA,05/02/2016,11-11361,2785.00,Ng11 Cars
Nottinghamshire County Council,1111/1001,Children and Young People,CYP,Transport Related,CDA,05/02/2016,11-11387,817.02,P & P Taxis
Nottinghamshire County Council,1111/1001,Children and Young People,CYP,Transport Related,CDA,05/02/2016,11-11389,1596.00,P & P Taxis
Nottinghamshire County Council,1111/1001,Children and Young People,CYP,Transport Related,CDA,10/02/2016,11-11856,183.60,Central Cars Nottm Ltd
Nottinghamshire County Council,1111/1001,Children and Young People,CYP,Transport Related,CDA,10/02/2016,11-11880,1474.88,F4Control Ltd (t/a First4care)
Nottinghamshire County Council,1111/1001,Children and Young People,CYP,Transport Related,CDA,10/02/2016,11-11895,1045.00,SJW (Muskham) Ltd T/A Z Cars
Nottinghamshire County Council,1111/1001,Children and Young People,CYP,Transport Related,CDA,10/02/2016,11-11907,3427.60,AOT Coaches
Nottinghamshire County Council,1111/1001,Children and Young People,CYP,Transport Related,CDA,10/02/2016,11-11913,1546.60,AOT Coaches
Nottinghamshire County Council,1111/1001,Children and Young People,CYP,Transport Related,CDA,10/02/2016,11-11932,631.80,Nunns Cars
Nottinghamshire County Council,1111/1001,Children and Young People,CYP,Transport Related,CDA,10/02/2016,11-11933,788.40,Nunns Cars
Nottinghamshire County Council,1111/1001,Children and Young People,CYP,Transport Related,CDA,10/02/2016,11-11999,875.00,D G Private Hire Ltd
Nottinghamshire County Council,1111/1001,Children and Young People,CYP,Transport Related,CDA,10/02/2016,11-12002,2470.00,D G Private Hire Ltd
Nottinghamshire County Council,1111/1001,Children and Young People,CYP,Transport Related,CDA,10/02/2016,11-12004,2670.00,D G Private Hire Ltd
Nottinghamshire County Council,1111/1001,Children and Young People,CYP,Transport Related,CDA,10/02/2016,11-12012,1162.00,D G Private Hire Ltd
Nottinghamshire County Council,1111/1001,Children and Young People,CYP,Transport Related,CDA,10/02/2016,11-12013,1550.40,D G Private Hire Ltd
Nottinghamshire County Council,1111/1001,Children and Young People,CYP,Transport Related,CDA,12/02/2016,11-12105,740.80,Acorn Contracts
Nottinghamshire County Council,1111/1001,Children and Young People,CYP,Transport Related,CDA,12/02/2016,11-12160,900.00,Nottingham Cars Ltd
Nottinghamshire County Council,1111/1001,Children and Young People,CYP,Transport Related,CDA,15/02/2016,11-12205,5728.32,Paul S Winson Coaches
Nottinghamshire County Council,1111/1001,Children and Young People,CYP,Transport Related,CDA,29/02/2016,11-16758,2992.00,Nottingham Minibuses & Coaches
Nottinghamshire County Council,1111/1001,Children and Young People,CYP,Transport Related,CDA,29/02/2016,11-16759,8228.00,Nottingham Minibuses & Coaches
Nottinghamshire County Council,1111/1001,Children and Young People,CYP,Transport Related,CDA,29/02/2016,11-16760,2543.20,Nottingham Minibuses & Coaches
Nottinghamshire County Council,1111/1001,Children and Young People,CYP,Transport Related,CDA,29/02/2016,11-16761,6582.40,Nottingham Minibuses & Coaches
Nottinghamshire County Council,1111/1001,Children and Young People,CYP,Transport Related,CDA,29/02/2016,11-16762,3141.60,Nottingham Minibuses & Coaches
Nottinghamshire County Council,1111/1001,Children and Young People,CYP,Transport Related,CDA,29/02/2016,11-16763,8639.40,Nottingham Minibuses & Coaches
Nottinghamshire County Council,1111/1001,Children and Young People,CYP,Transport Related,CDA,29/02/2016,11-16764,2094.40,Nottingham Minibuses & Coaches
Nottinghamshire County Council,1111/1001,Children and Young People,CYP,Transport Related,CDA,29/02/2016,11-16765,5759.60,Nottingham Minibuses & Coaches
Nottinghamshire County Council,1111/1001,Children and Young People,CYP,Transport Related,CDA,29/02/2016,11-16766,2971.60,Nottingham Minibuses & Coaches
Nottinghamshire County Council,1111/1001,Children and Young People,CYP,Transport Related,CDA,29/02/2016,11-16767,8171.90,Nottingham Minibuses & Coaches
Nottinghamshire County Council,1111/1001,Children and Young People,CYP,Transport Related,CDA,29/02/2016,11-16769,1345.00,Ace Cars
Nottinghamshire County Council,1111/1001,Children and Young People,CYP,Supplies & Services,DAA,03/02/2016,11-17233,510.90,Itc First Aid Ltd
Nottinghamshire County Council,1111/1001,Children and Young People,CYP,Supplies & Services,DAA,04/02/2016,11-10445,98595.91,Flying High Trust Bilsthorpe High A
Nottinghamshire County Council,1111/1001,Children and Young People,CYP,Supplies & Services,DAA,04/02/2016,11-17339,111875.00,Gemma Books Ltd
Nottinghamshire County Council,1111/1001,Children and Young People,CYP,Supplies & Services,DAA,17/02/2016,11-17286,919.75,Down Syndrome Training & Support Se
Nottinghamshire County Council,1111/1001,Children and Young People,CYP,Supplies & Services,DAA,25/02/2016,11-12101,139171.24,Edwalton Primary (Academy)
Nottinghamshire County Council,1111/1001,Children and Young People,CYP,Supplies & Services,DBA,02/02/2016,11-10489,226.81,Hallam Country Fresh Foods Ltd
Nottinghamshire County Council,1111/1001,Children and Young People,CYP,Supplies & Services,DBA,03/02/2016,11-10706,612.73,Brake Bros Ltd
Nottinghamshire County Council,1111/1001,Children and Young People,CYP,Supplies & Services,DBA,03/02/2016,11-10707,669.87,Brake Bros Ltd
Nottinghamshire County Council,1111/1001,Children and Young People,CYP,Supplies & Services,DBA,03/02/2016,11-10709,58.06,Brake Bros Ltd
Nottinghamshire County Council,1111/1001,Children and Young People,CYP,Supplies & Services,DBA,03/02/2016,11-10951,512.26,Brake Bros Ltd
Nottinghamshire County Council,1111/1001,Children and Young People,CYP,Supplies & Services,DBA,03/02/2016,11-10954,1510.37,Brake Bros Ltd
Nottinghamshire County Council,1111/1001,Children and Young People,CYP,Supplies & Services,DBA,03/02/2016,11-10959,654.12,Brake Bros Ltd
Nottinghamshire County Council,1111/1001,Children and Young People,CYP,Supplies & Services,DBA,12/02/2016,11-12174,248.01,Hallam Country Fresh Foods Ltd
Nottinghamshire County Council,1111/1001,Children and Young People,CYP,Supplies & Services,DBA,15/02/2016,11-12209,109.24,Brake Bros Ltd
Nottinghamshire County Council,1111/1001,Children and Young People,CYP,Supplies & Services,DBA,15/02/2016,11-12213,433.88,Brake Bros Ltd
Nottinghamshire County Council,1111/1001,Children and Young People,CYP,Supplies & Services,DBA,15/02/2016,11-12219,133.36,Brake Bros Ltd
Nottinghamshire County Council,1111/1001,Children and Young People,CYP,Supplies & Services,DBA,15/02/2016,11-12223,62.17,Brake Bros Ltd
Nottinghamshire County Council,1111/1001,Children and Young People,CYP,Supplies & Services,DBA,15/02/2016,11-12415,97.27,M Maloney Country Butchers & B Ltd
Nottinghamshire County Council,1111/1001,Children and Young People,CYP,Supplies & Services,DBA,16/02/2016,11-12426,102.65,M Maloney Country Butchers & B Ltd
Nottinghamshire County Council,1111/1001,Children and Young People,CYP,Supplies & Services,DBA,16/02/2016,11-12430,70.36,M Maloney Country Butchers & B Ltd
Nottinghamshire County Council,1111/1001,Children and Young People,CYP,Supplies & Services,DBA,16/02/2016,11-12448,225.80,Hallam Country Fresh Foods Ltd
Nottinghamshire County Council,1111/1001,Children and Young People,CYP,Supplies & Services,DBA,18/02/2016,11-12649,349.50,Brake Bros Ltd
Nottinghamshire County Council,1111/1001,Children and Young People,CYP,Supplies & Services,DBA,18/02/2016,11-12652,269.88,Brake Bros Ltd
Nottinghamshire County Council,1111/1001,Children and Young People,CYP,Supplies & Services,DBA,26/02/2016,11-16585,68.42,Brake Bros Ltd
Nottinghamshire County Council,1111/1001,Children and Young People,CYP,Supplies & Services,DBA,26/02/2016,11-16621,82.42,Brake Bros Ltd
Nottinghamshire County Council,1111/1001,Children and Young People,CYP,Supplies & Services,DCA,05/02/2016,11-17136,712.41,SL Clothing Ltd
Nottinghamshire County Council,1111/1001,Children and Young People,CYP,Supplies & Services,DEA,03/02/2016,11-17090,3146.00,Blue Sky Teaching Alliance
Nottinghamshire County Council,1111/1001,Children and Young People,CYP,Supplies & Services,DEA,03/02/2016,11-17143,1798.00,Independent Business Services Ltd
Nottinghamshire County Council,1111/1001,Children and Young People,CYP,Supplies & Services,DEA,03/02/2016,11-17213,1350.00,River Education Services Ltd
Nottinghamshire County Council,1111/1001,Children and Young People,CYP,Supplies & Services,DEA,04/02/2016,11-17311,1800.00,Peak Education Consultancy Ltd
Nottinghamshire County Council,1111/1001,Children and Young People,CYP,Supplies & Services,DEA,05/02/2016,11-17113,750.00,St Josephs Catholic Primary Sch Aca
Nottinghamshire County Council,1111/1001,Children and Young People,CYP,Supplies & Services,DEA,16/02/2016,11-17335,1065.32,"Futures Advice, Skills & Employment"
Nottinghamshire County Council,1111/1001,Children and Young People,CYP,Supplies & Services,DEA,19/02/2016,11-17350,2024.00,Cambridgshire County Council
Nottinghamshire County Council,1111/1001,Children and Young People,CYP,Supplies & Services,DEA,24/02/2016,11-17306,3735.19,Bristol City Council-Trading with S
Nottinghamshire County Council,1111/1001,Children and Young People,CYP,Supplies & Services,DEA,24/02/2016,11-17316,4195.01,Bristol City Council-Trading with S
Nottinghamshire County Council,1111/1001,Children and Young People,CYP,Supplies & Services,DEA,24/02/2016,11-17323,1486.35,Bristol City Council-Trading with S
Nottinghamshire County Council,1111/1001,Children and Young People,CYP,Supplies & Services,DEA,24/02/2016,11-17324,1582.15,Bristol City Council-Trading with S
Nottinghamshire County Council,1111/1001,Children and Young People,CYP,Supplies & Services,DEA,26/02/2016,11-16641,503.50,[Redacted]
Nottinghamshire County Council,1111/1001,Children and Young People,CYP,Supplies & Services,DEA,26/02/2016,11-17217,3420.00,[Redacted]
Nottinghamshire County Council,1111/1001,Children and Young People,CYP,Supplies & Services,DEA,29/02/2016,11-16778,1700.00,Department For Communities & Local
Nottinghamshire County Council,1111/1001,Children and Young People,CYP,Supplies & Services,DFA,15/02/2016,11-12227,648.79,Lantec Services Ltd
Nottinghamshire County Council,1111/1001,Children and Young People,CYP,Supplies & Services,DGA,15/02/2016,11-12190,813.15,[Redacted]
Nottinghamshire County Council,1111/1001,Children and Young People,CYP,Supplies & Services,DHA,05/02/2016,11-10044,2376.00,Mansfield District Council
Nottinghamshire County Council,1111/1001,Children and Young People,CYP,Supplies & Services,DKA,04/02/2016,11-17165,4725.00,Schofield Education
Nottinghamshire County Council,1111/1001,Children and Young People,CYP,Supplies & Services,DKA,04/02/2016,11-17275,2475.00,[Redacted]
Nottinghamshire County Council,1111/1001,Children and Young People,CYP,Supplies & Services,DKA,04/02/2016,11-17284,560.00,Kip McGrath (Brighouse) LP
Nottinghamshire County Council,1111/1001,Children and Young People,CYP,Supplies & Services,DKA,11/02/2016,11-11831,1350.00,Green Acre Support Services
Nottinghamshire County Council,1111/1001,Children and Young People,CYP,Supplies & Services,DKA,26/02/2016,11-16746,10899.32,West Bridgford Junior School
Nottinghamshire County Council,1111/1001,Children and Young People,CYP,Supplies & Services,DKA,26/02/2016,11-16747,17538.00,Stanhope Primary School
Nottinghamshire County Council,1111/1001,Children and Young People,CYP,Supplies & Services,DNA,04/02/2016,11-17305,880.00,Rose Callan Education Services
Nottinghamshire County Council,1111/1001,Children and Young People,CYP,Third Party Payments,EBA,02/02/2016,11-17153,768.60,Hitch N Hike Ltd
Nottinghamshire County Council,1111/1001,Children and Young People,CYP,Third Party Payments,EBA,05/02/2016,11-17364,294111.87,NCHA Ltd
Nottinghamshire County Council,1111/1001,Children and Young People,CYP,Third Party Payments,EBA,11/02/2016,11-17362,8585.35,Leicestershire County Council
Nottinghamshire County Council,1111/1001,Children and Young People,CYP,Third Party Payments,EBA,16/02/2016,11-12440,1260.00,Lincolnshire County Council
Nottinghamshire County Council,1111/1001,Children and Young People,CYP,Third Party Payments,EBA,24/02/2016,11-17221,1956.00,Athelstan Primary School
Nottinghamshire County Council,1111/1001,Children and Young People,CYP,Third Party Payments,EBA,25/02/2016,11-16329,17501.83,Transform Schools
Nottinghamshire County Council,1111/1001,Children and Young People,CYP,Third Party Payments,EBA,25/02/2016,11-16331,1678.46,Transform Schools
Nottinghamshire County Council,1111/1001,Children and Young People,CYP,Third Party Payments,EBA,25/02/2016,11-16332,9142.95,Transform Schools
Nottinghamshire County Council,1111/1001,Children and Young People,CYP,Third Party Payments,EBA,25/02/2016,11-16333,7360.41,Transform Schools
Nottinghamshire County Council,1111/1001,Children and Young People,CYP,Third Party Payments,EBA,25/02/2016,11-16334,681.53,Transform Schools
Nottinghamshire County Council,1111/1001,Children and Young People,CYP,Third Party Payments,EBA,25/02/2016,11-16335,4428.60,Transform Schools
Nottinghamshire County Council,1111/1001,Children and Young People,CYP,Third Party Payments,EBA,25/02/2016,11-16336,8931.70,Transform Schools
Nottinghamshire County Council,1111/1001,Children and Young People,CYP,Third Party Payments,EBA,25/02/2016,11-16337,1780.07,Transform Schools
Nottinghamshire County Council,1111/1001,Children and Young People,CYP,Third Party Payments,EBA,25/02/2016,11-16338,42744.00,Transform Schools
Nottinghamshire County Council,1111/1001,Children and Young People,CYP,Third Party Payments,EBA,25/02/2016,11-16339,1609.31,Transform Schools
Nottinghamshire County Council,1111/1001,Children and Young People,CYP,Third Party Payments,EBA,25/02/2016,11-16340,23626.06,Transform Schools
Nottinghamshire County Council,1111/1001,Children and Young People,CYP,Third Party Payments,EBA,25/02/2016,11-16341,9579.40,Transform Schools
Nottinghamshire County Council,1111/1001,Children and Young People,CYP,Third Party Payments,EBA,25/02/2016,11-16342,10230.80,East Leake Schools Ltd
Nottinghamshire County Council,1111/1001,Children and Young People,CYP,Third Party Payments,EBA,25/02/2016,11-16545,249378.47,East Leake Schools Ltd
Nottinghamshire County Council,1111/1001,Children and Young People,CYP,Third Party Payments,EBA,25/02/2016,11-16546,1483180.36,Transform Schools
Nottinghamshire County Council,1111/1001,Children and Young People,CYP,Third Party Payments,EBA,25/02/2016,11-16549,169286.39,Transform Schools
Nottinghamshire County Council,1111/1001,Children and Young People,CYP,Third Party Payments,EBA,26/02/2016,11-17158,872.49,Friesland School
Nottinghamshire County Council,1111/1001,Children and Young People,CYP,Third Party Payments,EDA,04/02/2016,11-10999,5000.00,The Beech Academy
Nottinghamshire County Council,1111/1001,Children and Young People,CYP,Third Party Payments,EDA,04/02/2016,11-11000,51403.00,The Beech Academy
Nottinghamshire County Council,1111/1001,Children and Young People,CYP,Third Party Payments,EDA,04/02/2016,11-11001,1666.00,Foxwood Academy
Nottinghamshire County Council,1111/1001,Children and Young People,CYP,Third Party Payments,EDA,04/02/2016,11-11002,81710.00,Foxwood Academy
Nottinghamshire County Council,1111/1001,Children and Young People,CYP,Third Party Payments,EDA,04/02/2016,11-11283,35179.00,Redhill Academy
Nottinghamshire County Council,1111/1001,Children and Young People,CYP,Third Party Payments,EDA,04/02/2016,11-11284,1600.00,Nettleworth Infant School
Nottinghamshire County Council,1111/1001,Children and Young People,CYP,Third Party Payments,EDA,04/02/2016,11-11287,800.00,The Elizabethan Academy
Nottinghamshire County Council,1111/1001,Children and Young People,CYP,Third Party Payments,EDA,05/02/2016,11-10070,9288.00,St Josephs Catholic Primary Sch Aca
Nottinghamshire County Council,1111/1001,Children and Young People,CYP,Third Party Payments,EDA,05/02/2016,11-11333,13002.00,St Peters C of E Academy
Nottinghamshire County Council,1111/1001,Children and Young People,CYP,Third Party Payments,EDA,08/02/2016,11-11285,7063.00,Outwood Academy Portland
Nottinghamshire County Council,1111/1001,Children and Young People,CYP,Third Party Payments,EDA,08/02/2016,11-11286,3598.00,Outwood Academy Portland
Nottinghamshire County Council,1111/1001,Children and Young People,CYP,Third Party Payments,EDA,15/02/2016,11-12191,2660.00,St Peters C of E Academy
Nottinghamshire County Council,1111/1001,Children and Young People,CYP,Third Party Payments,EDA,15/02/2016,11-12193,3629.00,Retford Oaks Academy
Nottinghamshire County Council,1111/1001,Children and Young People,CYP,Third Party Payments,EDA,15/02/2016,11-12194,30000.00,Redhill Academy
Nottinghamshire County Council,1111/1001,Children and Young People,CYP,Third Party Payments,EDA,19/02/2016,11-12690,535.00,St Peters C of E Academy
Nottinghamshire County Council,1111/1001,Children and Young People,CYP,Third Party Payments,EDA,19/02/2016,11-12691,680.00,Retford Oaks Academy
Nottinghamshire County Council,1111/1001,Children and Young People,CYP,Third Party Payments,EDA,19/02/2016,11-12692,2356.00,Redhill Academy
Nottinghamshire County Council,1111/1001,Children and Young People,CYP,Third Party Payments,EDA,19/02/2016,11-12693,590.00,George Spencer Academy
Nottinghamshire County Council,1111/1001,Children and Young People,CYP,Third Party Payments,EDA,19/02/2016,11-12694,629.00,George Spencer Academy
Nottinghamshire County Council,1111/1001,Children and Young People,CYP,Third Party Payments,EDA,24/02/2016,11-12192,1526.00,Leverton C Of E Academy
Nottinghamshire County Council,1111/1001,Children and Young People,CYP,Third Party Payments,EDA,26/02/2016,11-16755,8760.00,Quarrydale Academy
Nottinghamshire County Council,1111/1001,Children and Young People,CYP,Third Party Payments,EDA,26/02/2016,11-16756,6654.00,Chetwynd Road Primary Academy
Nottinghamshire County Council,1111/1001,Children and Young People,CYP,Third Party Payments,EDA,26/02/2016,11-16757,9731.00,George Spencer Academy
Nottinghamshire County Council,1111/1001,Children and Young People,CYP,Third Party Payments,EFA,02/02/2016,11-17201,16800.00,Sutherland House Trading Ltd
Nottinghamshire County Council,1111/1001,Children and Young People,CYP,Third Party Payments,EFA,03/02/2016,11-17219,25107.16,Hope House School Ltd
Nottinghamshire County Council,1111/1001,Children and Young People,CYP,Third Party Payments,EFA,04/02/2016,11-17220,14210.52,Hope House School Ltd
Nottinghamshire County Council,1111/1001,Children and Young People,CYP,Third Party Payments,EFA,04/02/2016,11-17281,2835.00,Good Apple Education
Nottinghamshire County Council,1111/1001,Children and Young People,CYP,Third Party Payments,EFA,04/02/2016,11-17285,6965.00,Newbridge High School Academy Trust
Nottinghamshire County Council,1111/1001,Children and Young People,CYP,Third Party Payments,EFA,04/02/2016,11-17290,7505.00,Newbridge High School Academy Trust
Nottinghamshire County Council,1111/1001,Children and Young People,CYP,Third Party Payments,EFA,04/02/2016,11-17301,16567.67,Dagfa House School
Nottinghamshire County Council,1111/1001,Children and Young People,CYP,Third Party Payments,EFA,05/02/2016,11-17106,866.58,The Local Therapy Company Ltd
Nottinghamshire County Council,1111/1001,Children and Young People,CYP,Third Party Payments,EFA,17/02/2016,11-12556,500.00,[Redacted]
Nottinghamshire County Council,1111/1001,Children and Young People,CYP,Third Party Payments,EFA,17/02/2016,11-17250,9945.00,Horizon Care & Education Group Ltd
Nottinghamshire County Council,1111/1001,Children and Young People,CYP,Third Party Payments,EGA,01/02/2016,11-10173,18085.07,Awsworth Schoolhouse Day Nursery
Nottinghamshire County Council,1111/1001,Children and Young People,CYP,Third Party Payments,EGA,01/02/2016,11-10174,806.40,Appletree House Childminding
Nottinghamshire County Council,1111/1001,Children and Young People,CYP,Third Party Payments,EGA,01/02/2016,11-10176,1685.88,"Sue Smith, Happy Kids Childminding"
Nottinghamshire County Council,1111/1001,Children and Young People,CYP,Third Party Payments,EGA,01/02/2016,11-10177,504.00,Lyndsay's Childminding
Nottinghamshire County Council,1111/1001,Children and Young People,CYP,Third Party Payments,EGA,01/02/2016,11-10178,1496.46,L Kong Ltd
Nottinghamshire County Council,1111/1001,Children and Young People,CYP,Third Party Payments,EGA,01/02/2016,11-10179,3298.68,Jubilee House Christian School
Nottinghamshire County Council,1111/1001,Children and Young People,CYP,Third Party Payments,EGA,01/02/2016,11-10180,641.34,[Redacted]
Nottinghamshire County Council,1111/1001,Children and Young People,CYP,Third Party Payments,EGA,01/02/2016,11-10181,641.34,S Cave (Childminding Service)
Nottinghamshire County Council,1111/1001,Children and Young People,CYP,Third Party Payments,EGA,01/02/2016,11-10182,1008.00,Explorers Childcare
Nottinghamshire County Council,1111/1001,Children and Young People,CYP,Third Party Payments,EGA,01/02/2016,11-10183,641.34,[Redacted]
Nottinghamshire County Council,1111/1001,Children and Young People,CYP,Third Party Payments,EGA,01/02/2016,11-10184,641.34,[Redacted]
Nottinghamshire County Council,1111/1001,Children and Young People,CYP,Third Party Payments,EGA,01/02/2016,11-10185,6552.00,Old Cooperative Day Nursery
Nottinghamshire County Council,1111/1001,Children and Young People,CYP,Third Party Payments,EGA,01/02/2016,11-10186,504.00,Taylor -Made Childcare
Nottinghamshire County Council,1111/1001,Children and Young People,CYP,Third Party Payments,EGA,01/02/2016,11-10187,1008.00,[Redacted]
Nottinghamshire County Council,1111/1001,Children and Young People,CYP,Third Party Payments,EGA,02/02/2016,11-17155,4717.71,Fusion Fostering
Nottinghamshire County Council,1111/1001,Children and Young People,CYP,Third Party Payments,EGA,02/02/2016,11-17164,15354.71,Capstone Foster Care Ltd
Nottinghamshire County Council,1111/1001,Children and Young People,CYP,Third Party Payments,EGA,02/02/2016,11-17166,22578.57,Unique Care Homes Ltd
Nottinghamshire County Council,1111/1001,Children and Young People,CYP,Third Party Payments,EGA,02/02/2016,11-17181,3275.18,Capstone Foster Care Ltd
Nottinghamshire County Council,1111/1001,Children and Young People,CYP,Third Party Payments,EGA,02/02/2016,11-17189,13235.71,Unique Care Homes Ltd
Nottinghamshire County Council,1111/1001,Children and Young People,CYP,Third Party Payments,EGA,02/02/2016,11-17198,9373.16,Hope Fostering Services Ltd
Nottinghamshire County Council,1111/1001,Children and Young People,CYP,Third Party Payments,EGA,02/02/2016,11-17214,48642.09,Total Care Matters Ltd
Nottinghamshire County Council,1111/1001,Children and Young People,CYP,Third Party Payments,EGA,03/02/2016,11-10716,588.00,Woodborough Village Pre School
Nottinghamshire County Council,1111/1001,Children and Young People,CYP,Third Party Payments,EGA,03/02/2016,11-10717,588.00,The Secret Garden Private Day Nurse
Nottinghamshire County Council,1111/1001,Children and Young People,CYP,Third Party Payments,EGA,03/02/2016,11-10723,588.00,Killisick Pre-School
Nottinghamshire County Council,1111/1001,Children and Young People,CYP,Third Party Payments,EGA,03/02/2016,11-10726,705.60,Alphabet House Day Nursery Worksop
Nottinghamshire County Council,1111/1001,Children and Young People,CYP,Third Party Payments,EGA,03/02/2016,11-10727,588.00,Buttercross Pre School
Nottinghamshire County Council,1111/1001,Children and Young People,CYP,Third Party Payments,EGA,03/02/2016,11-10728,955.50,Fernwood Day Nursery Ltd
Nottinghamshire County Council,1111/1001,Children and Young People,CYP,Third Party Payments,EGA,03/02/2016,11-10729,637.00,Fernwood Day Nursery Ltd
Nottinghamshire County Council,1111/1001,Children and Young People,CYP,Third Party Payments,EGA,03/02/2016,11-10730,573.30,Homestead Day Nursery Ltd
Nottinghamshire County Council,1111/1001,Children and Young People,CYP,Third Party Payments,EGA,03/02/2016,11-10731,588.00,Learning Ladder Childcare Ltd
Nottinghamshire County Council,1111/1001,Children and Young People,CYP,Third Party Payments,EGA,03/02/2016,11-10732,529.20,Watnall Pre-School Playgroup
Nottinghamshire County Council,1111/1001,Children and Young People,CYP,Third Party Payments,EGA,03/02/2016,11-10733,705.60,St Mary's Pre-School
Nottinghamshire County Council,1111/1001,Children and Young People,CYP,Third Party Payments,EGA,03/02/2016,11-10734,573.30,Serendipity Day Nursery
Nottinghamshire County Council,1111/1001,Children and Young People,CYP,Third Party Payments,EGA,03/02/2016,11-10735,1176.00,Serendipity's Day Nursery
Nottinghamshire County Council,1111/1001,Children and Young People,CYP,Third Party Payments,EGA,03/02/2016,11-10737,588.00,PSLA Newstead Childcare
Nottinghamshire County Council,1111/1001,Children and Young People,CYP,Third Party Payments,EGA,03/02/2016,11-10738,588.00,PSLA Newstead Childcare
Nottinghamshire County Council,1111/1001,Children and Young People,CYP,Third Party Payments,EGA,03/02/2016,11-10739,560.00,Alphabet House Day Nursery WB
Nottinghamshire County Council,1111/1001,Children and Young People,CYP,Third Party Payments,EGA,03/02/2016,11-10740,1176.00,Little Kites Playgroup
Nottinghamshire County Council,1111/1001,Children and Young People,CYP,Third Party Payments,EGA,03/02/2016,11-10741,507.50,Fun Farm Day Nursery
Nottinghamshire County Council,1111/1001,Children and Young People,CYP,Third Party Payments,EGA,03/02/2016,11-10742,1019.20,Alphabet House Day Nursery WB
Nottinghamshire County Council,1111/1001,Children and Young People,CYP,Third Party Payments,EGA,03/02/2016,11-10743,764.40,Alphabet House Nursery
Nottinghamshire County Council,1111/1001,Children and Young People,CYP,Third Party Payments,EGA,03/02/2016,11-10744,529.20,Butterflies Nursery (West Notts Col
Nottinghamshire County Council,1111/1001,Children and Young People,CYP,Third Party Payments,EGA,03/02/2016,11-10745,588.00,Pretty Windows Ltd
Nottinghamshire County Council,1111/1001,Children and Young People,CYP,Third Party Payments,EGA,03/02/2016,11-10746,573.30,Cared 4 Ltd T/A Brookhill House Day
Nottinghamshire County Council,1111/1001,Children and Young People,CYP,Third Party Payments,EGA,03/02/2016,11-10747,509.60,Brooklyn Day Nursery
Nottinghamshire County Council,1111/1001,Children and Young People,CYP,Third Party Payments,EGA,03/02/2016,11-10748,588.00,Buttercross Pre School
Nottinghamshire County Council,1111/1001,Children and Young People,CYP,Third Party Payments,EGA,03/02/2016,11-10749,529.20,Cherubs Childrens Centre Wynndale
Nottinghamshire County Council,1111/1001,Children and Young People,CYP,Third Party Payments,EGA,03/02/2016,11-10750,588.00,Papermoon Day Nursery
Nottinghamshire County Council,1111/1001,Children and Young People,CYP,Third Party Payments,EGA,03/02/2016,11-10751,529.20,Little Bears Day Nursery
Nottinghamshire County Council,1111/1001,Children and Young People,CYP,Third Party Payments,EGA,03/02/2016,11-10752,882.00,Little Bears Day Nursery
Nottinghamshire County Council,1111/1001,Children and Young People,CYP,Third Party Payments,EGA,03/02/2016,11-10753,529.20,PSLA Newstead Childcare
Nottinghamshire County Council,1111/1001,Children and Young People,CYP,Third Party Payments,EGA,03/02/2016,11-10756,504.00,Honey Pot Day Private Day Nursery L
Nottinghamshire County Council,1111/1001,Children and Young People,CYP,Third Party Payments,EGA,03/02/2016,11-17212,20591.44,Creative Care (East Midlands) Ltd
Nottinghamshire County Council,1111/1001,Children and Young People,CYP,Third Party Payments,EGA,03/02/2016,11-17216,16271.32,Jani Homes CIC
Nottinghamshire County Council,1111/1001,Children and Young People,CYP,Third Party Payments,EGA,03/02/2016,11-17222,39812.68,Absolute Children?s Services Ltd
Nottinghamshire County Council,1111/1001,Children and Young People,CYP,Third Party Payments,EGA,04/02/2016,11-11291,7255.81,Colwick Pre School Playgroup
Nottinghamshire County Council,1111/1001,Children and Young People,CYP,Third Party Payments,EGA,04/02/2016,11-11292,14432.04,Kingfisher Day Nursery
Nottinghamshire County Council,1111/1001,Children and Young People,CYP,Third Party Payments,EGA,04/02/2016,11-11293,1044.54,Millgate Pre School
Nottinghamshire County Council,1111/1001,Children and Young People,CYP,Third Party Payments,EGA,04/02/2016,11-11294,641.34,Carla Quinn Childminding Service
Nottinghamshire County Council,1111/1001,Children and Young People,CYP,Third Party Payments,EGA,04/02/2016,11-11295,1618.76,Z Whitaker (Active Childminding)
Nottinghamshire County Council,1111/1001,Children and Young People,CYP,Third Party Payments,EGA,04/02/2016,11-11298,7056.00,Saville House School
Nottinghamshire County Council,1111/1001,Children and Young People,CYP,Third Party Payments,EGA,04/02/2016,11-17148,1286.46,Framework Housing Association
Nottinghamshire County Council,1111/1001,Children and Young People,CYP,Third Party Payments,EGA,04/02/2016,11-17149,1443.54,Framework Housing Association
Nottinghamshire County Council,1111/1001,Children and Young People,CYP,Third Party Payments,EGA,04/02/2016,11-17150,1477.56,Framework Housing Association
Nottinghamshire County Council,1111/1001,Children and Young People,CYP,Third Party Payments,EGA,04/02/2016,11-17151,1348.84,Framework Housing Association
Nottinghamshire County Council,1111/1001,Children and Young People,CYP,Third Party Payments,EGA,04/02/2016,11-17261,3827.88,Voice Fostering Ltd
Nottinghamshire County Council,1111/1001,Children and Young People,CYP,Third Party Payments,EGA,04/02/2016,11-17265,2828.15,Wyntax
Nottinghamshire County Council,1111/1001,Children and Young People,CYP,Third Party Payments,EGA,04/02/2016,11-17266,616.75,Wyntax
Nottinghamshire County Council,1111/1001,Children and Young People,CYP,Third Party Payments,EGA,04/02/2016,11-17267,1988.90,Wyntax
Nottinghamshire County Council,1111/1001,Children and Young People,CYP,Third Party Payments,EGA,04/02/2016,11-17338,21634.59,Team Fostering
Nottinghamshire County Council,1111/1001,Children and Young People,CYP,Third Party Payments,EGA,05/02/2016,11-11404,705.60,Little Kites Playgroup
Nottinghamshire County Council,1111/1001,Children and Young People,CYP,Third Party Payments,EGA,05/02/2016,11-11405,588.00,PSLA Newstead Childcare
Nottinghamshire County Council,1111/1001,Children and Young People,CYP,Third Party Payments,EGA,05/02/2016,11-17129,3098.97,Wyntax
Nottinghamshire County Council,1111/1001,Children and Young People,CYP,Third Party Payments,EGA,05/02/2016,11-17133,4094.60,Wyntax
Nottinghamshire County Council,1111/1001,Children and Young People,CYP,Third Party Payments,EGA,05/02/2016,11-17273,13028.42,Barnardos Family Placement Unit
Nottinghamshire County Council,1111/1001,Children and Young People,CYP,Third Party Payments,EGA,05/02/2016,11-17274,13447.71,Barnardos Family Placement Unit
Nottinghamshire County Council,1111/1001,Children and Young People,CYP,Third Party Payments,EGA,05/02/2016,11-17292,7260.00,Fostering People Ltd
Nottinghamshire County Council,1111/1001,Children and Young People,CYP,Third Party Payments,EGA,05/02/2016,11-17293,4054.72,Wyntax
Nottinghamshire County Council,1111/1001,Children and Young People,CYP,Third Party Payments,EGA,05/02/2016,11-17294,3632.25,Wyntax
Nottinghamshire County Council,1111/1001,Children and Young People,CYP,Third Party Payments,EGA,05/02/2016,11-17295,2688.60,Wyntax
Nottinghamshire County Council,1111/1001,Children and Young People,CYP,Third Party Payments,EGA,05/02/2016,11-17296,3767.60,Wyntax
Nottinghamshire County Council,1111/1001,Children and Young People,CYP,Third Party Payments,EGA,05/02/2016,11-17297,722.90,Wyntax
Nottinghamshire County Council,1111/1001,Children and Young People,CYP,Third Party Payments,EGA,05/02/2016,11-17298,3328.80,Wyntax
Nottinghamshire County Council,1111/1001,Children and Young People,CYP,Third Party Payments,EGA,05/02/2016,11-17299,2716.75,Wyntax
Nottinghamshire County Council,1111/1001,Children and Young People,CYP,Third Party Payments,EGA,05/02/2016,11-17345,10562.13,Inspire Supported Accommodation Ltd
Nottinghamshire County Council,1111/1001,Children and Young People,CYP,Third Party Payments,EGA,08/02/2016,11-11427,637.00,Tiny World Mansfield
Nottinghamshire County Council,1111/1001,Children and Young People,CYP,Third Party Payments,EGA,09/02/2016,11-17202,1130074.33,Nottinghamshire Healthcare Nhs F Tr
Nottinghamshire County Council,1111/1001,Children and Young People,CYP,Third Party Payments,EGA,11/02/2016,11-12069,19930.05,Sutton Centre Under 5'S Playgroup
Nottinghamshire County Council,1111/1001,Children and Young People,CYP,Third Party Payments,EGA,11/02/2016,11-17260,3132.83,Wyntax
Nottinghamshire County Council,1111/1001,Children and Young People,CYP,Third Party Payments,EGA,12/02/2016,11-12161,509.60,Papermoon Day Nursery Sutton In Ash
Nottinghamshire County Council,1111/1001,Children and Young People,CYP,Third Party Payments,EGA,12/02/2016,11-12163,882.00,Claremont Early Years Ltd
Nottinghamshire County Council,1111/1001,Children and Young People,CYP,Third Party Payments,EGA,12/02/2016,11-12164,764.40,Serendipity's Day Nursery
Nottinghamshire County Council,1111/1001,Children and Young People,CYP,Third Party Payments,EGA,12/02/2016,11-12166,553.70,The Lime Trees
Nottinghamshire County Council,1111/1001,Children and Young People,CYP,Third Party Payments,EGA,16/02/2016,11-12434,6321.96,Townrow Tiny Tots Ltd
Nottinghamshire County Council,1111/1001,Children and Young People,CYP,Third Party Payments,EGA,16/02/2016,11-12435,3848.04,Townrow Tiny Tots Ltd
Nottinghamshire County Council,1111/1001,Children and Young People,CYP,Third Party Payments,EGA,16/02/2016,11-12436,4214.70,Phoenix Farm Pre School
Nottinghamshire County Council,1111/1001,Children and Young People,CYP,Third Party Payments,EGA,16/02/2016,11-12437,641.34,Jeanette Hooper Childminding Servic
Nottinghamshire County Council,1111/1001,Children and Young People,CYP,Third Party Payments,EGA,16/02/2016,11-12438,806.40,Rachel & Philip's Home From Home Ch
Nottinghamshire County Council,1111/1001,Children and Young People,CYP,Third Party Payments,EGA,16/02/2016,11-12439,1282.68,[Redacted]
Nottinghamshire County Council,1111/1001,Children and Young People,CYP,Third Party Payments,EGA,25/02/2016,11-16361,1000.26,Allsorts Playgroup
Nottinghamshire County Council,1111/1001,Children and Young People,CYP,Third Party Payments,EGA,25/02/2016,11-16362,18088.80,Alphabet House Day Nursery
Nottinghamshire County Council,1111/1001,Children and Young People,CYP,Third Party Payments,EGA,25/02/2016,11-16364,4134.66,Alphabet House Day Nursery
Nottinghamshire County Council,1111/1001,Children and Young People,CYP,Third Party Payments,EGA,25/02/2016,11-16365,8366.58,Alphabet House Day Nursery WB
Nottinghamshire County Council,1111/1001,Children and Young People,CYP,Third Party Payments,EGA,25/02/2016,11-16367,685.26,Annekas Angels Childminding Service
Nottinghamshire County Council,1111/1001,Children and Young People,CYP,Third Party Payments,EGA,25/02/2016,11-16368,7988.64,Appleton Day Nursery
Nottinghamshire County Council,1111/1001,Children and Young People,CYP,Third Party Payments,EGA,25/02/2016,11-16370,14423.70,Arnold St Mary's Pre-School
Nottinghamshire County Council,1111/1001,Children and Young People,CYP,Third Party Payments,EGA,25/02/2016,11-16371,3004.48,Attenborough Church Pre-School
Nottinghamshire County Council,1111/1001,Children and Young People,CYP,Third Party Payments,EGA,25/02/2016,11-16372,7358.40,Attenborough Day Nursery & Pre-Sch
Nottinghamshire County Council,1111/1001,Children and Young People,CYP,Third Party Payments,EGA,25/02/2016,11-16373,8859.55,Awsworth Schoolhouse Day Nursery
Nottinghamshire County Council,1111/1001,Children and Young People,CYP,Third Party Payments,EGA,25/02/2016,11-16374,10221.65,Balderton Pre-School
Nottinghamshire County Council,1111/1001,Children and Young People,CYP,Third Party Payments,EGA,25/02/2016,11-16375,8269.56,Balderton Village Day Nursery
Nottinghamshire County Council,1111/1001,Children and Young People,CYP,Third Party Payments,EGA,25/02/2016,11-16376,10546.38,Beacon Hill Day Nursery
Nottinghamshire County Council,1111/1001,Children and Young People,CYP,Third Party Payments,EGA,25/02/2016,11-16377,8575.20,Beeston Nursery
Nottinghamshire County Council,1111/1001,Children and Young People,CYP,Third Party Payments,EGA,25/02/2016,11-16378,5716.80,Bingham Day Nursery & Pre School
Nottinghamshire County Council,1111/1001,Children and Young People,CYP,Third Party Payments,EGA,25/02/2016,11-16379,6165.01,Bircotes Pre-School
Nottinghamshire County Council,1111/1001,Children and Young People,CYP,Third Party Payments,EGA,25/02/2016,11-16380,43056.24,Bizzy Kidz
Nottinghamshire County Council,1111/1001,Children and Young People,CYP,Third Party Payments,EGA,25/02/2016,11-16381,1814.16,Blyth Pre-School Playgroup
Nottinghamshire County Council,1111/1001,Children and Young People,CYP,Third Party Payments,EGA,25/02/2016,11-16382,1570.86,Bramley Pips Nursery Ltd
Nottinghamshire County Council,1111/1001,Children and Young People,CYP,Third Party Payments,EGA,25/02/2016,11-16383,4412.58,Brooklyn Day Nursery
Nottinghamshire County Council,1111/1001,Children and Young People,CYP,Third Party Payments,EGA,25/02/2016,11-16384,5079.84,Bullpit Road Nursery
Nottinghamshire County Council,1111/1001,Children and Young People,CYP,Third Party Payments,EGA,25/02/2016,11-16385,5432.10,Busy Bees (Daybrook)
Nottinghamshire County Council,1111/1001,Children and Young People,CYP,Third Party Payments,EGA,25/02/2016,11-16386,6552.78,Busy Bees Nursery
Nottinghamshire County Council,1111/1001,Children and Young People,CYP,Third Party Payments,EGA,25/02/2016,11-16387,11754.15,Buttercross Pre School
Nottinghamshire County Council,1111/1001,Children and Young People,CYP,Third Party Payments,EGA,25/02/2016,11-16388,23060.40,Butterflies Nursery (West Notts Col
Nottinghamshire County Council,1111/1001,Children and Young People,CYP,Third Party Payments,EGA,25/02/2016,11-16389,11683.80,Carlton & Gedling Day Nursery
Nottinghamshire County Council,1111/1001,Children and Young People,CYP,Third Party Payments,EGA,25/02/2016,11-16390,5237.66,Carousel Under 5'S Playgroup
Nottinghamshire County Council,1111/1001,Children and Young People,CYP,Third Party Payments,EGA,25/02/2016,11-16391,3082.86,Cedar House Day Nursery
Nottinghamshire County Council,1111/1001,Children and Young People,CYP,Third Party Payments,EGA,25/02/2016,11-16392,4306.50,Cheeky Monkeys Day Nursery
Nottinghamshire County Council,1111/1001,Children and Young People,CYP,Third Party Payments,EGA,25/02/2016,11-16393,36928.33,Cherubs Childcare Centre (Mansfield
Nottinghamshire County Council,1111/1001,Children and Young People,CYP,Third Party Payments,EGA,25/02/2016,11-16394,9543.97,Cherubs Childrens Centre Pleasley
Nottinghamshire County Council,1111/1001,Children and Young People,CYP,Third Party Payments,EGA,25/02/2016,11-16395,29264.24,Cherubs Day Nursery
Nottinghamshire County Council,1111/1001,Children and Young People,CYP,Third Party Payments,EGA,25/02/2016,11-16396,4997.55,Cherubs Ryton Park
Nottinghamshire County Council,1111/1001,Children and Young People,CYP,Third Party Payments,EGA,25/02/2016,11-16397,2976.00,Chetwynd Barracks Pre-School
Nottinghamshire County Council,1111/1001,Children and Young People,CYP,Third Party Payments,EGA,25/02/2016,11-16398,6806.64,Children 1st @ Breedon House
Nottinghamshire County Council,1111/1001,Children and Young People,CYP,Third Party Payments,EGA,25/02/2016,11-16399,6632.82,Children 1st @ Newark Centre
Nottinghamshire County Council,1111/1001,Children and Young People,CYP,Third Party Payments,EGA,25/02/2016,11-16400,9720.68,Childrens Corner Day Nursery
Nottinghamshire County Council,1111/1001,Children and Young People,CYP,Third Party Payments,EGA,25/02/2016,11-16420,7691.76,Church House Day Nursery
Nottinghamshire County Council,1111/1001,Children and Young People,CYP,Third Party Payments,EGA,25/02/2016,11-16421,5031.54,Claremont Early Years Ltd
Nottinghamshire County Council,1111/1001,Children and Young People,CYP,Third Party Payments,EGA,25/02/2016,11-16422,3393.12,Collingham & District Pre-School
Nottinghamshire County Council,1111/1001,Children and Young People,CYP,Third Party Payments,EGA,25/02/2016,11-16423,864.00,Colston Bassett Preparatory School
Nottinghamshire County Council,1111/1001,Children and Young People,CYP,Third Party Payments,EGA,25/02/2016,11-16424,1484.46,Costock Pre School
Nottinghamshire County Council,1111/1001,Children and Young People,CYP,Third Party Payments,EGA,25/02/2016,11-16425,21850.80,Cranmer Pre-School
Nottinghamshire County Council,1111/1001,Children and Young People,CYP,Third Party Payments,EGA,25/02/2016,11-16426,2974.86,Crossdale Busy Bees Pre-School
Nottinghamshire County Council,1111/1001,Children and Young People,CYP,Third Party Payments,EGA,25/02/2016,11-16427,6436.80,Dagfa House School
Nottinghamshire County Council,1111/1001,Children and Young People,CYP,Third Party Payments,EGA,25/02/2016,11-16428,9363.44,Daisies Day Nursery
Nottinghamshire County Council,1111/1001,Children and Young People,CYP,Third Party Payments,EGA,25/02/2016,11-16429,4560.00,Daisies Day Nursery
Nottinghamshire County Council,1111/1001,Children and Young People,CYP,Third Party Payments,EGA,25/02/2016,11-16430,549.72,[Redacted]
Nottinghamshire County Council,1111/1001,Children and Young People,CYP,Third Party Payments,EGA,25/02/2016,11-16431,12543.84,Discovery Day Nursery
Nottinghamshire County Council,1111/1001,Children and Young People,CYP,Third Party Payments,EGA,25/02/2016,11-16432,9874.47,Early Years Playgroup
Nottinghamshire County Council,1111/1001,Children and Young People,CYP,Third Party Payments,EGA,25/02/2016,11-16433,8322.36,East Leake Day Nursery & Pre-School
Nottinghamshire County Council,1111/1001,Children and Young People,CYP,Third Party Payments,EGA,25/02/2016,11-16434,3030.00,Elston Pre-school Playgroup Newark
Nottinghamshire County Council,1111/1001,Children and Young People,CYP,Third Party Payments,EGA,25/02/2016,11-16435,5937.60,Farnsfield Pre-School
Nottinghamshire County Council,1111/1001,Children and Young People,CYP,Third Party Payments,EGA,25/02/2016,11-16436,7920.00,Fledglings Playgroup
Nottinghamshire County Council,1111/1001,Children and Young People,CYP,Third Party Payments,EGA,25/02/2016,11-16437,1805.15,Foxy Creek Pre-School Playgroup
Nottinghamshire County Council,1111/1001,Children and Young People,CYP,Third Party Payments,EGA,25/02/2016,11-16438,13968.00,Galaxies Day Nursery
Nottinghamshire County Council,1111/1001,Children and Young People,CYP,Third Party Payments,EGA,25/02/2016,11-16439,9350.39,Good Foundations Day Nursery
Nottinghamshire County Council,1111/1001,Children and Young People,CYP,Third Party Payments,EGA,25/02/2016,11-16440,7517.21,Good Shepherd Pre-School
Nottinghamshire County Council,1111/1001,Children and Young People,CYP,Third Party Payments,EGA,25/02/2016,11-16441,3819.16,Gotham Pre-School Playgroup
Nottinghamshire County Council,1111/1001,Children and Young People,CYP,Third Party Payments,EGA,25/02/2016,11-16442,8015.04,Granby House Nursery
Nottinghamshire County Council,1111/1001,Children and Young People,CYP,Third Party Payments,EGA,25/02/2016,11-16467,10787.76,West Street Pre-School
Nottinghamshire County Council,1111/1001,Children and Young People,CYP,Third Party Payments,EGA,25/02/2016,11-16470,7299.00,Hazel Hurst School
Nottinghamshire County Council,1111/1001,Children and Young People,CYP,Third Party Payments,EGA,25/02/2016,11-16472,8398.74,Hickory House Day Nursery
Nottinghamshire County Council,1111/1001,Children and Young People,CYP,Third Party Payments,EGA,25/02/2016,11-16473,4313.02,Highfields School & Nursery
Nottinghamshire County Council,1111/1001,Children and Young People,CYP,Third Party Payments,EGA,25/02/2016,11-16474,10443.30,Hollies Day Nurseries Limited
Nottinghamshire County Council,1111/1001,Children and Young People,CYP,Third Party Payments,EGA,25/02/2016,11-16475,5446.52,Hollies Day Nurseries
Nottinghamshire County Council,1111/1001,Children and Young People,CYP,Third Party Payments,EGA,25/02/2016,11-16476,6292.66,Homestead Day Nursery Ltd
Nottinghamshire County Council,1111/1001,Children and Young People,CYP,Third Party Payments,EGA,25/02/2016,11-16477,2887.20,Honey Pot Day Private Day Nursery L
Nottinghamshire County Council,1111/1001,Children and Young People,CYP,Third Party Payments,EGA,25/02/2016,11-16478,8183.52,Hucknall Day Nursery
Nottinghamshire County Council,1111/1001,Children and Young People,CYP,Third Party Payments,EGA,25/02/2016,11-16479,8964.07,Hucknall Pre-School Playgroup
Nottinghamshire County Council,1111/1001,Children and Young People,CYP,Third Party Payments,EGA,25/02/2016,11-16480,6915.96,Jelly Totz Day Nursery
Nottinghamshire County Council,1111/1001,Children and Young People,CYP,Third Party Payments,EGA,25/02/2016,11-16481,5894.22,Zoes Childcare Ltd
Nottinghamshire County Council,1111/1001,Children and Young People,CYP,Third Party Payments,EGA,25/02/2016,11-16482,6772.68,Zoe's Childcare Ltd
Nottinghamshire County Council,1111/1001,Children and Young People,CYP,Third Party Payments,EGA,25/02/2016,11-16483,1206.32,[Redacted]
Nottinghamshire County Council,1111/1001,Children and Young People,CYP,Third Party Payments,EGA,25/02/2016,11-16484,3343.14,Young Rascals Day Nursery
Nottinghamshire County Council,1111/1001,Children and Young People,CYP,Third Party Payments,EGA,25/02/2016,11-16485,6783.00,Worksop College
Nottinghamshire County Council,1111/1001,Children and Young People,CYP,Third Party Payments,EGA,25/02/2016,11-16486,13561.44,Woodthorpe Day Nursery Ltd
Nottinghamshire County Council,1111/1001,Children and Young People,CYP,Third Party Payments,EGA,25/02/2016,11-16487,1416.00,Woodborough Village Pre School
Nottinghamshire County Council,1111/1001,Children and Young People,CYP,Third Party Payments,EGA,25/02/2016,11-16488,6997.86,Wishing Well Day Nursery
Nottinghamshire County Council,1111/1001,Children and Young People,CYP,Third Party Payments,EGA,25/02/2016,11-16489,1994.40,Windmills Pre-School Playgroup
Nottinghamshire County Council,1111/1001,Children and Young People,CYP,Third Party Payments,EGA,25/02/2016,11-16490,8410.40,Willow Pre-School Playgroup
Nottinghamshire County Council,1111/1001,Children and Young People,CYP,Third Party Payments,EGA,25/02/2016,11-16491,2630.52,Willow Brook Pre-School
Nottinghamshire County Council,1111/1001,Children and Young People,CYP,Third Party Payments,EGA,25/02/2016,11-16492,12406.38,Whitehouse Day Nursery
Nottinghamshire County Council,1111/1001,Children and Young People,CYP,Third Party Payments,EGA,25/02/2016,11-16493,13658.03,Westdale Pre-School
Nottinghamshire County Council,1111/1001,Children and Young People,CYP,Third Party Payments,EGA,25/02/2016,11-16494,19083.60,West Bridgford Out Of School Care L
Nottinghamshire County Council,1111/1001,Children and Young People,CYP,Third Party Payments,EGA,25/02/2016,11-16495,3814.28,Wellow House School
Nottinghamshire County Council,1111/1001,Children and Young People,CYP,Third Party Payments,EGA,25/02/2016,11-16496,3975.66,Watnall Pre-School Playgroup
Nottinghamshire County Council,1111/1001,Children and Young People,CYP,Third Party Payments,EGA,25/02/2016,11-16497,7553.16,Walesby School Playgroup
Nottinghamshire County Council,1111/1001,Children and Young People,CYP,Third Party Payments,EGA,25/02/2016,11-16498,4779.90,Upton Crickets Day Nursery
Nottinghamshire County Council,1111/1001,Children and Young People,CYP,Third Party Payments,EGA,25/02/2016,11-16499,2984.80,Trowell Pre School
Nottinghamshire County Council,1111/1001,Children and Young People,CYP,Third Party Payments,EGA,25/02/2016,11-16500,1608.66,Toton Tots Pre-School
Nottinghamshire County Council,1111/1001,Children and Young People,CYP,Third Party Payments,EGA,26/02/2016,11-16501,4092.84,Tiny Teddies Day Nursery
Nottinghamshire County Council,1111/1001,Children and Young People,CYP,Third Party Payments,EGA,26/02/2016,11-16502,4082.46,Tiny Talkers Day Nursery
Nottinghamshire County Council,1111/1001,Children and Young People,CYP,Third Party Payments,EGA,26/02/2016,11-16503,3647.75,Thrumpton Kids Clubs
Nottinghamshire County Council,1111/1001,Children and Young People,CYP,Third Party Payments,EGA,26/02/2016,11-16505,20686.90,The Learning Tree Nursery
Nottinghamshire County Council,1111/1001,Children and Young People,CYP,Third Party Payments,EGA,26/02/2016,11-16506,16993.50,The Learning Tree Day Nursery 2
Nottinghamshire County Council,1111/1001,Children and Young People,CYP,Third Party Payments,EGA,26/02/2016,11-16507,9304.08,The Orange Tree Day Nursery
Nottinghamshire County Council,1111/1001,Children and Young People,CYP,Third Party Payments,EGA,26/02/2016,11-16508,7218.24,The Enchanted Garden Day Nursery
Nottinghamshire County Council,1111/1001,Children and Young People,CYP,Third Party Payments,EGA,26/02/2016,11-16509,3684.00,Sutton Bonington Playgroup
Nottinghamshire County Council,1111/1001,Children and Young People,CYP,Third Party Payments,EGA,26/02/2016,11-16510,6380.87,Wellin Lane Playgroup
Nottinghamshire County Council,1111/1001,Children and Young People,CYP,Third Party Payments,EGA,26/02/2016,11-16511,4534.11,The West Bridgford Day Nursery
Nottinghamshire County Council,1111/1001,Children and Young People,CYP,Third Party Payments,EGA,26/02/2016,11-16512,9384.18,The Secret Garden Private Day Nurse
Nottinghamshire County Council,1111/1001,Children and Young People,CYP,Third Party Payments,EGA,26/02/2016,11-16513,29226.30,St Mary's Pre-School
Nottinghamshire County Council,1111/1001,Children and Young People,CYP,Third Party Payments,EGA,26/02/2016,11-16514,3287.40,St Johns Playgroup
Nottinghamshire County Council,1111/1001,Children and Young People,CYP,Third Party Payments,EGA,26/02/2016,11-16515,4611.12,St Giles Pre-school
Nottinghamshire County Council,1111/1001,Children and Young People,CYP,Third Party Payments,EGA,26/02/2016,11-16516,5579.52,Stepping Stones II
Nottinghamshire County Council,1111/1001,Children and Young People,CYP,Third Party Payments,EGA,26/02/2016,11-16517,10206.85,Staunton Montessori Nursery School
Nottinghamshire County Council,1111/1001,Children and Young People,CYP,Third Party Payments,EGA,26/02/2016,11-16518,13494.54,Stapleford Day Nursery
Nottinghamshire County Council,1111/1001,Children and Young People,CYP,Third Party Payments,EGA,26/02/2016,11-16519,2160.72,Speckled Frogs Pre-School
Nottinghamshire County Council,1111/1001,Children and Young People,CYP,Third Party Payments,EGA,26/02/2016,11-16520,5493.72,Smarties Private Day Nursery
Nottinghamshire County Council,1111/1001,Children and Young People,CYP,Third Party Payments,EGA,26/02/2016,11-16521,2544.30,Sparkle Daycare
Nottinghamshire County Council,1111/1001,Children and Young People,CYP,Third Party Payments,EGA,26/02/2016,11-16522,1932.00,Southwell Pre-School
Nottinghamshire County Council,1111/1001,Children and Young People,CYP,Third Party Payments,EGA,26/02/2016,11-16523,6511.02,Southfields Pre-School
Nottinghamshire County Council,1111/1001,Children and Young People,CYP,Third Party Payments,EGA,26/02/2016,11-16524,33455.10,Shaping Futures Day Nursery
Nottinghamshire County Council,1111/1001,Children and Young People,CYP,Third Party Payments,EGA,26/02/2016,11-16525,3504.24,Shaping Futures Day Nursery
Nottinghamshire County Council,1111/1001,Children and Young People,CYP,Third Party Payments,EGA,26/02/2016,11-16526,7786.44,Serendipity's Day Nursery
Nottinghamshire County Council,1111/1001,Children and Young People,CYP,Third Party Payments,EGA,26/02/2016,11-16527,16231.26,Serendipity's Day Nursery
Nottinghamshire County Council,1111/1001,Children and Young People,CYP,Third Party Payments,EGA,26/02/2016,11-16528,10622.88,Serendipity's Day Nursery
Nottinghamshire County Council,1111/1001,Children and Young People,CYP,Third Party Payments,EGA,26/02/2016,11-16529,12970.50,Serendipity's Day Nursery
Nottinghamshire County Council,1111/1001,Children and Young People,CYP,Third Party Payments,EGA,26/02/2016,11-16530,6165.72,Scotts Wood Private Day Nursery
Nottinghamshire County Council,1111/1001,Children and Young People,CYP,Third Party Payments,EGA,26/02/2016,11-16531,5315.52,Scottswood Pdn Ltd
Nottinghamshire County Council,1111/1001,Children and Young People,CYP,Third Party Payments,EGA,26/02/2016,11-16532,6880.00,Salterford House School
Nottinghamshire County Council,1111/1001,Children and Young People,CYP,Third Party Payments,EGA,26/02/2016,11-16533,16611.20,Safe Haven Day Nursery
Nottinghamshire County Council,1111/1001,Children and Young People,CYP,Third Party Payments,EGA,26/02/2016,11-16534,5338.20,Rushcliffe Pre-School (Nottingham)
Nottinghamshire County Council,1111/1001,Children and Young People,CYP,Third Party Payments,EGA,26/02/2016,11-16535,4553.10,Rushcliffe Pre-School (Nottingham)
Nottinghamshire County Council,1111/1001,Children and Young People,CYP,Third Party Payments,EGA,26/02/2016,11-16536,8135.47,Radcliffe On Trent Pre School Playg
Nottinghamshire County Council,1111/1001,Children and Young People,CYP,Third Party Payments,EGA,26/02/2016,11-16537,5550.60,Railway Children Playgroup
Nottinghamshire County Council,1111/1001,Children and Young People,CYP,Third Party Payments,EGA,26/02/2016,11-16538,7918.56,Rainbows Day Nursery
Nottinghamshire County Council,1111/1001,Children and Young People,CYP,Third Party Payments,EGA,26/02/2016,11-16539,6916.84,Ranskill Nursery
Nottinghamshire County Council,1111/1001,Children and Young People,CYP,Third Party Payments,EGA,26/02/2016,11-16540,3702.66,Ravenshead Pre-School Playgroup
Nottinghamshire County Council,1111/1001,Children and Young People,CYP,Third Party Payments,EGA,26/02/2016,11-16541,3547.20,Pippins Pre-School
Nottinghamshire County Council,1111/1001,Children and Young People,CYP,Third Party Payments,EGA,26/02/2016,11-16542,4386.28,Portland Place Pre-School
Nottinghamshire County Council,1111/1001,Children and Young People,CYP,Third Party Payments,EGA,26/02/2016,11-16543,6156.16,Pre-School 345
Nottinghamshire County Council,1111/1001,Children and Young People,CYP,Third Party Payments,EGA,26/02/2016,11-16544,1165.26,Paper Moon Nurseries
Nottinghamshire County Council,1111/1001,Children and Young People,CYP,Third Party Payments,EGA,26/02/2016,11-16548,9097.20,Papermoon Day Nursery
Nottinghamshire County Council,1111/1001,Children and Young People,CYP,Third Party Payments,EGA,26/02/2016,11-16550,25782.95,Papermoon Day Nursery
Nottinghamshire County Council,1111/1001,Children and Young People,CYP,Third Party Payments,EGA,26/02/2016,11-16551,8257.14,Papermoon Day Nursery
Nottinghamshire County Council,1111/1001,Children and Young People,CYP,Third Party Payments,EGA,26/02/2016,11-16552,4932.00,Old Cooperative Day Nursery
Nottinghamshire County Council,1111/1001,Children and Young People,CYP,Third Party Payments,EGA,26/02/2016,11-16553,11975.22,Oceans Day Nursery
Nottinghamshire County Council,1111/1001,Children and Young People,CYP,Third Party Payments,EGA,26/02/2016,11-16554,6392.40,North Muskham Playgroup
Nottinghamshire County Council,1111/1001,Children and Young People,CYP,Third Party Payments,EGA,26/02/2016,11-16555,6430.16,Netherfield Pre School Ltd
Nottinghamshire County Council,1111/1001,Children and Young People,CYP,Third Party Payments,EGA,26/02/2016,11-16556,1363.86,Millgate Pre School
Nottinghamshire County Council,1111/1001,Children and Young People,CYP,Third Party Payments,EGA,26/02/2016,11-16557,6370.32,Millfield Nursery School
Nottinghamshire County Council,1111/1001,Children and Young People,CYP,Third Party Payments,EGA,26/02/2016,11-16558,2453.40,Misson Pre-School
Nottinghamshire County Council,1111/1001,Children and Young People,CYP,Third Party Payments,EGA,26/02/2016,11-16559,7396.79,Luan's Little People
Nottinghamshire County Council,1111/1001,Children and Young People,CYP,Third Party Payments,EGA,26/02/2016,11-16560,6963.99,Lowater Street Playgroup
Nottinghamshire County Council,1111/1001,Children and Young People,CYP,Third Party Payments,EGA,26/02/2016,11-16561,10982.04,Little Oaks Nursery
Nottinghamshire County Council,1111/1001,Children and Young People,CYP,Third Party Payments,EGA,26/02/2016,11-16562,12830.97,Little Nippers Pre-School
Nottinghamshire County Council,1111/1001,Children and Young People,CYP,Third Party Payments,EGA,26/02/2016,11-16563,33748.26,Little Millers Day Nursery
Nottinghamshire County Council,1111/1001,Children and Young People,CYP,Third Party Payments,EGA,26/02/2016,11-16564,4469.15,Little Friends Day Nursery
Nottinghamshire County Council,1111/1001,Children and Young People,CYP,Third Party Payments,EGA,26/02/2016,11-16565,14725.44,Little Bears Day Nursery
Nottinghamshire County Council,1111/1001,Children and Young People,CYP,Third Party Payments,EGA,26/02/2016,11-16566,12932.70,Leos Childrens Nurseries Ltd
Nottinghamshire County Council,1111/1001,Children and Young People,CYP,Third Party Payments,EGA,26/02/2016,11-16567,8909.64,Leo's Childrens Nurseries Ltd
Nottinghamshire County Council,1111/1001,Children and Young People,CYP,Third Party Payments,EGA,26/02/2016,11-16568,8387.68,Leahurst Road Pre-School
Nottinghamshire County Council,1111/1001,Children and Young People,CYP,Third Party Payments,EGA,26/02/2016,11-16569,7519.32,Lambley Day Nursery Ltd
Nottinghamshire County Council,1111/1001,Children and Young People,CYP,Third Party Payments,EGA,26/02/2016,11-16570,3252.00,Kneesall Pre School & Playgroup
Nottinghamshire County Council,1111/1001,Children and Young People,CYP,Third Party Payments,EGA,26/02/2016,11-16571,6259.50,Kimberley Pre-School Playgroup
Nottinghamshire County Council,1111/1001,Children and Young People,CYP,Third Party Payments,EGA,26/02/2016,11-16572,6792.48,Kidzgrove
Nottinghamshire County Council,1111/1001,Children and Young People,CYP,Third Party Payments,EGA,26/02/2016,11-16573,5494.50,Arnold House Day Nursery
Nottinghamshire County Council,1111/1001,Children and Young People,CYP,Third Party Payments,EGA,26/02/2016,11-16574,24929.82,Applegarth Day Nurseries Ltd
Nottinghamshire County Council,1111/1001,Children and Young People,CYP,Third Party Payments,EGA,26/02/2016,11-16575,5002.00,Carlton Hill Playgroup
Nottinghamshire County Council,1111/1001,Children and Young People,CYP,Third Party Payments,EGA,26/02/2016,11-16576,3369.60,Colwick Pre School Playgroup
Nottinghamshire County Council,1111/1001,Children and Young People,CYP,Third Party Payments,EGA,26/02/2016,11-16577,9036.48,Coteswood House School
Nottinghamshire County Council,1111/1001,Children and Young People,CYP,Third Party Payments,EGA,26/02/2016,11-16578,5968.32,Childrens House Childcare Ltd
Nottinghamshire County Council,1111/1001,Children and Young People,CYP,Third Party Payments,EGA,26/02/2016,11-16579,5289.60,Breedon House Nurseries Ltd
Nottinghamshire County Council,1111/1001,Children and Young People,CYP,Third Party Payments,EGA,26/02/2016,11-16580,10374.06,Edwalton Day Nursery
Nottinghamshire County Council,1111/1001,Children and Young People,CYP,Third Party Payments,EGA,26/02/2016,11-16581,14526.09,Fernwood Day Nursery Ltd
Nottinghamshire County Council,1111/1001,Children and Young People,CYP,Third Party Payments,EGA,26/02/2016,11-16582,13168.11,Killisick Pre-School
Nottinghamshire County Council,1111/1001,Children and Young People,CYP,Third Party Payments,EGA,26/02/2016,11-16583,549.72,[Redacted]
Nottinghamshire County Council,1111/1001,Children and Young People,CYP,Third Party Payments,EGA,26/02/2016,11-16584,901.26,[Redacted]
Nottinghamshire County Council,1111/1001,Children and Young People,CYP,Third Party Payments,EGA,26/02/2016,11-16588,1040.58,[Redacted]
Nottinghamshire County Council,1111/1001,Children and Young People,CYP,Third Party Payments,EGA,26/02/2016,11-16591,549.72,[Redacted]
Nottinghamshire County Council,1111/1001,Children and Young People,CYP,Third Party Payments,EGA,26/02/2016,11-16594,549.72,[Redacted]
Nottinghamshire County Council,1111/1001,Children and Young People,CYP,Third Party Payments,EGA,26/02/2016,11-16595,549.72,[Redacted]
Nottinghamshire County Council,1111/1001,Children and Young People,CYP,Third Party Payments,EGA,26/02/2016,11-16596,815.31,[Redacted]
Nottinghamshire County Council,1111/1001,Children and Young People,CYP,Third Party Payments,EGA,26/02/2016,11-16597,720.00,[Redacted]
Nottinghamshire County Council,1111/1001,Children and Young People,CYP,Third Party Payments,EGA,26/02/2016,11-16598,549.72,[Redacted]
Nottinghamshire County Council,1111/1001,Children and Young People,CYP,Third Party Payments,EGA,26/02/2016,11-16599,1368.00,Pea Pod Day Nursery Ltd
Nottinghamshire County Council,1111/1001,Children and Young People,CYP,Third Party Payments,EGA,26/02/2016,11-16600,34177.67,Papermoon Day Nursery Sutton In Ash
Nottinghamshire County Council,1111/1001,Children and Young People,CYP,Third Party Payments,EGA,26/02/2016,11-16601,25182.48,Papplewick Pre-School Playgroup
Nottinghamshire County Council,1111/1001,Children and Young People,CYP,Third Party Payments,EGA,26/02/2016,11-16602,8081.06,Ordsall Pre-School
Nottinghamshire County Council,1111/1001,Children and Young People,CYP,Third Party Payments,EGA,26/02/2016,11-16603,6604.02,Nurseryworld & Friends Nursery & Pr
Nottinghamshire County Council,1111/1001,Children and Young People,CYP,Third Party Payments,EGA,26/02/2016,11-16604,10526.16,Puddleducks Pre-School
Nottinghamshire County Council,1111/1001,Children and Young People,CYP,Third Party Payments,EGA,26/02/2016,11-16605,12979.20,Plumtree School
Nottinghamshire County Council,1111/1001,Children and Young People,CYP,Third Party Payments,EGA,26/02/2016,11-16606,6644.16,Radcliffe On Trent Day Nursery
Nottinghamshire County Council,1111/1001,Children and Young People,CYP,Third Party Payments,EGA,26/02/2016,11-16608,7429.68,Rainbow Day Nursery
Nottinghamshire County Council,1111/1001,Children and Young People,CYP,Third Party Payments,EGA,26/02/2016,11-16610,3268.80,Rainbow Day Nursery
Nottinghamshire County Council,1111/1001,Children and Young People,CYP,Third Party Payments,EGA,26/02/2016,11-16612,5246.64,Rocking Horse Nursery Butlers Hill
Nottinghamshire County Council,1111/1001,Children and Young People,CYP,Third Party Payments,EGA,26/02/2016,11-16617,765.72,[Redacted]
Nottinghamshire County Council,1111/1001,Children and Young People,CYP,Third Party Payments,EGA,26/02/2016,11-16618,6855.78,Ruddington Nursery & Pre-School
Nottinghamshire County Council,1111/1001,Children and Young People,CYP,Third Party Payments,EGA,26/02/2016,11-16627,4689.60,The Lime Trees
Nottinghamshire County Council,1111/1001,Children and Young People,CYP,Third Party Payments,EGA,26/02/2016,11-16628,14785.02,The Orchard Day Nursery
Nottinghamshire County Council,1111/1001,Children and Young People,CYP,Third Party Payments,EGA,26/02/2016,11-16629,23187.89,The Rocking Horse Child Care Centre
Nottinghamshire County Council,1111/1001,Children and Young People,CYP,Third Party Payments,EGA,26/02/2016,11-16630,20166.93,Tiny World Mansfield
Nottinghamshire County Council,1111/1001,Children and Young People,CYP,Third Party Payments,EGA,26/02/2016,11-16632,549.72,Tracey Streeter Childminding Servic
Nottinghamshire County Council,1111/1001,Children and Young People,CYP,Third Party Payments,EGA,26/02/2016,11-16633,11893.82,Weaverthorpe Pre-School Playgroup
Nottinghamshire County Council,1111/1001,Children and Young People,CYP,Third Party Payments,EGA,26/02/2016,11-16634,29106.60,Treetops Nursery (Clipstone)
Nottinghamshire County Council,1111/1001,Children and Young People,CYP,Third Party Payments,EGA,26/02/2016,11-16635,1476.00,Willoughby On The Wolds Playgroup
Nottinghamshire County Council,1111/1001,Children and Young People,CYP,Third Party Payments,EGA,26/02/2016,11-16636,2875.20,Windmill Kindergarten Playgroup
Nottinghamshire County Council,1111/1001,Children and Young People,CYP,Third Party Payments,EGA,26/02/2016,11-16637,21318.00,Wollaton Village Day Nurseries Ltd.
Nottinghamshire County Council,1111/1001,Children and Young People,CYP,Third Party Payments,EGA,26/02/2016,11-16638,5033.88,Mulberry Bush Day Nursery
Nottinghamshire County Council,1111/1001,Children and Young People,CYP,Third Party Payments,EGA,26/02/2016,11-16639,3982.32,Noahs Ark Playgroup
Nottinghamshire County Council,1111/1001,Children and Young People,CYP,Third Party Payments,EGA,26/02/2016,11-16640,5947.50,Little Acorns Shireoaks
Nottinghamshire County Council,1111/1001,Children and Young People,CYP,Third Party Payments,EGA,26/02/2016,11-16642,4927.50,Sconce Hills Pre-School Playgroup
Nottinghamshire County Council,1111/1001,Children and Young People,CYP,Third Party Payments,EGA,26/02/2016,11-16643,6157.50,Wollaton Village Day Nurseries
Nottinghamshire County Council,1111/1001,Children and Young People,CYP,Third Party Payments,EGA,26/02/2016,11-16644,5314.68,SPBC Day Care Ltd
Nottinghamshire County Council,1111/1001,Children and Young People,CYP,Third Party Payments,EGA,26/02/2016,11-16645,5056.38,Horsendale Playgroup
Nottinghamshire County Council,1111/1001,Children and Young People,CYP,Third Party Payments,EGA,26/02/2016,11-16646,691.20,[Redacted]
Nottinghamshire County Council,1111/1001,Children and Young People,CYP,Third Party Payments,EGA,26/02/2016,11-16647,888.16,Z Whitaker (Active Childminding)
Nottinghamshire County Council,1111/1001,Children and Young People,CYP,Third Party Payments,EGA,26/02/2016,11-16648,1440.00,Sues Childminding Services
Nottinghamshire County Council,1111/1001,Children and Young People,CYP,Third Party Payments,EGA,26/02/2016,11-16649,13636.20,Grosvenor House Day Nursery
Nottinghamshire County Council,1111/1001,Children and Young People,CYP,Third Party Payments,EGA,26/02/2016,11-16650,706.86,[Redacted]
Nottinghamshire County Council,1111/1001,Children and Young People,CYP,Third Party Payments,EGA,26/02/2016,11-16651,549.72,Kylees Childmining Services
Nottinghamshire County Council,1111/1001,Children and Young People,CYP,Third Party Payments,EGA,26/02/2016,11-16652,4640.32,Treetops Nursery
Nottinghamshire County Council,1111/1001,Children and Young People,CYP,Third Party Payments,EGA,26/02/2016,11-16653,3686.76,Wolds Childcare Ltd
Nottinghamshire County Council,1111/1001,Children and Young People,CYP,Third Party Payments,EGA,26/02/2016,11-16654,1370.64,The Lime Trees
Nottinghamshire County Council,1111/1001,Children and Young People,CYP,Third Party Payments,EGA,26/02/2016,11-16655,549.72,Jelly Beans Childcare
Nottinghamshire County Council,1111/1001,Children and Young People,CYP,Third Party Payments,EGA,26/02/2016,11-16656,2374.48,Yew Tree Childcare
Nottinghamshire County Council,1111/1001,Children and Young People,CYP,Third Party Payments,EGA,26/02/2016,11-16657,577.26,Joanne Smith Childminding Service
Nottinghamshire County Council,1111/1001,Children and Young People,CYP,Third Party Payments,EGA,26/02/2016,11-16658,737.10,[Redacted]
Nottinghamshire County Council,1111/1001,Children and Young People,CYP,Third Party Payments,EGA,26/02/2016,11-16659,6032.91,Quinton Day Nurseries T/A Honey Bee
Nottinghamshire County Council,1111/1001,Children and Young People,CYP,Third Party Payments,EGA,26/02/2016,11-16660,7094.04,Lady Bay Pre School Playgroup
Nottinghamshire County Council,1111/1001,Children and Young People,CYP,Third Party Payments,EGA,26/02/2016,11-16661,3881.76,North Leverton Pre-School Playgroup
Nottinghamshire County Council,1111/1001,Children and Young People,CYP,Third Party Payments,EGA,26/02/2016,11-16662,824.58,Keyworth Primary School
Nottinghamshire County Council,1111/1001,Children and Young People,CYP,Third Party Payments,EGA,26/02/2016,11-16663,5985.61,Longdale Nursery School
Nottinghamshire County Council,1111/1001,Children and Young People,CYP,Third Party Payments,EGA,26/02/2016,11-16664,9246.06,Lowdham & Epperstone Pre-School
Nottinghamshire County Council,1111/1001,Children and Young People,CYP,Third Party Payments,EGA,26/02/2016,11-16665,549.72,[Redacted]
Nottinghamshire County Council,1111/1001,Children and Young People,CYP,Third Party Payments,EGA,26/02/2016,11-16666,824.58,Lisa's Little Angels
Nottinghamshire County Council,1111/1001,Children and Young People,CYP,Third Party Payments,EGA,26/02/2016,11-16667,1040.58,Vicki's Childminding Service
Nottinghamshire County Council,1111/1001,Children and Young People,CYP,Third Party Payments,EGA,26/02/2016,11-16668,1389.57,[Redacted]
Nottinghamshire County Council,1111/1001,Children and Young People,CYP,Third Party Payments,EGA,26/02/2016,11-16669,1132.20,Mini-me Childcare
Nottinghamshire County Council,1111/1001,Children and Young People,CYP,Third Party Payments,EGA,26/02/2016,11-16670,1392.12,[Redacted]
Nottinghamshire County Council,1111/1001,Children and Young People,CYP,Third Party Payments,EGA,26/02/2016,11-16672,692.88,St Peters C of E Academy
Nottinghamshire County Council,1111/1001,Children and Young People,CYP,Third Party Payments,EGA,26/02/2016,11-16673,4583.94,St Peter's Early Years
Nottinghamshire County Council,1111/1001,Children and Young People,CYP,Third Party Payments,EGA,26/02/2016,11-16676,641.34,L Kong Ltd
Nottinghamshire County Council,1111/1001,Children and Young People,CYP,Third Party Payments,EGA,26/02/2016,11-16677,549.72,Tracey Barnes Child Minding Service
Nottinghamshire County Council,1111/1001,Children and Young People,CYP,Third Party Payments,EGA,26/02/2016,11-16678,4490.46,Pretty Windows Ltd
Nottinghamshire County Council,1111/1001,Children and Young People,CYP,Third Party Payments,EGA,26/02/2016,11-16679,549.72,[Redacted]
Nottinghamshire County Council,1111/1001,Children and Young People,CYP,Third Party Payments,EGA,26/02/2016,11-16680,549.72,[Redacted]
Nottinghamshire County Council,1111/1001,Children and Young People,CYP,Third Party Payments,EGA,26/02/2016,11-16687,1486.26,Happy Times
Nottinghamshire County Council,1111/1001,Children and Young People,CYP,Third Party Payments,EGA,26/02/2016,11-16707,8088.78,Townrow Tiny Tots Ltd
Nottinghamshire County Council,1111/1001,Children and Young People,CYP,Third Party Payments,EGA,26/02/2016,11-16712,4426.92,Westbourne House Nursery School
Nottinghamshire County Council,1111/1001,Children and Young People,CYP,Third Party Payments,EGA,26/02/2016,11-16713,2084.94,Townrow Tiny Tots Ltd
Nottinghamshire County Council,1111/1001,Children and Young People,CYP,Third Party Payments,EGA,26/02/2016,11-16714,2262.36,Phoenix Park Nursery
Nottinghamshire County Council,1111/1001,Children and Young People,CYP,Third Party Payments,EGA,26/02/2016,11-16715,4241.46,PSLA Newstead Childcare
Nottinghamshire County Council,1111/1001,Children and Young People,CYP,Third Party Payments,EGA,26/02/2016,11-16717,13711.62,PSLA Newstead Childcare
Nottinghamshire County Council,1111/1001,Children and Young People,CYP,Third Party Payments,EGA,26/02/2016,11-16718,20147.40,PSLA Newstead Childcare
Nottinghamshire County Council,1111/1001,Children and Young People,CYP,Third Party Payments,EGA,26/02/2016,11-16719,3880.80,PSLA Newstead Childcare
Nottinghamshire County Council,1111/1001,Children and Young People,CYP,Third Party Payments,EGA,26/02/2016,11-16720,9624.60,PSLA Newstead Childcare
Nottinghamshire County Council,1111/1001,Children and Young People,CYP,Third Party Payments,EGA,26/02/2016,11-16721,4646.59,PSLA Newstead Childcare
Nottinghamshire County Council,1111/1001,Children and Young People,CYP,Third Party Payments,EGA,26/02/2016,11-16722,11834.25,PSLA Newstead Childcare
Nottinghamshire County Council,1111/1001,Children and Young People,CYP,Third Party Payments,EGA,26/02/2016,11-16723,27864.66,PSLA Newstead Childcare
Nottinghamshire County Council,1111/1001,Children and Young People,CYP,Third Party Payments,EGA,26/02/2016,11-16724,11033.11,PSLA Newstead Childcare
Nottinghamshire County Council,1111/1001,Children and Young People,CYP,Third Party Payments,EGA,26/02/2016,11-16725,11214.52,Fun Farm Day Nursery
Nottinghamshire County Council,1111/1001,Children and Young People,CYP,Third Party Payments,EGA,26/02/2016,11-16726,21906.90,Ashfield Plaza Day Nursery
Nottinghamshire County Council,1111/1001,Children and Young People,CYP,Third Party Payments,EGA,26/02/2016,11-16727,1781.39,PSLA Newstead Childcare
Nottinghamshire County Council,1111/1001,Children and Young People,CYP,Third Party Payments,EGA,26/02/2016,11-16728,4349.70,Mapperley Day Nursery
Nottinghamshire County Council,1111/1001,Children and Young People,CYP,Third Party Payments,EGA,26/02/2016,11-16729,16534.98,Treetops Nurseries Ltd
Nottinghamshire County Council,1111/1001,Children and Young People,CYP,Third Party Payments,EHA,05/02/2016,11-17126,538.58,University Of Nottingham
Nottinghamshire County Council,1111/1001,Children and Young People,CYP,Third Party Payments,EHA,05/02/2016,11-17188,1250.00,Yorkshire Adoption Agency Ltd
Nottinghamshire County Council,1111/1001,Children and Young People,CYP,Transfer Payments,GAA,03/02/2016,11-17248,679.50,Sunshine Studios
Nottinghamshire County Council,1111/1001,Children and Young People,CYP,Support Services,HAA,02/02/2016,11-10528,1330.00,All Wayz Travel
Nottinghamshire County Council,1111/1001,Children and Young People,CYP,Support Services,HAA,02/02/2016,11-10529,1615.00,All Wayz Travel
Nottinghamshire County Council,1111/1001,Children and Young People,CYP,Support Services,HAA,02/02/2016,11-10533,3788.05,Johnson Bros Tours Ltd
Nottinghamshire County Council,1111/1001,Children and Young People,CYP,Support Services,HAA,02/02/2016,11-10534,2800.00,Johnson Bros Tours Ltd
Nottinghamshire County Council,1111/1001,Children and Young People,CYP,Support Services,HAA,02/02/2016,11-10535,3207.00,Johnson Bros Tours Ltd
Nottinghamshire County Council,1111/1001,Children and Young People,CYP,Support Services,HAA,02/02/2016,11-10536,6004.00,Johnson Bros Tours Ltd
Nottinghamshire County Council,1111/1001,Children and Young People,CYP,Support Services,HAA,02/02/2016,11-10537,20840.25,Johnson Bros Tours Ltd
Nottinghamshire County Council,1111/1001,Children and Young People,CYP,Support Services,HAA,02/02/2016,11-10538,17000.00,Johnson Bros Tours Ltd
Nottinghamshire County Council,1111/1001,Children and Young People,CYP,Support Services,HAA,02/02/2016,11-10636,1356.60,Fozcabs Newark Taxis
Nottinghamshire County Council,1111/1001,Children and Young People,CYP,Support Services,HAA,02/02/2016,11-10654,2133.00,Kettlewell Retford Ltd
Nottinghamshire County Council,1111/1001,Children and Young People,CYP,Support Services,HAA,02/02/2016,11-10655,2327.50,Kettlewell Retford Ltd
Nottinghamshire County Council,1111/1001,Children and Young People,CYP,Support Services,HAA,02/02/2016,11-10656,2850.00,Kettlewell Retford Ltd
Nottinghamshire County Council,1111/1001,Children and Young People,CYP,Support Services,HAA,02/02/2016,11-10657,2080.50,Kettlewell Retford Ltd
Nottinghamshire County Council,1111/1001,Children and Young People,CYP,Support Services,HAA,02/02/2016,11-10658,3030.50,Kettlewell Retford Ltd
Nottinghamshire County Council,1111/1001,Children and Young People,CYP,Support Services,HAA,02/02/2016,11-10659,6840.00,Kettlewell Retford Ltd
Nottinghamshire County Council,1111/1001,Children and Young People,CYP,Support Services,HAA,02/02/2016,11-10660,2441.50,Kettlewell Retford Ltd
Nottinghamshire County Council,1111/1001,Children and Young People,CYP,Support Services,HAA,02/02/2016,11-10661,2441.50,Kettlewell Retford Ltd
Nottinghamshire County Council,1111/1001,Children and Young People,CYP,Support Services,HAA,03/02/2016,11-10034,2178.75,Trent Motor Traction Company Ltd
Nottinghamshire County Council,1111/1001,Children and Young People,CYP,Support Services,HAA,03/02/2016,11-10762,4521.00,Glenn Ryder Coaches
Nottinghamshire County Council,1111/1001,Children and Young People,CYP,Support Services,HAA,03/02/2016,11-10764,1520.00,Wrights Coaches
Nottinghamshire County Council,1111/1001,Children and Young People,CYP,Support Services,HAA,03/02/2016,11-10766,2391.70,Wrights Coaches
Nottinghamshire County Council,1111/1001,Children and Young People,CYP,Support Services,HAA,03/02/2016,11-10770,950.00,Acorn Contracts
Nottinghamshire County Council,1111/1001,Children and Young People,CYP,Support Services,HAA,03/02/2016,11-10832,798.00,Shelleys Taxis Ltd
Nottinghamshire County Council,1111/1001,Children and Young People,CYP,Support Services,HAA,03/02/2016,11-10858,1530.00,Sprays Transport Ltd
Nottinghamshire County Council,1111/1001,Children and Young People,CYP,Support Services,HAA,03/02/2016,11-10860,1482.57,F & J Marriott T/A Unity Coaches
Nottinghamshire County Council,1111/1001,Children and Young People,CYP,Support Services,HAA,03/02/2016,11-10861,2451.00,F & J Marriott T/A Unity Coaches
Nottinghamshire County Council,1111/1001,Children and Young People,CYP,Support Services,HAA,03/02/2016,11-10862,1649.00,F & J Marriott T/A Unity Coaches
Nottinghamshire County Council,1111/1001,Children and Young People,CYP,Support Services,HAA,03/02/2016,11-10863,1466.52,F & J Marriott T/A Unity Coaches
Nottinghamshire County Council,1111/1001,Children and Young People,CYP,Support Services,HAA,03/02/2016,11-10880,1140.00,K & R Cars
Nottinghamshire County Council,1111/1001,Children and Young People,CYP,Support Services,HAA,03/02/2016,11-10886,3000.00,Nottingham Minibuses & Coaches
Nottinghamshire County Council,1111/1001,Children and Young People,CYP,Support Services,HAA,03/02/2016,11-10889,1839.20,Nottingham Minibuses & Coaches
Nottinghamshire County Council,1111/1001,Children and Young People,CYP,Support Services,HAA,03/02/2016,11-10890,495.25,Nunns Cars
Nottinghamshire County Council,1111/1001,Children and Young People,CYP,Support Services,HAA,03/02/2016,11-10897,6958.50,Freeway Coaches Ltd
Nottinghamshire County Council,1111/1001,Children and Young People,CYP,Support Services,HAA,03/02/2016,11-10898,2602.04,Freeway Coaches Ltd
Nottinghamshire County Council,1111/1001,Children and Young People,CYP,Support Services,HAA,03/02/2016,11-10899,2470.95,Freeway Coaches Ltd
Nottinghamshire County Council,1111/1001,Children and Young People,CYP,Support Services,HAA,03/02/2016,11-10900,1520.00,Freeway Coaches Ltd
Nottinghamshire County Council,1111/1001,Children and Young People,CYP,Support Services,HAA,03/02/2016,11-10901,2375.00,Freeway Coaches Ltd
Nottinghamshire County Council,1111/1001,Children and Young People,CYP,Support Services,HAA,03/02/2016,11-10903,3331.80,C W Moxon Ltd
Nottinghamshire County Council,1111/1001,Children and Young People,CYP,Support Services,HAA,03/02/2016,11-10904,6600.00,C W Moxon Ltd
Nottinghamshire County Council,1111/1001,Children and Young People,CYP,Support Services,HAA,03/02/2016,11-10905,3386.00,C W Moxon Ltd
Nottinghamshire County Council,1111/1001,Children and Young People,CYP,Support Services,HAA,03/02/2016,11-10906,2801.00,C W Moxon Ltd
Nottinghamshire County Council,1111/1001,Children and Young People,CYP,Support Services,HAA,03/02/2016,11-10907,3265.00,C W Moxon Ltd
Nottinghamshire County Council,1111/1001,Children and Young People,CYP,Support Services,HAA,03/02/2016,11-10908,2496.50,C W Moxon Ltd
Nottinghamshire County Council,1111/1001,Children and Young People,CYP,Support Services,HAA,03/02/2016,11-10922,2641.00,Nottingham Coaches
Nottinghamshire County Council,1111/1001,Children and Young People,CYP,Support Services,HAA,03/02/2016,11-10923,2349.00,Nottingham Coaches
Nottinghamshire County Council,1111/1001,Children and Young People,CYP,Support Services,HAA,03/02/2016,11-10924,2913.00,Nottingham Coaches
Nottinghamshire County Council,1111/1001,Children and Young People,CYP,Support Services,HAA,03/02/2016,11-10925,2831.00,Nottingham Coaches
Nottinghamshire County Council,1111/1001,Children and Young People,CYP,Support Services,HAA,03/02/2016,11-10932,2128.00,Eurocab 2000 Ltd
Nottinghamshire County Council,1111/1001,Children and Young People,CYP,Support Services,HAA,03/02/2016,11-10938,891.00,Forest Cars
Nottinghamshire County Council,1111/1001,Children and Young People,CYP,Support Services,HAA,04/02/2016,11-11205,480.00,Ace Of Mansfield Ltd
Nottinghamshire County Council,1111/1001,Children and Young People,CYP,Support Services,HAA,04/02/2016,11-11217,2196.21,Arnold Acorn Travel
Nottinghamshire County Council,1111/1001,Children and Young People,CYP,Support Services,HAA,04/02/2016,11-11257,1200.00,Abacus Cars
Nottinghamshire County Council,1111/1001,Children and Young People,CYP,Support Services,HAA,04/02/2016,11-11260,538.00,Abacus Cars
Nottinghamshire County Council,1111/1001,Children and Young People,CYP,Support Services,HAA,04/02/2016,11-11266,12450.70,Travel Wright Ltd
Nottinghamshire County Council,1111/1001,Children and Young People,CYP,Support Services,HAA,04/02/2016,11-11268,3345.53,Travel Wright Ltd
Nottinghamshire County Council,1111/1001,Children and Young People,CYP,Support Services,HAA,04/02/2016,11-11270,2863.20,Travel Wright Ltd
Nottinghamshire County Council,1111/1001,Children and Young People,CYP,Support Services,HAA,04/02/2016,11-11271,4570.31,Travel Wright Ltd
Nottinghamshire County Council,1111/1001,Children and Young People,CYP,Support Services,HAA,04/02/2016,11-11273,1440.27,Travel Wright Ltd
Nottinghamshire County Council,1111/1001,Children and Young People,CYP,Support Services,HAA,04/02/2016,11-11275,2464.43,Travel Wright Ltd
Nottinghamshire County Council,1111/1001,Children and Young People,CYP,Support Services,HAA,04/02/2016,11-11277,3039.05,Travel Wright Ltd
Nottinghamshire County Council,1111/1001,Children and Young People,CYP,Support Services,HAA,04/02/2016,11-11278,1857.31,Travel Wright Ltd
Nottinghamshire County Council,1111/1001,Children and Young People,CYP,Support Services,HAA,05/02/2016,11-11353,660.00,Ng11 Cars
Nottinghamshire County Council,1111/1001,Children and Young People,CYP,Support Services,HAA,05/02/2016,11-11364,2915.00,Gem Mini Travel Ltd
Nottinghamshire County Council,1111/1001,Children and Young People,CYP,Support Services,HAA,05/02/2016,11-11365,2197.00,Gem Mini Travel Ltd
Nottinghamshire County Council,1111/1001,Children and Young People,CYP,Support Services,HAA,05/02/2016,11-11366,3077.00,Gem Mini Travel Ltd
Nottinghamshire County Council,1111/1001,Children and Young People,CYP,Support Services,HAA,05/02/2016,11-11367,3355.00,Gem Mini Travel Ltd
Nottinghamshire County Council,1111/1001,Children and Young People,CYP,Support Services,HAA,05/02/2016,11-11371,1197.00,Meden Travel
Nottinghamshire County Council,1111/1001,Children and Young People,CYP,Support Services,HAA,05/02/2016,11-11374,2643.47,Stagecoach Services Ltd
Nottinghamshire County Council,1111/1001,Children and Young People,CYP,Support Services,HAA,05/02/2016,11-11375,5101.20,Stagecoach Services Ltd
Nottinghamshire County Council,1111/1001,Children and Young People,CYP,Support Services,HAA,05/02/2016,11-11379,3944.17,Stagecoach Services Ltd
Nottinghamshire County Council,1111/1001,Children and Young People,CYP,Support Services,HAA,05/02/2016,11-11390,1520.00,P & P Taxis
Nottinghamshire County Council,1111/1001,Children and Young People,CYP,Support Services,HAA,05/02/2016,11-11394,1764.00,Wilfreda Beehive
Nottinghamshire County Council,1111/1001,Children and Young People,CYP,Support Services,HAA,05/02/2016,11-11396,1045.00,Broadsword Cars
Nottinghamshire County Council,1111/1001,Children and Young People,CYP,Support Services,HAA,05/02/2016,11-11399,1198.50,A2B Licensed Taxis
Nottinghamshire County Council,1111/1001,Children and Young People,CYP,Support Services,HAA,10/02/2016,11-11845,2948.50,Sharpes Of Nottingham
Nottinghamshire County Council,1111/1001,Children and Young People,CYP,Support Services,HAA,10/02/2016,11-11846,3064.00,Sharpes Of Nottingham
Nottinghamshire County Council,1111/1001,Children and Young People,CYP,Support Services,HAA,10/02/2016,11-11847,2414.50,Sharpes Of Nottingham
Nottinghamshire County Council,1111/1001,Children and Young People,CYP,Support Services,HAA,10/02/2016,11-11848,2948.50,Sharpes Of Nottingham
Nottinghamshire County Council,1111/1001,Children and Young People,CYP,Support Services,HAA,10/02/2016,11-11849,2910.80,Sharpes Of Nottingham
Nottinghamshire County Council,1111/1001,Children and Young People,CYP,Support Services,HAA,10/02/2016,11-11850,5255.00,Sharpes Of Nottingham
Nottinghamshire County Council,1111/1001,Children and Young People,CYP,Support Services,HAA,10/02/2016,11-11851,3064.00,Sharpes Of Nottingham
Nottinghamshire County Council,1111/1001,Children and Young People,CYP,Support Services,HAA,10/02/2016,11-11852,2793.75,Sharpes Of Nottingham
Nottinghamshire County Council,1111/1001,Children and Young People,CYP,Support Services,HAA,10/02/2016,11-11853,2143.50,Sharpes Of Nottingham
Nottinghamshire County Council,1111/1001,Children and Young People,CYP,Support Services,HAA,10/02/2016,11-11854,2781.50,Sharpes Of Nottingham
Nottinghamshire County Council,1111/1001,Children and Young People,CYP,Support Services,HAA,10/02/2016,11-11880,710.12,F4Control Ltd (t/a First4care)
Nottinghamshire County Council,1111/1001,Children and Young People,CYP,Support Services,HAA,10/02/2016,11-11884,2792.00,Johnson Bros Tours Ltd
Nottinghamshire County Council,1111/1001,Children and Young People,CYP,Support Services,HAA,10/02/2016,11-11885,2660.00,Johnson Bros Tours Ltd
Nottinghamshire County Council,1111/1001,Children and Young People,CYP,Support Services,HAA,10/02/2016,11-11886,3004.95,Johnson Bros Tours Ltd
Nottinghamshire County Council,1111/1001,Children and Young People,CYP,Support Services,HAA,10/02/2016,11-11887,3491.55,Johnson Bros Tours Ltd
Nottinghamshire County Council,1111/1001,Children and Young People,CYP,Support Services,HAA,10/02/2016,11-11888,16150.00,Johnson Bros Tours Ltd
Nottinghamshire County Council,1111/1001,Children and Young People,CYP,Support Services,HAA,10/02/2016,11-11889,18838.50,Johnson Bros Tours Ltd
Nottinghamshire County Council,1111/1001,Children and Young People,CYP,Support Services,HAA,10/02/2016,11-11890,5700.00,Johnson Bros Tours Ltd
Nottinghamshire County Council,1111/1001,Children and Young People,CYP,Support Services,HAA,10/02/2016,11-11895,855.00,SJW (Muskham) Ltd T/A Z Cars
Nottinghamshire County Council,1111/1001,Children and Young People,CYP,Support Services,HAA,10/02/2016,11-11908,3040.00,AOT Coaches
Nottinghamshire County Council,1111/1001,Children and Young People,CYP,Support Services,HAA,10/02/2016,11-11909,3040.00,AOT Coaches
Nottinghamshire County Council,1111/1001,Children and Young People,CYP,Support Services,HAA,10/02/2016,11-11910,2185.00,AOT Coaches
Nottinghamshire County Council,1111/1001,Children and Young People,CYP,Support Services,HAA,10/02/2016,11-11911,2527.00,AOT Coaches
Nottinghamshire County Council,1111/1001,Children and Young People,CYP,Support Services,HAA,10/02/2016,11-11912,2470.00,AOT Coaches
Nottinghamshire County Council,1111/1001,Children and Young People,CYP,Support Services,HAA,10/02/2016,11-11914,2206.80,Jb Tours Watnall Ltd
Nottinghamshire County Council,1111/1001,Children and Young People,CYP,Support Services,HAA,10/02/2016,11-11915,2419.30,Jb Tours Watnall Ltd
Nottinghamshire County Council,1111/1001,Children and Young People,CYP,Support Services,HAA,10/02/2016,11-11916,2408.70,Jb Tours Watnall Ltd
Nottinghamshire County Council,1111/1001,Children and Young People,CYP,Support Services,HAA,10/02/2016,11-11917,1976.57,Marshalls Of Sutton On Trent Ltd
Nottinghamshire County Council,1111/1001,Children and Young People,CYP,Support Services,HAA,10/02/2016,11-11926,3135.00,Marshalls Of Sutton On Trent Ltd
Nottinghamshire County Council,1111/1001,Children and Young People,CYP,Support Services,HAA,10/02/2016,11-11928,1782.00,Marshalls Of Sutton On Trent Ltd
Nottinghamshire County Council,1111/1001,Children and Young People,CYP,Support Services,HAA,10/02/2016,11-11929,3135.00,Marshalls Of Sutton On Trent Ltd
Nottinghamshire County Council,1111/1001,Children and Young People,CYP,Support Services,HAA,10/02/2016,11-11930,1872.75,Marshalls Of Sutton On Trent Ltd
Nottinghamshire County Council,1111/1001,Children and Young People,CYP,Support Services,HAA,10/02/2016,11-11941,5456.10,Stagecoach Services Ltd
Nottinghamshire County Council,1111/1001,Children and Young People,CYP,Support Services,HAA,10/02/2016,11-11943,4377.28,Stagecoach Services Ltd
Nottinghamshire County Council,1111/1001,Children and Young People,CYP,Support Services,HAA,10/02/2016,11-11950,1512.40,Stagecoach Services Ltd
Nottinghamshire County Council,1111/1001,Children and Young People,CYP,Support Services,HAA,10/02/2016,11-11952,1512.40,Stagecoach Services Ltd
Nottinghamshire County Council,1111/1001,Children and Young People,CYP,Support Services,HAA,10/02/2016,11-11958,4301.79,Stagecoach Services Ltd
Nottinghamshire County Council,1111/1001,Children and Young People,CYP,Support Services,HAA,10/02/2016,11-11959,2569.92,Stagecoach Services Ltd
Nottinghamshire County Council,1111/1001,Children and Young People,CYP,Support Services,HAA,10/02/2016,11-11963,2660.00,Tiger European Uk Ltd
Nottinghamshire County Council,1111/1001,Children and Young People,CYP,Support Services,HAA,10/02/2016,11-11964,2510.35,Tiger European Uk Ltd
Nottinghamshire County Council,1111/1001,Children and Young People,CYP,Support Services,HAA,10/02/2016,11-11965,3002.00,Tiger European Uk Ltd
Nottinghamshire County Council,1111/1001,Children and Young People,CYP,Support Services,HAA,10/02/2016,11-11966,2681.00,Tiger European Uk Ltd
Nottinghamshire County Council,1111/1001,Children and Young People,CYP,Support Services,HAA,10/02/2016,11-11967,3284.50,Tiger European Uk Ltd
Nottinghamshire County Council,1111/1001,Children and Young People,CYP,Support Services,HAA,10/02/2016,11-11968,2840.00,Tiger European Uk Ltd
Nottinghamshire County Council,1111/1001,Children and Young People,CYP,Support Services,HAA,10/02/2016,11-11969,3571.00,Tiger European Uk Ltd
Nottinghamshire County Council,1111/1001,Children and Young People,CYP,Support Services,HAA,10/02/2016,11-11970,2975.80,Tiger European Uk Ltd
Nottinghamshire County Council,1111/1001,Children and Young People,CYP,Support Services,HAA,10/02/2016,11-11971,2622.00,Tiger European Uk Ltd
Nottinghamshire County Council,1111/1001,Children and Young People,CYP,Support Services,HAA,10/02/2016,11-11972,2793.00,Tiger European Uk Ltd
Nottinghamshire County Council,1111/1001,Children and Young People,CYP,Support Services,HAA,10/02/2016,11-11973,1080.00,Tiger European Uk Ltd
Nottinghamshire County Council,1111/1001,Children and Young People,CYP,Support Services,HAA,10/02/2016,11-11974,3515.00,Tiger European Uk Ltd
Nottinghamshire County Council,1111/1001,Children and Young People,CYP,Support Services,HAA,10/02/2016,11-11975,1501.00,Paul S Winson Coaches
Nottinghamshire County Council,1111/1001,Children and Young People,CYP,Support Services,HAA,10/02/2016,11-11976,508.44,Bassetlaw Action Centre
Nottinghamshire County Council,1111/1001,Children and Young People,CYP,Support Services,HAA,10/02/2016,11-11977,2257.20,Bassetlaw Action Centre
Nottinghamshire County Council,1111/1001,Children and Young People,CYP,Support Services,HAA,10/02/2016,11-11980,4447.71,Isle Coaches
Nottinghamshire County Council,1111/1001,Children and Young People,CYP,Support Services,HAA,10/02/2016,11-11982,1890.00,Travel Liner
Nottinghamshire County Council,1111/1001,Children and Young People,CYP,Support Services,HAA,10/02/2016,11-11998,760.00,D G Private Hire Ltd
Nottinghamshire County Council,1111/1001,Children and Young People,CYP,Support Services,HAA,10/02/2016,11-12005,950.00,D G Private Hire Ltd
Nottinghamshire County Council,1111/1001,Children and Young People,CYP,Support Services,HAA,10/02/2016,11-12007,1120.00,D G Private Hire Ltd
Nottinghamshire County Council,1111/1001,Children and Young People,CYP,Support Services,HAA,12/02/2016,11-12106,4921.00,Butler Brothers Ltd
Nottinghamshire County Council,1111/1001,Children and Young People,CYP,Support Services,HAA,12/02/2016,11-12108,2643.50,Lowes Coaches Ltd
Nottinghamshire County Council,1111/1001,Children and Young People,CYP,Support Services,HAA,12/02/2016,11-12109,2273.00,Lowes Coaches Ltd
Nottinghamshire County Council,1111/1001,Children and Young People,CYP,Support Services,HAA,12/02/2016,11-12110,2591.00,Lowes Coaches Ltd
Nottinghamshire County Council,1111/1001,Children and Young People,CYP,Support Services,HAA,12/02/2016,11-12156,977.74,Cotswold CVS Trading Ltd
Nottinghamshire County Council,1111/1001,Children and Young People,CYP,Support Services,HAA,15/02/2016,11-12409,3271.05,Johnson Bros Tours Ltd
Nottinghamshire County Council,1111/1001,Children and Young People,CYP,Support Services,HAA,17/02/2016,11-12534,1654.52,Wallis Coachways
Nottinghamshire County Council,1111/1001,Children and Young People,CYP,Support Services,HAA,18/02/2016,11-12676,2343.00,Silverdale Tours Nottm Ltd
Nottinghamshire County Council,1111/1001,Children and Young People,CYP,Support Services,HAA,18/02/2016,11-12677,3286.00,Silverdale Tours Nottm Ltd
Nottinghamshire County Council,1111/1001,Children and Young People,CYP,Support Services,HAA,18/02/2016,11-12678,2808.00,Silverdale Tours Nottm Ltd
Nottinghamshire County Council,1111/1001,Children and Young People,CYP,Support Services,HAA,18/02/2016,11-12679,2994.50,Silverdale Tours Nottm Ltd
Nottinghamshire County Council,1111/1001,Children and Young People,CYP,Support Services,HAA,18/02/2016,11-12680,2607.50,Silverdale Tours Nottm Ltd
Nottinghamshire County Council,1111/1001,Children and Young People,CYP,Support Services,HAA,18/02/2016,11-12681,2574.50,Silverdale Tours Nottm Ltd
Nottinghamshire County Council,1111/1001,Children and Young People,CYP,Support Services,HAA,18/02/2016,11-12682,2532.00,Silverdale Tours Nottm Ltd
Nottinghamshire County Council,1111/1001,Children and Young People,CYP,Support Services,HAA,18/02/2016,11-12683,2146.00,Silverdale Tours Nottm Ltd
Nottinghamshire County Council,1111/1001,Adult Social Care and Health,ASCH,Premises Related,BAA,03/02/2016,11-17079,9340.75,Prism Medical Uk
Nottinghamshire County Council,1111/1001,Adult Social Care and Health,ASCH,Premises Related,BAA,19/02/2016,11-17278,6476.50,British Red Cross Society
Nottinghamshire County Council,1111/1001,Adult Social Care and Health,ASCH,Premises Related,BAA,23/02/2016,11-16086,590.50,Ashfield Glazing
Nottinghamshire County Council,1111/1001,Adult Social Care and Health,ASCH,Premises Related,BDA,03/02/2016,11-17253,500.00,Our Ladys Eastwood Rc Parish
Nottinghamshire County Council,1111/1001,Adult Social Care and Health,ASCH,Premises Related,BDA,03/02/2016,11-17254,665.00,Our Ladys Eastwood Rc Parish
Nottinghamshire County Council,1111/1001,Adult Social Care and Health,ASCH,Premises Related,BDA,04/02/2016,11-17077,506.00,Central Methodist Church
Nottinghamshire County Council,1111/1001,Adult Social Care and Health,ASCH,Premises Related,BJA,05/02/2016,11-17083,379.58,County Supplies (NCC)
Nottinghamshire County Council,1111/1001,Adult Social Care and Health,ASCH,Premises Related,BJA,05/02/2016,11-17110,769.82,County Supplies (NCC)
Nottinghamshire County Council,1111/1001,Adult Social Care and Health,ASCH,Premises Related,BJA,05/02/2016,11-17119,708.00,County Supplies (NCC)
Nottinghamshire County Council,1111/1001,Adult Social Care and Health,ASCH,Transport Related,CBA,03/02/2016,11-10817,2166.95,Ja Travel Ltd
Nottinghamshire County Council,1111/1001,Adult Social Care and Health,ASCH,Transport Related,CBA,03/02/2016,11-10868,3313.84,F & J Marriott T/A Unity Coaches
Nottinghamshire County Council,1111/1001,Adult Social Care and Health,ASCH,Transport Related,CBA,03/02/2016,11-10870,3183.20,F & J Marriott T/A Unity Coaches
Nottinghamshire County Council,1111/1001,Adult Social Care and Health,ASCH,Transport Related,CBA,03/02/2016,11-10872,3355.80,Vallances Coaches
Nottinghamshire County Council,1111/1001,Adult Social Care and Health,ASCH,Transport Related,CBA,03/02/2016,11-10895,1859.60,Aj Travel
Nottinghamshire County Council,1111/1001,Adult Social Care and Health,ASCH,Transport Related,CBA,12/02/2016,11-12111,3083.89,Mct Uk Ltd
Nottinghamshire County Council,1111/1001,Adult Social Care and Health,ASCH,Transport Related,CBA,12/02/2016,11-12154,4577.51,Cotswold CVS Trading Ltd
Nottinghamshire County Council,1111/1001,Adult Social Care and Health,ASCH,Transport Related,CBA,24/02/2016,11-16273,2966.80,BN Gibson Ltd
Nottinghamshire County Council,1111/1001,Adult Social Care and Health,ASCH,Transport Related,CCA,03/02/2016,11-10789,609.44,Arrow Specialised Transport Ltd
Nottinghamshire County Council,1111/1001,Adult Social Care and Health,ASCH,Transport Related,CCA,04/02/2016,11-11242,571.20,Abacus Cars
Nottinghamshire County Council,1111/1001,Adult Social Care and Health,ASCH,Transport Related,CCA,05/02/2016,11-11391,1296.00,P & P Taxis
Nottinghamshire County Council,1111/1001,Adult Social Care and Health,ASCH,Transport Related,CCA,10/02/2016,11-11871,179.52,F4Control Ltd (t/a First4care)
Nottinghamshire County Council,1111/1001,Adult Social Care and Health,ASCH,Transport Related,CCA,10/02/2016,11-11894,648.80,SJW (Muskham) Ltd T/A Z Cars
Nottinghamshire County Council,1111/1001,Adult Social Care and Health,ASCH,Transport Related,CCA,10/02/2016,11-12003,600.00,D G Private Hire Ltd
Nottinghamshire County Council,1111/1001,Adult Social Care and Health,ASCH,Transport Related,CCA,12/02/2016,11-12103,738.00,F4Control Ltd (t/a First4care)
Nottinghamshire County Council,1111/1001,Adult Social Care and Health,ASCH,Transport Related,CCA,24/02/2016,11-16270,870.00,F4Control Ltd (t/a First4care)
Nottinghamshire County Council,1111/1001,Adult Social Care and Health,ASCH,Transport Related,CDA,02/02/2016,11-10503,2500.00,Taxicover Uk Ltd
Nottinghamshire County Council,1111/1001,Adult Social Care and Health,ASCH,Transport Related,CDA,02/02/2016,11-10530,1037.96,All Wayz Travel
Nottinghamshire County Council,1111/1001,Adult Social Care and Health,ASCH,Transport Related,CDA,02/02/2016,11-10577,2320.00,Arrow Specialised Transport Ltd
Nottinghamshire County Council,1111/1001,Adult Social Care and Health,ASCH,Transport Related,CDA,02/02/2016,11-10578,1039.55,Arrow Specialised Transport Ltd
Nottinghamshire County Council,1111/1001,Adult Social Care and Health,ASCH,Transport Related,CDA,02/02/2016,11-10591,176.12,Arrow Specialised Transport Ltd
Nottinghamshire County Council,1111/1001,Adult Social Care and Health,ASCH,Transport Related,CDA,02/02/2016,11-10593,186.96,Arrow Specialised Transport Ltd
Nottinghamshire County Council,1111/1001,Adult Social Care and Health,ASCH,Transport Related,CDA,02/02/2016,11-10595,618.00,Arrow Specialised Transport Ltd
Nottinghamshire County Council,1111/1001,Adult Social Care and Health,ASCH,Transport Related,CDA,02/02/2016,11-10604,2840.00,Arrow Specialised Transport Ltd
Nottinghamshire County Council,1111/1001,Adult Social Care and Health,ASCH,Transport Related,CDA,02/02/2016,11-10605,979.20,Bridges Transport Services
Nottinghamshire County Council,1111/1001,Adult Social Care and Health,ASCH,Transport Related,CDA,02/02/2016,11-10606,3219.00,Bridges Transport Services
Nottinghamshire County Council,1111/1001,Adult Social Care and Health,ASCH,Transport Related,CDA,02/02/2016,11-10607,1988.80,Bridges Transport Services
Nottinghamshire County Council,1111/1001,Adult Social Care and Health,ASCH,Transport Related,CDA,02/02/2016,11-10608,816.00,Bridges Transport Services
Nottinghamshire County Council,1111/1001,Adult Social Care and Health,ASCH,Transport Related,CDA,02/02/2016,11-10609,1224.00,Bridges Transport Services
Nottinghamshire County Council,1111/1001,Adult Social Care and Health,ASCH,Transport Related,CDA,02/02/2016,11-10610,1142.40,Bridges Transport Services
Nottinghamshire County Council,1111/1001,Adult Social Care and Health,ASCH,Transport Related,CDA,02/02/2016,11-10612,2958.00,Bridges Transport Services
Nottinghamshire County Council,1111/1001,Adult Social Care and Health,ASCH,Transport Related,CDA,02/02/2016,11-10634,720.00,Bridges Transport Services
Nottinghamshire County Council,1111/1001,Adult Social Care and Health,ASCH,Transport Related,CDA,02/02/2016,11-10635,1183.20,Bridges Transport Services
Nottinghamshire County Council,1111/1001,Adult Social Care and Health,ASCH,Transport Related,CDA,02/02/2016,11-10642,1680.00,Fozcabs Newark Taxis
Nottinghamshire County Council,1111/1001,Adult Social Care and Health,ASCH,Transport Related,CDA,02/02/2016,11-10643,2498.40,Midfield Travel
Nottinghamshire County Council,1111/1001,Adult Social Care and Health,ASCH,Transport Related,CDA,02/02/2016,11-10646,1165.28,Beechwood Taxis
Nottinghamshire County Council,1111/1001,Adult Social Care and Health,ASCH,Transport Related,CDA,02/02/2016,11-10651,984.50,P & P Taxis
Nottinghamshire County Council,1111/1001,Adult Social Care and Health,ASCH,Transport Related,CDA,03/02/2016,11-10768,1040.00,Acorn Contracts
Nottinghamshire County Council,1111/1001,Adult Social Care and Health,ASCH,Transport Related,CDA,03/02/2016,11-10772,1089.50,Acorn Contracts
Nottinghamshire County Council,1111/1001,Adult Social Care and Health,ASCH,Transport Related,CDA,03/02/2016,11-10775,300.00,Alpha Cars
